{"text_format":"1","workbook":"xlsx","n_sheets":14,"sheets":["Cover","Info","Results","E01","E02","E03","E04","E05","E06","E07","E08","E09","E10","About"],"not_rendered":{"charts":12,"images":37,"macros":1,"external_links":0,"defined_names":15,"comments":0,"pivot_tables":0},"unopened":[],"bounds":{"document_bytes":16777216,"sheet_cells":100000,"rows_first":2000,"rows_last":500,"rows_between":2000,"halvings":0,"cell_chars":16384,"cell_head_chars":4096},"cells_cut":0,"cells_raw":0,"read":"whole","date_system":"1900"}

{"sheet":"Cover","index":0,"n_rows":0,"n_cols":0,"rows_kept":0,"cut":false,"hidden":false,"merged":[]}

{"sheet":"Info","index":1,"n_rows":39,"n_cols":4,"rows_kept":39,"cut":false,"hidden":false,"merged":[[38,1,38,3],[39,1,39,3],[2,1,2,2],[3,1,3,2],[4,1,4,2],[5,1,5,2],[6,1,6,2],[37,1,37,3],[31,1,31,2],[32,1,32,2],[33,1,33,2],[34,1,34,2],[35,1,35,2]]}
[]
[]
[null,"답변",null,"답변"]
[null,"도시명","도시명"]
[null,"도시형태(광역시, 기초지자체 등)","도시형태(광역시, 기초지자체 등)"]
[null,"국가","국가"]
[null,"평가일자","평가일자"]
[]
[null,"도시 정보(필수사항)","답변","답변일자"]
[null,"도시의 가장 높은 직위(시장 등)"]
[null,"도시 인구수"]
[null,"도시 면적(제곱 킬로미터)"]
[null,"인구 밀도(제곱 킬로미터 당)"]
[null,"청년층(15~24세)(%)"]
[null,"노년층(65세 이상)(%)"]
[null,"여성 세대주"]
[null,"비문맹률(%)"]
[null,"빈곤율(%)"]
[null,"가구당 평균 소득(USD)"]
[null,"외국인 거주 비율(%)"]
[null,"가장 일어날 만한 재난위험"]
[null,"가장 극심한 재난위험"]
[]
[null,"도시정보(선택사항)","답변","답변일자"]
[null,"전체 가구수"]
[null,"가구당 세대수"]
[null,"생계비(USD)"]
[null,"1인당 국가 GDP(USD)"]
[null,"지니계수"]
[null,"1인당 도시 생산량(USD)"]
[]
[null,"지자체 재난위험경감과 복원력 담당부서",null,"답변"]
[null,"스코어카드 평가를 진행할 사람이름"]
[null,"부서명"]
[null,"연락처"]
[null,"평가결과나 사례를 UNDRR 이나 파트너들과 공유할 수 있는가"]
[]
[null,"이해관계자 정보"]
[null,"이 평가를 지원하는 모든 이해관계자의 리스트를 기록해 주세요"]

{"sheet":"Results","index":2,"n_rows":358,"n_cols":13,"rows_kept":358,"cut":false,"hidden":false,"merged":[[124,2,124,5],[125,2,125,5],[126,2,126,5],[127,2,127,5],[223,1,223,3],[185,1,185,6],[187,2,187,5],[196,2,196,5],[197,2,197,5],[198,2,198,5],[199,2,199,5],[200,2,200,5],[201,2,201,5],[206,1,206,6],[208,2,208,5],[209,2,209,5],[190,2,190,5],[191,2,191,5],[192,2,192,5],[193,2,193,5],[141,2,141,5],[142,2,142,5],[154,2,154,5],[155,2,155,5],[34,2,34,5],[35,2,35,5],[36,2,36,5],[150,2,150,5],[151,2,151,5],[152,2,152,5],[49,2,49,5],[50,2,50,5],[51,2,51,5],[52,2,52,5],[53,2,53,5],[66,2,66,5],[67,2,67,5],[68,2,68,5],[69,2,69,5],[101,2,101,5],[97,1,97,6],[82,2,82,5],[83,2,83,5],[84,2,84,5],[85,2,85,5],[99,2,99,5],[100,2,100,5],[88,2,88,5],[42,2,42,5],[54,2,54,5],[70,2,70,5],[71,2,71,5],[72,2,72,5],[37,2,37,5],[38,2,38,5],[39,2,39,5],[40,2,40,5],[41,2,41,5],[102,2,102,5],[103,2,103,5],[104,2,104,5],[122,2,122,5],[123,2,123,5],[73,2,73,5],[74,2,74,5],[75,2,75,5],[86,2,86,5],[87,2,87,5],[89,2,89,5],[90,2,90,5],[91,2,91,5],[118,2,118,5],[114,1,114,6],[116,2,116,5],[117,2,117,5],[119,2,119,5],[120,2,120,5],[121,2,121,5],[156,2,156,5],[128,2,128,5],[137,2,137,5],[138,2,138,5],[139,2,139,5],[140,2,140,5],[153,2,153,5],[136,2,136,5],[131,1,131,6],[133,2,133,5],[134,2,134,5],[135,2,135,5],[162,2,162,5],[163,2,163,5],[164,2,164,5],[165,2,165,5],[166,2,166,5],[157,2,157,5],[158,2,158,5],[159,2,159,5],[160,2,160,5],[161,2,161,5],[172,2,172,5],[173,2,173,5],[174,2,174,5],[175,2,175,5],[176,2,176,5],[167,2,167,5],[168,2,168,5],[169,2,169,5],[170,2,170,5],[171,2,171,5],[211,2,211,5],[194,2,194,5],[195,2,195,5],[202,2,202,5],[203,2,203,5],[210,2,210,5],[177,2,177,5],[178,2,178,5],[179,2,179,5],[188,2,188,5],[189,2,189,5],[180,2,180,5],[181,2,181,5],[182,2,182,5]]}
[]
[]
[]
[]
[]
[]
[]
[]
[]
[]
[]
[]
[]
[]
[]
[]
[]
[]
[]
[]
[]
[]
[]
[]
[]
[]
[]
[]
[]
[]
[]
[]
[null,"필수사항 1 : 재난 복원력을 위한 조직구성 및 이행 준비"]
[]
[null,{"$f":"C240","v":"1.1.1"},{"$f":"E240","v":"계획 수립 시 위험도 고려"},null,null,null,{"$f":"F240","v":0}]
[null,"1.1.2","계획 수립에 따른 협의",null,null,null,0]
[null,"1.1.3","전략계획 검토",null,null,null,0]
[null,"1.2.1","재난발생 이전의 계획과 준비",null,null,null,0]
[null,"1.2.2","재난 대응의 조직화",null,null,null,0]
[null,"1.2.3","조직관리, 조정, 참여를 위한 도시 자원",null,null,null,0]
[null,"1.2.4","물리적 기여사항의 확인",null,null,null,0]
[null,"1.3.1","다른 계획과 재난 복원력의 통합",null,null,null,0]
[null,{"$f":"C248","v":"1.4.1"},"도시 복원력에 참여한 다른 기관과의 도시 복원력 데이터 공유 범위",null,null,null,{"$f":"F248","v":0}]
[]
[]
[]
[]
[null,"필수사항 2 : 현재와 미래의 위험 시나리오 분석, 이해, 활용"]
[]
[null,{"$f":"C249","v":"2.1.1"},{"$f":"E249","v":"도시가 당면한 위험요인에 대한 정보과 위험요인이 재난으로 발생한 가능성"},null,null,null,{"$f":"F249","v":0}]
[null,"2.2.1","노출과 취약성에 대한 지식",null,null,null,0]
[null,"2.2.2","피해와 손실 산정",null,null,null,0]
[null,"2.3.1","중요자산과 이들 간 연계성의 이해",null,null,null,0]
[null,"2.4.1","위험요인 지도",null,null,null,0]
[null,"2.5.1","업데이트 과정",null,null,null,0]
[]
[]
[]
[]
[]
[]
[]
[]
[]
[null,"필수사항 3 : 재난 복원력을 위한 재정적 역량 강화"]
[]
[null,{"$f":"C255","v":"3.1.1"},{"$f":"E255","v":"자금조달이 가능한 모든 방법에 대한 인지와 지식 도시는 활발하게 자금조달 을 추구하고 있다. 참고: 충분한 기금이 존재 한다면 본 평가기준은 생 략될 수 있다."},null,null,null,{"$f":"F255","v":0}]
[null,"3.2.1",{"$f":"E256","v":"재난 복원력 필수사업을 위한 재정계획의 적절성"},null,null,null,{"$f":"F256","v":0}]
[null,"3.2.2","필수사항2와 8에 명시된 시나리오와 주요 자산을 위 한 공학적 및 비공학적 사 업들을 장기적으로 지원할 자금",null,null,null,0]
[null,"3.2.3","재난복원력 활동을 위해 필요한 유지관리 비용을 충당할 기금",null,null,null,0]
[null,"3.2.4","재난 이후 복구를 위한 비상기금 (“불황 대비 자금”)",null,null,null,0]
[null,"3.3.1","가정보험의 보장범위",null,null,null,0]
[null,"3.3.2","비주택 보험의 보장범위",null,null,null,0]
[null,"3.4.1","기업 재난 복원력(BCP)을 증진하기 위한 기업체에 대한 인센티브",null,null,null,0]
[null,"3.4.2","도시복원력 향상을 위한 비영리조직에 대한 인센티브",null,null,null,0]
[null,"3.4.3","재난 복원력을 향상시키기 위한 주택소유자에 대한 인센티브",null,null,null,0]
[]
[]
[]
[]
[null,"필수사항 4 : 복원력에 강한 도시개발과 설계 추구"]
[]
[null,{"$f":"C265","v":"4.1.1"},{"$f":"E265","v":"잠재적 인구 이동"},null,null,null,{"$f":"F266","v":0}]
[null,"4.1.2","재난 발생시에도 연속할 수 있는 경제활동",null,null,null,{"$f":"F267","v":0}]
[null,"4.1.2.1","위험에 처한 기업 생산량",null,null,null,0]
[null,"4.1.3","위험에 처한 농업용지",null,null,null,0]
[null,"4.2.1","복원력을 증가시키는 도시 설계 솔루션",null,null,null,0]
[null,"4.3.1","필수사항2에 명시된 위험들을 다루기 위한 건축법규의 존재",null,null,null,0]
[null,"4.3.2","건축법규 갱신",null,null,null,0]
[null,"4.3.3","지속가능한 건축설계 기준",null,null,null,0]
[null,"4.4.1","토지이용구역의 적용",null,null,null,0]
[null,"4.4.2","건축법규의 적용",null,null,null,0]
[]
[]
[]
[]
[]
[null,"필수사항 5 : 자연생태계가 제공하는 보호기능 강화를 위한 자연 완충재 보존"]
[]
[null,{"$f":"C275","v":"5.1.1"},{"$f":"E275","v":"생태계 서비스의 도시 재난 복원력에의 역할 인지"},null,null,null,{"$f":"F275","v":0}]
[null,"5.1.2",{"$f":"E276","v":"친환경 사회기반시설의 도시 정책과 프로젝트에 통합"},null,null,null,0]
[null,"5.2.1",{"$f":"E278","v":"토지이용정책이 생태계 서비스에 미치는 영향"},null,null,null,0]
[null,"5.2.2",{"$f":"E279","v":"도시 사업에 친환경 사회기반시설의 정기적 반영"},null,null,null,0]
[null,"5.3.1",{"$f":"E280","v":"주요 환경 자산의 파악"},null,null,null,0]
[null,"5.3.2",{"$f":"E281","v":"관련 기술과 경험의 이용가능성"},null,null,null,0]
[]
[]
[]
[]
[]
[]
[]
[]
[]
[null,"필수사항 6 : 복원력을 위한 기관역량 강화"]
[]
[null,{"$f":"C281","v":"6.1.1"},{"$f":"E282","v":"민간부문 연결"},null,null,null,{"$f":"F281","v":0}]
[null,{"$f":"C282","v":"6.1.2"},"보험부문의 참여",null,null,null,{"$f":"F282","v":0}]
[null,"6.1.3","시민 사회 연결",null,null,null,0]
[null,"6.1.4","시민에게 교육과 인식을 위한 자료/메시지 전달",null,null,null,0]
[null,"6.2.1","시민에게 교육과 인식을 위한 자료/메시지 전달",null,null,null,0]
[null,"6.2.1.1","도시 복원력 현 상태에 대한 데이터가 다른 기관과 공유되는 범위",null,null,null,0]
[null,"6.3.1","도시 복원력과 관련된 데이터가 지역사회 조직과 시민들에게 공유되는 범위",null,null,null,0]
[null,"6.3.2","위험도와 복원력에 집중한 교육훈련의 존재 및 실시 여부(전문 훈련)",null,null,null,0]
[null,"6.4.1","위험도와 복원력에 집중한 교육훈련의 존재 및 실시 여부(전문 훈련)",null,null,null,0]
[null,"6.4.1.1","관련 교육훈련을 업데이트하기 위한 체계/과정",null,null,null,0]
[null,"6.4.2","도시 내 모든 언어 집단에 대한 교육 및 훈련의 접근성",null,null,null,0]
[null,"6.5.1","다른 도시, 나라, 기업들이 복원력 증진을 위해 무엇을 하는지에 학습하려는 노력",null,null,null,0]
[null,"6.6.1","도시 내 지역사회 또는 민간조직의 범위",null,null,null,0]
[]
[]
[null,"필수사항 7 : 복원력을 위한 사회적 역량 이해 및 강"]
[]
[null,{"$f":"C294","v":"7.1.1"},{"$f":"E295","v":"도시 내 지역사회 또는 민간조직의 범위"},null,null,null,{"$f":"F294","v":0}]
[null,{"$f":"C295","v":"7.1.2"},"지역사회 네트워크의 효과성",null,null,null,{"$f":"F295","v":0}]
[null,"7.1.2.1","지역사회 네트워크의 효과성",null,null,null,0]
[null,"7.2.1","사회적 연결성 및 지역 응집력",null,null,null,0]
[null,"7.2.2","취약계층의 참여",null,null,null,0]
[null,"7.3.1","사업주가 근로자의 의사소통 채널로 역할을 하는 범위",null,null,null,0]
[null,"7.3.2","사업연속성 계획 (사업이 지속될 수 있도록 계획하는 것)",null,null,null,0]
[null,"7.4.1","참여의 빈도",null,null,null,0]
[null,"7.4.2","시민들이 재난 전후 정보를 주고 받을 수 있는 모바일 및 이메일 “참여 시스템”의 활용",null,null,null,0]
[null,"7.4.3","교육 효과성의 검증",null,null,null,0]
[]
[]
[]
[]
[]
[null,"필수사항 8 : 사회기반시설의 복원력 강화"]
[]
[null,{"$f":"C304","v":"8.1.1"},{"$f":"E305","v":"예방적 사회기반시설의 적 절성(생태계는 자연적인 완충효과를 제공할 수 있 음 – 필수사항5 참조)"},null,null,null,{"$f":"F304","v":0}]
[null,"8.1.2","유지 보수의 효과",null,null,null,{"$f":"F305","v":0}]
[null,"8.2.1","손실 위험에 처한 사용자 서비스 기간",null,null,null,0]
[null,"8.2.2","수자원 또는 위생 시설의 장애로 손실 위험에 처할 수 있는 주요 자산 서비스 기간(예, 병원 또는 기타 중 요 자산에 대한 서비스)",null,null,null,0]
[null,"8.2.3","서비스 복구 비용",null,null,null,0]
[null,"8.3.1","손실 위험에 처한 사용자 서비스 기간",null,null,null,0]
[null,"8.3.2","에너지 공급 실패로 인한 손실 위험에 처한 주요 자 산의 서비스 기간",null,null,null,0]
[null,"8.3.3","복구 비용",null,null,null,0]
[null,"8.4.1","가스시스템의 안전성 및 무결성(해당되는 경우)",null,null,null,{"$f":"IF(I312=TRUE,0,F312)","v":0}]
[null,"8.4.2","손실 위험에 처한 사용자 서비스 기간",null,null,null,{"$f":"IF(I313=TRUE,0,F313)","v":0}]
[null,"8.4.3","가스 공급 실패로 인한 손실위험에 처한 주요 자산 서비스 기간",null,null,null,{"$f":"IF(I314=TRUE,0,F314)","v":0}]
[null,"8.4.4","서비스 복구 비용",null,null,null,{"$f":"IF(I315=TRUE,0,F315)","v":0}]
[null,"8.5.1","도로 – 손실 위험에 처한 도로 시스템으로부터의 서비스",null,null,null,0]
[null,"8.5.2","도로 – 주요 진입 및 대피 경로의 잔존",null,null,null,0]
[null,"8.5.3","철도/지하철 (해당되는 경우) – 손실위험에 처한 철도 시스템으로부터의 서비스",null,null,null,{"$f":"IF(I318=TRUE,0,F318)","v":0}]
[null,"8.5.4","공항(해당되는 경우)",null,null,null,{"$f":"IF(I319=TRUE,0,F319)","v":0}]
[null,"8.5.5","강/항구(해당되는 경우)",null,null,null,{"$f":"IF(I320=TRUE,0,F320)","v":0}]
[null,"8.5.6","기타 대중 교통 (버스 및 택시 등)",null,null,null,{"$f":"IF(I321=TRUE,0,F321)","v":0}]
[null,"8.5.7","교통관련 서비스 복구 비용",null,null,null,0]
[null,"8.6.1","손실 위험에 처한 서비스 기간",null,null,null,0]
[null,"8.6.2","통신 실패로 인해 손실 위험에 처한 지정된 주요 자산 서비스 기간",null,null,null,0]
[null,"8.6.3","복구 비용",null,null,null,0]
[null,"8.7.1","보건 및 비상 시설의 구조적 안전 및 재난 복원력 (인력 파견 / 최초 대응 - 필 수사항9 참조)",null,null,null,0]
[null,"8.7.1.1","보건 및 비상 시설의 구조적 안전 및 재난 복원력 (인력 파견 / 최초 대응 - 필 수사항9 참조)",null,null,null,0]
[null,"8.7.2","보건 기록 및 자료",null,null,null,0]
[null,"8.7.3","응급실 수요를 위한 시설 및 긴급 의료용품을 포함한 응급 의료의 이용가능성",null,null,null,0]
[null,"8.8.1","교육시설의 구조적 안전성",null,null,null,0]
[null,"8.8.2","수업 손실시간",null,null,null,0]
[null,"8.8.3","교육 자료",null,null,null,0]
[null,"8.9.1","교도소 시스템의 재난 복원력",null,null,null,0]
[null,"8.10.1","모든 중요한 행정 기능의 연속성에 대한 안정성",null,null,null,0]
[null,"8.11.1","정부기능의 연속성에 필수 적인 컴퓨터 시스템 및 데 이터에 대한 안정성\n",null,null,null,0]
[null,"8.11.2","위에 언급된 사회기반시설 에 중요한 컴퓨터 시스템 및 데이터의 연속성에 대 한 안정성",null,null,null,0]
[]
[]
[null,"필수사항 9 : 효과적인 재난 대비와 대응력 확보"]
[]
[null,{"$f":"C337","v":"9.1.1"},{"$f":"E338","v":"조기 경보 시스템의 존재와 효과"},null,null,null,{"$f":"F337","v":0}]
[null,{"$f":"C338","v":"9.1.1.1"},"경보 도달 범위",null,null,null,{"$f":"F338","v":0}]
[null,"9.2.1","전문가 및 지역사회 단체 를 통합시키는 비상 대응 계획의 존재(사후 대응 – 필수사항10 참조)",null,null,null,0]
[null,"9.3.1","경찰의 최초 대응 의무 지원을 위한 “급증” 용량",null,null,null,0]
[null,"9.3.2","최초 대응, 기타 인력 수요 및 가용성에 대한 정의",null,null,null,0]
[null,"9.4.1","장비, 구호품 수요 파악 및 가용성에 대한 정의",null,null,null,0]
[null,"9.4.1.1","필요한 수요 대비 사용 가 능한 장비의 부족",null,null,null,0]
[null,"9.5.1","식량 공급 능력",null,null,null,0]
[null,"9.5.2","피난처/안전한 장소에 대 한 공급 능력",null,null,null,0]
[null,"9.5.2.1","피난처/안전한 장소에 대 한 공급 능력",null,null,null,0]
[null,"9.5.3","필수품 수요에 대한 공급 능력",null,null,null,0]
[null,"9.5.4","연료 공급 능력",null,null,null,0]
[null,"9.6.1","인근 도시/시도/정부기관과 주요 시스템/절차에 대한 상호 운용성",null,null,null,0]
[null,"9.6.2","긴급 운영 센터",null,null,null,0]
[null,"9.6.3","재난 이후 복구의 조정",null,null,null,0]
[null,"9.7.1","연습 및 리허설 – 일반인 및 전문가 모두 참여",null,null,null,0]
[null,{"$f":"C353","v":"9.7.2"},"반복 연습 및 훈련의 효과",null,null,null,0]
[]
[]
[null,"필수사항 10 : 신속한 복원과 더 나은 재건"]
[]
[null,{"$f":"C354","v":"10.1.1"},{"$f":"E355","v":"재난 이후 복구 및 경제 재가동 계획"},null,null,null,{"$f":"F354","v":0}]
[null,{"$f":"C355","v":"10.1.2"},{"$f":"E356","v":"사고 복구 및 재가동’ 계획에 대한 이해관계자의 협의 범위"},null,null,null,{"$f":"F355","v":0}]
[null,{"$f":"C356","v":"10.1.3"},{"$f":"E357","v":"유입되는 원조 및 자금지출 처리를 위한 재정 협약"},null,null,null,{"$f":"F356","v":0}]
[null,{"$f":"C357","v":"10.2.1"},{"$f":"E358","v":"순환 학습"},null,null,null,{"$f":"F357","v":0}]
[]
[]
[]
[]
[]
[]
[]
[]
[]
[]
[]
[null,{"$f":"TODAY()","v":"2021-04-15"}]
[]
[]
[null,null,"Label","Name",null,"Essential","TotalScore","MaxScore","Label"]
[null,null,"S1","1.   Organise for Disaster Resilience",null,"E1",{"$f":"SUMIFS($F$240:$F$1219,$B$240:$B$1219,F228)","v":0},{"$f":"COUNTIFS($B$240:$B$357,F228)*5","v":45},"01",null,{"$f":"SUM(G228:G237)","v":0},{"$f":"K228/K229","v":0},{"$f":"CONCATENATE(\"종합평가 점수\",SUM(G228:G237),\" / \",SUM(H228:H237))","v":"종합평가 점수0 / 590"}]
[null,null,"S2","2.   Identify, Understand and Use Current and Future Risk Scenarios",null,"E2",0,30,"02",null,{"$f":"SUM(H228:H237)","v":590},{"$f":"1-L228","v":1}]
[null,null,"S3","3.   Strengthen Financial Capacity for Resilience",null,"E3",0,50,"03"]
[null,null,"S4","4.   Pursue Resilient Urban Development and Design",null,"E4",0,50,"04"]
[null,null,"S5","5.   Safeguard Natural Buffers to Enhance Ecosystems’ Protective Functions",null,"E5",0,30,"05"]
[null,null,"S6","6.   Strengthen Institutional Capacity for Resilience",null,"E6",0,65,"06"]
[null,null,"S7","7.   Understand and Strengthen Societal Capacity for Resilience",null,"E7",0,50,"07"]
[null,null,"S8","8.   Increase Infrastructure Resilience",null,"E8",{"$f":"SUMIFS($F$240:$F$1219,$B$240:$B$1219,F235)-SUMIFS($F$240:$F$1219,$B$240:$B$1219,F235,$I$240:$I$1219,TRUE)","v":0},{"$f":"(COUNTIFS($B$240:$B$357,F235)-COUNTIFS(I312:I321,TRUE))*5","v":165},"08","Note: This row has different formulas to discount 주제 / 현안s that are N/A"]
[null,null,"S9","9.   Ensure Effective Disaster 대답",null,"E9",0,85,"09"]
[null,null,"S10","10. Expedite Recovery and Build Back Better",null,"E10",0,20,"10"]
[]
[null,"Section","Ref",null,"주제 / 현안","SelectedScore","ThisScore"]
[null,"E1","1.1.1",null,"계획 수립 시 위험도 고려",{"$f":"IF(G240=\"\",0,IF(G240=0,0,6-G240))","v":0},{"$f":"OFFSET('E01'!$E$1,MATCH(C240,'E01'!G:G,0)+3,0)","v":0}]
[null,"E1","1.1.2",null,"계획 수립에 따른 협의",{"$f":"IF(G241=\"\",0,IF(G241=0,0,6-G241))","v":0},{"$f":"OFFSET('E01'!$E$1,MATCH(C241,'E01'!G:G,0)+3,0)","v":0}]
[null,"E1","1.1.3",null,"전략계획 검토",0,{"$f":"OFFSET('E01'!$E$1,MATCH(C242,'E01'!G:G,0)+3,0)","v":0}]
[null,"E1","1.2.1",null,"재난발생 이전의 계획과 준비",0,{"$f":"OFFSET('E01'!$E$1,MATCH(C243,'E01'!G:G,0)+3,0)","v":0}]
[null,"E1","1.2.2",null,"재난 대응의 조직화",0,{"$f":"OFFSET('E01'!$E$1,MATCH(C244,'E01'!G:G,0)+3,0)","v":0}]
[null,"E1","1.2.3",null,"조직관리, 조정, 참여를 위한 도시 자원",0,{"$f":"OFFSET('E01'!$E$1,MATCH(C245,'E01'!G:G,0)+3,0)","v":0}]
[null,"E1","1.2.4",null,"물리적 기여사항의 확인",0,{"$f":"OFFSET('E01'!$E$1,MATCH(C246,'E01'!G:G,0)+3,0)","v":0}]
[null,"E1","1.3.1",null,"다른 계획과 재난 복원력의 통합",0,{"$f":"OFFSET('E01'!$E$1,MATCH(C247,'E01'!G:G,0)+3,0)","v":0}]
[null,"E1","1.4.1",null,"도시 복원력에 참여한 다른 기관과의 도시 복원력 데이터 공유 범위",0,{"$f":"OFFSET('E01'!$E$1,MATCH(C248,'E01'!G:G,0)+3,0)","v":0}]
[null,"E2","2.1.1",null,"도시가 당면한 위험요인에 대한 정보과 위험요인이 재난으로 발생한 가능성",0,{"$f":"OFFSET('E02'!$E$1,MATCH(C249,'E02'!G:G,0)+3,0)","v":0}]
[null,"E2","2.2.1",null,"노출과 취약성에 대한 지식",0,{"$f":"OFFSET('E02'!$E$1,MATCH(C250,'E02'!G:G,0)+3,0)","v":0}]
[null,"E2","2.2.2",null,"피해와 손실 산정",0,{"$f":"OFFSET('E02'!$E$1,MATCH(C251,'E02'!G:G,0)+3,0)","v":0}]
[null,"E2","2.3.1",null,"중요자산과 이들 간 연계성의 이해",0,{"$f":"OFFSET('E02'!$E$1,MATCH(C252,'E02'!G:G,0)+3,0)","v":0}]
[null,"E2","2.4.1",null,"위험요인 지도",0,{"$f":"OFFSET('E02'!$E$1,MATCH(C253,'E02'!G:G,0)+3,0)","v":0}]
[null,"E2","2.5.1",null,"업데이트 과정",0,{"$f":"OFFSET('E02'!$E$1,MATCH(C254,'E02'!G:G,0)+3,0)","v":0}]
[null,"E3","3.1.1",null,"자금조달이 가능한 모든 방법에 대한 인지와 지식 도시는 활발하게 자금조달 을 추구하고 있다. 참고: 충분한 기금이 존재 한다면 본 평가기준은 생 략될 수 있다.",0,{"$f":"OFFSET('E03'!$E$1,MATCH(C255,'E03'!G:G,0)+3,0)","v":0}]
[null,"E3","3.2.1",null,"재난 복원력 필수사업을 위한 재정계획의 적절성",0,{"$f":"OFFSET('E03'!$E$1,MATCH(C256,'E03'!G:G,0)+3,0)","v":0}]
[null,"E3","3.2.2",null,"필수사항2와 8에 명시된 시나리오와 주요 자산을 위 한 공학적 및 비공학적 사 업들을 장기적으로 지원할 자금",0,{"$f":"OFFSET('E03'!$E$1,MATCH(C257,'E03'!G:G,0)+3,0)","v":0}]
[null,"E3","3.2.3",null,"재난복원력 활동을 위해 필요한 유지관리 비용을 충당할 기금",0,{"$f":"OFFSET('E03'!$E$1,MATCH(C258,'E03'!G:G,0)+3,0)","v":0}]
[null,"E3","3.2.4",null,"재난 이후 복구를 위한 비상기금 (“불황 대비 자금”)",0,{"$f":"OFFSET('E03'!$E$1,MATCH(C259,'E03'!G:G,0)+3,0)","v":0}]
[null,"E3","3.3.1",null,"가정보험의 보장범위",0,{"$f":"OFFSET('E03'!$E$1,MATCH(C260,'E03'!G:G,0)+3,0)","v":0}]
[null,"E3","3.3.2",null,"비주택 보험의 보장범위",0,{"$f":"OFFSET('E03'!$E$1,MATCH(C261,'E03'!G:G,0)+3,0)","v":0}]
[null,"E3","3.4.1",null,"기업 재난 복원력(BCP)을 증진하기 위한 기업체에 대한 인센티브",0,{"$f":"OFFSET('E03'!$E$1,MATCH(C262,'E03'!G:G,0)+3,0)","v":0}]
[null,"E3","3.4.2",null,"도시복원력 향상을 위한 비영리조직에 대한 인센티브",0,{"$f":"OFFSET('E03'!$E$1,MATCH(C263,'E03'!G:G,0)+3,0)","v":0}]
[null,"E3","3.4.3",null,"재난 복원력을 향상시키기 위한 주택소유자에 대한 인센티브",0,{"$f":"OFFSET('E03'!$E$1,MATCH(C264,'E03'!G:G,0)+3,0)","v":0}]
[null,"E4","4.1.1",null,"잠재적 인구 이동",0,{"$f":"OFFSET('E04'!$E$1,MATCH(C265,'E04'!G:G,0)+3,0)","v":0}]
[null,"E4","4.1.2",null,"재난 발생시에도 연속할 수 있는 경제활동",0,{"$f":"OFFSET('E04'!$E$1,MATCH(C266,'E04'!G:G,0)+3,0)","v":0}]
[null,"E4","4.1.2.1",null,"위험에 처한 기업 생산량",0,{"$f":"OFFSET('E04'!$E$1,MATCH(C267,'E04'!G:G,0)+3,0)","v":0}]
[null,"E4","4.1.3",null,"위험에 처한 농업용지",0,{"$f":"OFFSET('E04'!$E$1,MATCH(C268,'E04'!G:G,0)+3,0)","v":0}]
[null,"E4","4.2.1",null,"복원력을 증가시키는 도시 설계 솔루션",0,{"$f":"OFFSET('E04'!$E$1,MATCH(C269,'E04'!G:G,0)+3,0)","v":0}]
[null,"E4","4.3.1",null,"필수사항2에 명시된 위험들을 다루기 위한 건축법규의 존재",0,{"$f":"OFFSET('E04'!$E$1,MATCH(C270,'E04'!G:G,0)+3,0)","v":0}]
[null,"E4","4.3.2",null,"건축법규 갱신",0,{"$f":"OFFSET('E04'!$E$1,MATCH(C271,'E04'!G:G,0)+3,0)","v":0}]
[null,"E4","4.3.3",null,"지속가능한 건축설계 기준",0,{"$f":"OFFSET('E04'!$E$1,MATCH(C272,'E04'!G:G,0)+3,0)","v":0}]
[null,"E4","4.4.1",null,"토지이용구역의 적용",0,{"$f":"OFFSET('E04'!$E$1,MATCH(C273,'E04'!G:G,0)+3,0)","v":0}]
[null,"E4","4.4.2",null,"건축법규의 적용",0,{"$f":"OFFSET('E04'!$E$1,MATCH(C274,'E04'!G:G,0)+3,0)","v":0}]
[null,"E5","5.1.1",null,"생태계 서비스의 도시 재난 복원력에의 역할 인지",0,{"$f":"OFFSET('E05'!$E$1,MATCH(C275,'E05'!G:G,0)+3,0)","v":0}]
[null,"E5","5.1.2",null,"친환경 사회기반시설의 도시 정책과 프로젝트에 통합",0,{"$f":"OFFSET('E05'!$E$1,MATCH(C276,'E05'!G:G,0)+3,0)","v":0}]
[null,"E5","5.2.1",null,"생태계 건강",0,{"$f":"OFFSET('E05'!$E$1,MATCH(C277,'E05'!G:G,0)+3,0)","v":0}]
[null,"E5","5.2.2",null,"토지이용정책이 생태계 서비스에 미치는 영향",0,{"$f":"OFFSET('E05'!$E$1,MATCH(C278,'E05'!G:G,0)+3,0)","v":0}]
[null,"E5","5.3.1",null,"도시 사업에 친환경 사회기반시설의 정기적 반영",0,{"$f":"OFFSET('E05'!$E$1,MATCH(C279,'E05'!G:G,0)+3,0)","v":0}]
[null,"E5","5.3.2",null,"주요 환경 자산의 파악",0,{"$f":"OFFSET('E05'!$E$1,MATCH(C280,'E05'!G:G,0)+3,0)","v":0}]
[null,"E6","6.1.1",null,"관련 기술과 경험의 이용가능성",0,{"$f":"OFFSET('E06'!$E$1,MATCH(C281,'E06'!G:G,0)+3,0)","v":0}]
[null,"E6","6.1.2",null,"민간부문 연결",0,{"$f":"OFFSET('E06'!$E$1,MATCH(C282,'E06'!G:G,0)+3,0)","v":0}]
[null,"E6","6.1.3",null,"보험부문의 참여",0,{"$f":"OFFSET('E06'!$E$1,MATCH(C283,'E06'!G:G,0)+3,0)","v":0}]
[null,"E6","6.1.4",null,"시민 사회 연결",0,{"$f":"OFFSET('E06'!$E$1,MATCH(C284,'E06'!G:G,0)+3,0)","v":0}]
[null,"E6","6.2.1",null,"시민에게 교육과 인식을 위한 자료/메시지 전달",0,{"$f":"OFFSET('E06'!$E$1,MATCH(C285,'E06'!G:G,0)+3,0)","v":0}]
[null,"E6","6.2.1.1",null,"시민에게 교육과 인식을 위한 자료/메시지 전달",0,{"$f":"OFFSET('E06'!$E$1,MATCH(C286,'E06'!G:G,0)+3,0)","v":0}]
[null,"E6","6.3.1",null,"도시 복원력 현 상태에 대한 데이터가 다른 기관과 공유되는 범위",0,{"$f":"OFFSET('E06'!$E$1,MATCH(C287,'E06'!G:G,0)+3,0)","v":0}]
[null,"E6","6.3.2",null,"도시 복원력과 관련된 데이터가 지역사회 조직과 시민들에게 공유되는 범위",0,{"$f":"OFFSET('E06'!$E$1,MATCH(C288,'E06'!G:G,0)+3,0)","v":0}]
[null,"E6","6.4.1",null,"위험도와 복원력에 집중한 교육훈련의 존재 및 실시 여부(전문 훈련)",0,{"$f":"OFFSET('E06'!$E$1,MATCH(C289,'E06'!G:G,0)+3,0)","v":0}]
[null,"E6","6.4.1.1",null,"위험도와 복원력에 집중한 교육훈련의 존재 및 실시 여부(전문 훈련)",0,{"$f":"OFFSET('E06'!$E$1,MATCH(C290,'E06'!G:G,0)+3,0)","v":0}]
[null,"E6","6.4.2",null,"관련 교육훈련을 업데이트하기 위한 체계/과정",0,{"$f":"OFFSET('E06'!$E$1,MATCH(C291,'E06'!G:G,0)+3,0)","v":0}]
[null,"E6","6.5.1",null,"도시 내 모든 언어 집단에 대한 교육 및 훈련의 접근성",0,{"$f":"OFFSET('E06'!$E$1,MATCH(C292,'E06'!G:G,0)+3,0)","v":0}]
[null,"E6","6.6.1",null,"다른 도시, 나라, 기업들이 복원력 증진을 위해 무엇을 하는지에 학습하려는 노력",0,{"$f":"OFFSET('E06'!$E$1,MATCH(C293,'E06'!G:G,0)+3,0)","v":0}]
[null,"E7","7.1.1",null,"도시 내 지역사회 또는 민간조직의 범위",0,{"$f":"OFFSET('E07'!$E$1,MATCH(C294,'E07'!G:G,0)+3,0)","v":0}]
[null,"E7","7.1.2",null,"도시 내 지역사회 또는 민간조직의 범위",0,{"$f":"OFFSET('E07'!$E$1,MATCH(C295,'E07'!G:G,0)+3,0)","v":0}]
[null,"E7","7.1.2.1",null,"지역사회 네트워크의 효과성",0,{"$f":"OFFSET('E07'!$E$1,MATCH(C296,'E07'!G:G,0)+3,0)","v":0}]
[null,"E7","7.2.1",null,"지역사회 네트워크의 효과성",0,{"$f":"OFFSET('E07'!$E$1,MATCH(C297,'E07'!G:G,0)+3,0)","v":0}]
[null,"E7","7.2.2",null,"사회적 연결성 및 지역 응집력",0,{"$f":"OFFSET('E07'!$E$1,MATCH(C298,'E07'!G:G,0)+3,0)","v":0}]
[null,"E7","7.3.1",null,"취약계층의 참여",0,{"$f":"OFFSET('E07'!$E$1,MATCH(C299,'E07'!G:G,0)+3,0)","v":0}]
[null,"E7","7.3.2",null,"사업주가 근로자의 의사소통 채널로 역할을 하는 범위",0,{"$f":"OFFSET('E07'!$E$1,MATCH(C300,'E07'!G:G,0)+3,0)","v":0}]
[null,"E7","7.4.1",null,"사업연속성 계획 (사업이 지속될 수 있도록 계획하는 것)",0,{"$f":"OFFSET('E07'!$E$1,MATCH(C301,'E07'!G:G,0)+3,0)","v":0}]
[null,"E7","7.4.2",null,"참여의 빈도",0,{"$f":"OFFSET('E07'!$E$1,MATCH(C302,'E07'!G:G,0)+3,0)","v":0}]
[null,"E7","7.4.3",null,"시민들이 재난 전후 정보를 주고 받을 수 있는 모바일 및 이메일 “참여 시스템”의 활용",0,{"$f":"OFFSET('E07'!$E$1,MATCH(C303,'E07'!G:G,0)+3,0)","v":0}]
[null,"E8","8.1.1",null,"교육 효과성의 검증",0,{"$f":"OFFSET('E08'!$E$1,MATCH(C304,'E08'!G:G,0)+3,0)","v":0}]
[null,"E8","8.1.2",null,"예방적 사회기반시설의 적 절성(생태계는 자연적인 완충효과를 제공할 수 있 음 – 필수사항5 참조)",{"$f":"IF(G305=\"\",0,IF(G305=0,0,6-G305))","v":0},{"$f":"OFFSET('E08'!$E$1,MATCH(C305,'E08'!G:G,0)+3,0)","v":0}]
[null,"E8","8.2.1",null,"유지 보수의 효과",0,{"$f":"OFFSET('E08'!$E$1,MATCH(C306,'E08'!G:G,0)+3,0)","v":0}]
[null,"E8","8.2.2",null,"손실 위험에 처한 사용자 서비스 기간",0,{"$f":"OFFSET('E08'!$E$1,MATCH(C307,'E08'!G:G,0)+3,0)","v":0}]
[null,"E8","8.2.3",null,"수자원 또는 위생 시설의 장애로 손실 위험에 처할 수 있는 주요 자산 서비스 기간(예, 병원 또는 기타 중 요 자산에 대한 서비스)",0,{"$f":"OFFSET('E08'!$E$1,MATCH(C308,'E08'!G:G,0)+3,0)","v":0}]
[null,"E8","8.3.1",null,"서비스 복구 비용",0,{"$f":"OFFSET('E08'!$E$1,MATCH(C309,'E08'!G:G,0)+3,0)","v":0}]
[null,"E8","8.3.2",null,"손실 위험에 처한 사용자 서비스 기간",0,{"$f":"OFFSET('E08'!$E$1,MATCH(C310,'E08'!G:G,0)+3,0)","v":0}]
[null,"E8","8.3.3",null,"에너지 공급 실패로 인한 손실 위험에 처한 주요 자 산의 서비스 기간",0,{"$f":"OFFSET('E08'!$E$1,MATCH(C311,'E08'!G:G,0)+3,0)","v":0}]
[null,"E8","8.4.1",null,"복구 비용",0,{"$f":"OFFSET('E08'!$E$1,MATCH(C312,'E08'!G:G,0)+3,0)","v":0},"NA?",{"$f":"OFFSET('E08'!$E$1,MATCH(C312,'E08'!G:G,0)-1,0)","v":0}]
[null,"E8","8.4.2",null,"가스시스템의 안전성 및 무결성(해당되는 경우)",0,{"$f":"OFFSET('E08'!$E$1,MATCH(C313,'E08'!G:G,0)+3,0)","v":0},"NA?",{"$f":"OFFSET('E08'!$E$1,MATCH(C313,'E08'!G:G,0)-1,0)","v":0}]
[null,"E8","8.4.3",null,"손실 위험에 처한 사용자 서비스 기간",0,{"$f":"OFFSET('E08'!$E$1,MATCH(C314,'E08'!G:G,0)+3,0)","v":0},"NA?",{"$f":"OFFSET('E08'!$E$1,MATCH(C314,'E08'!G:G,0)-1,0)","v":0}]
[null,"E8","8.4.4",null,"가스 공급 실패로 인한 손실위험에 처한 주요 자산 서비스 기간",0,{"$f":"OFFSET('E08'!$E$1,MATCH(C315,'E08'!G:G,0)+3,0)","v":0},"NA?",{"$f":"OFFSET('E08'!$E$1,MATCH(C315,'E08'!G:G,0)-1,0)","v":0}]
[null,"E8","8.5.1",null,"서비스 복구 비용",0,{"$f":"OFFSET('E08'!$E$1,MATCH(C316,'E08'!G:G,0)+3,0)","v":0}]
[null,"E8","8.5.2",null,"도로 – 손실 위험에 처한 도로 시스템으로부터의 서비스",0,{"$f":"OFFSET('E08'!$E$1,MATCH(C317,'E08'!G:G,0)+3,0)","v":0}]
[null,"E8","8.5.3",null,"도로 – 주요 진입 및 대피 경로의 잔존",0,{"$f":"OFFSET('E08'!$E$1,MATCH(C318,'E08'!G:G,0)+3,0)","v":0},"NA?",{"$f":"OFFSET('E08'!$E$1,MATCH(C318,'E08'!G:G,0)-1,0)","v":0}]
[null,"E8","8.5.4",null,"철도/지하철 (해당되는 경우) – 손실위험에 처한 철도 시스템으로부터의 서비스",0,{"$f":"OFFSET('E08'!$E$1,MATCH(C319,'E08'!G:G,0)+3,0)","v":0},"NA?",{"$f":"OFFSET('E08'!$E$1,MATCH(C319,'E08'!G:G,0)-1,0)","v":0}]
[null,"E8","8.5.5",null,"공항(해당되는 경우)",0,{"$f":"OFFSET('E08'!$E$1,MATCH(C320,'E08'!G:G,0)+3,0)","v":0},"NA?",{"$f":"OFFSET('E08'!$E$1,MATCH(C320,'E08'!G:G,0)-1,0)","v":0}]
[null,"E8","8.5.6",null,"강/항구(해당되는 경우)",0,{"$f":"OFFSET('E08'!$E$1,MATCH(C321,'E08'!G:G,0)+3,0)","v":0},"NA?",{"$f":"OFFSET('E08'!$E$1,MATCH(C321,'E08'!G:G,0)-1,0)","v":0}]
[null,"E8","8.5.7",null,"기타 대중 교통 (버스 및 택시 등)",0,{"$f":"OFFSET('E08'!$E$1,MATCH(C322,'E08'!G:G,0)+3,0)","v":0}]
[null,"E8","8.6.1",null,"교통관련 서비스 복구 비용",0,{"$f":"OFFSET('E08'!$E$1,MATCH(C323,'E08'!G:G,0)+3,0)","v":0}]
[null,"E8","8.6.2",null,"손실 위험에 처한 서비스 기간",0,{"$f":"OFFSET('E08'!$E$1,MATCH(C324,'E08'!G:G,0)+3,0)","v":0}]
[null,"E8","8.6.3",null,"통신 실패로 인해 손실 위험에 처한 지정된 주요 자산 서비스 기간",0,{"$f":"OFFSET('E08'!$E$1,MATCH(C325,'E08'!G:G,0)+3,0)","v":0}]
[null,"E8","8.7.1",null,"복구 비용",0,{"$f":"OFFSET('E08'!$E$1,MATCH(C326,'E08'!G:G,0)+3,0)","v":0}]
[null,"E8","8.7.1.1",null,"보건 및 비상 시설의 구조적 안전 및 재난 복원력 (인력 파견 / 최초 대응 - 필 수사항9 참조)",0,{"$f":"OFFSET('E08'!$E$1,MATCH(C327,'E08'!G:G,0)+3,0)","v":0}]
[null,"E8","8.7.2",null,"보건 및 비상 시설의 구조적 안전 및 재난 복원력 (인력 파견 / 최초 대응 - 필 수사항9 참조)",0,{"$f":"OFFSET('E08'!$E$1,MATCH(C328,'E08'!G:G,0)+3,0)","v":0}]
[null,"E8","8.7.3",null,"보건 기록 및 자료",0,{"$f":"OFFSET('E08'!$E$1,MATCH(C329,'E08'!G:G,0)+3,0)","v":0}]
[null,"E8","8.8.1",null,"응급실 수요를 위한 시설 및 긴급 의료용품을 포함한 응급 의료의 이용가능성",0,{"$f":"OFFSET('E08'!$E$1,MATCH(C330,'E08'!G:G,0)+3,0)","v":0}]
[null,"E8","8.8.2",null,"교육시설의 구조적 안전성",0,{"$f":"OFFSET('E08'!$E$1,MATCH(C331,'E08'!G:G,0)+3,0)","v":0}]
[null,"E8","8.8.3",null,"수업 손실시간",0,{"$f":"OFFSET('E08'!$E$1,MATCH(C332,'E08'!G:G,0)+3,0)","v":0}]
[null,"E8","8.9.1",null,"교육 자료",0,{"$f":"OFFSET('E08'!$E$1,MATCH(C333,'E08'!G:G,0)+3,0)","v":0}]
[null,"E8","8.10.1",null,"교도소 시스템의 재난 복원력",0,{"$f":"OFFSET('E08'!$E$1,MATCH(C334,'E08'!G:G,0)+3,0)","v":0}]
[null,"E8","8.11.1",null,"모든 중요한 행정 기능의 연속성에 대한 안정성",0,{"$f":"OFFSET('E08'!$E$1,MATCH(C335,'E08'!G:G,0)+3,0)","v":0}]
[null,"E8","8.11.2",null,"정부기능의 연속성에 필수 적인 컴퓨터 시스템 및 데 이터에 대한 안정성\n",0,{"$f":"OFFSET('E08'!$E$1,MATCH(C336,'E08'!G:G,0)+3,0)","v":0}]
[null,"E9","9.1.1",null,"위에 언급된 사회기반시설 에 중요한 컴퓨터 시스템 및 데이터의 연속성에 대 한 안정성",0,{"$f":"OFFSET('E09'!$E$1,MATCH(C337,'E09'!G:G,0)+3,0)","v":0}]
[null,"E9","9.1.1.1",null,"조기 경보 시스템의 존재와 효과",0,{"$f":"OFFSET('E09'!$E$1,MATCH(C338,'E09'!G:G,0)+3,0)","v":0}]
[null,"E9","9.2.1",null,"경보 도달 범위",0,{"$f":"OFFSET('E09'!$E$1,MATCH(C339,'E09'!G:G,0)+3,0)","v":0}]
[null,"E9","9.3.1",null,"전문가 및 지역사회 단체 를 통합시키는 비상 대응 계획의 존재(사후 대응 – 필수사항10 참조)",0,{"$f":"OFFSET('E09'!$E$1,MATCH(C340,'E09'!G:G,0)+3,0)","v":0}]
[null,"E9","9.3.2",null,"경찰의 최초 대응 의무 지원을 위한 “급증” 용량",0,{"$f":"OFFSET('E09'!$E$1,MATCH(C341,'E09'!G:G,0)+3,0)","v":0}]
[null,"E9","9.4.1",null,"최초 대응, 기타 인력 수요 및 가용성에 대한 정의",0,{"$f":"OFFSET('E09'!$E$1,MATCH(C342,'E09'!G:G,0)+3,0)","v":0}]
[null,"E9","9.4.1.1",null,"장비, 구호품 수요 파악 및 가용성에 대한 정의",0,{"$f":"OFFSET('E09'!$E$1,MATCH(C343,'E09'!G:G,0)+3,0)","v":0}]
[null,"E9","9.5.1",null,"필요한 수요 대비 사용 가 능한 장비의 부족",0,{"$f":"OFFSET('E09'!$E$1,MATCH(C344,'E09'!G:G,0)+3,0)","v":0}]
[null,"E9","9.5.2",null,"식량 공급 능력",0,{"$f":"OFFSET('E09'!$E$1,MATCH(C345,'E09'!G:G,0)+3,0)","v":0}]
[null,"E9","9.5.2.1",null,"피난처/안전한 장소에 대 한 공급 능력",0,{"$f":"OFFSET('E09'!$E$1,MATCH(C346,'E09'!G:G,0)+3,0)","v":0}]
[null,"E9","9.5.3",null,"피난처/안전한 장소에 대 한 공급 능력",0,{"$f":"OFFSET('E09'!$E$1,MATCH(C347,'E09'!G:G,0)+3,0)","v":0}]
[null,"E9","9.5.4",null,"필수품 수요에 대한 공급 능력",0,{"$f":"OFFSET('E09'!$E$1,MATCH(C348,'E09'!G:G,0)+3,0)","v":0}]
[null,"E9","9.6.1",null,"연료 공급 능력",0,{"$f":"OFFSET('E09'!$E$1,MATCH(C349,'E09'!G:G,0)+3,0)","v":0}]
[null,"E9","9.6.2",null,"인근 도시/시도/정부기관과 주요 시스템/절차에 대한 상호 운용성",0,{"$f":"OFFSET('E09'!$E$1,MATCH(C350,'E09'!G:G,0)+3,0)","v":0}]
[null,"E9","9.6.3",null,"긴급 운영 센터",0,{"$f":"OFFSET('E09'!$E$1,MATCH(C351,'E09'!G:G,0)+3,0)","v":0}]
[null,"E9","9.7.1",null,"재난 이후 복구의 조정",0,{"$f":"OFFSET('E09'!$E$1,MATCH(C352,'E09'!G:G,0)+3,0)","v":0}]
[null,"E9","9.7.2",null,"연습 및 리허설 – 일반인 및 전문가 모두 참여",0,{"$f":"OFFSET('E09'!$E$1,MATCH(C353,'E09'!G:G,0)+3,0)","v":0}]
[null,"E10","10.1.1",null,"반복 연습 및 훈련의 효과",0,{"$f":"OFFSET('E10'!$E$1,MATCH(C354,'E10'!G:G,0)+3,0)","v":0}]
[null,"E10","10.1.2",null,"재난 이후 복구 및 경제 재가동 계획",0,{"$f":"OFFSET('E10'!$E$1,MATCH(C355,'E10'!G:G,0)+3,0)","v":0}]
[null,"E10","10.1.3",null,"사고 복구 및 재가동’ 계획에 대한 이해관계자의 협의 범위",0,{"$f":"OFFSET('E10'!$E$1,MATCH(C356,'E10'!G:G,0)+3,0)","v":0}]
[null,"E10","10.2.1",null,"유입되는 원조 및 자금지출 처리를 위한 재정 협약",0,{"$f":"OFFSET('E10'!$E$1,MATCH(C357,'E10'!G:G,0)+3,0)","v":0}]
[null,null,null,null,"순환 학습"]

{"sheet":"E01","index":3,"n_rows":664,"n_cols":7,"rows_kept":664,"cut":false,"hidden":false,"merged":[[103,2,108,3],[115,2,115,3],[116,2,116,3],[117,2,117,3],[118,2,123,3],[87,2,87,3],[88,2,93,3],[100,2,100,3],[101,2,101,3],[102,2,102,3],[73,2,73,3],[74,2,74,3],[75,2,80,3],[85,2,85,3],[86,2,86,3],[59,2,59,3],[60,2,60,3],[61,2,61,3],[62,2,67,3],[72,2,72,3],[34,2,39,3],[46,2,46,3],[47,2,47,3],[48,2,48,3],[49,2,54,3],[33,2,33,3],[18,2,18,3],[6,2,6,3],[5,2,5,3],[7,2,7,3],[8,2,13,3],[19,2,19,3],[20,2,20,3],[21,2,26,3],[31,2,31,3],[32,2,32,3]]}
[]
[null,null,null,null,null,null,""]
[null,"1.1 - 계획 수립",null,null,null,null,"1.1"]
[null,null,null,null,null,null,""]
[null,"1.1.1 - 계획 수립 시 위험도 고려",null,null,null,null,"1.1.1"]
[null,"주제 / 현안","비고",null,null,null,""]
[null,null,null,null,null,null,""]
[null,"대답","증빙수단(설명과 증빙자료)",null,null,null,""]
[null,null,null,null,null,{"$f":"IF(E9=1,TRUE,FALSE)","v":false},""]
[null,null,null,null,null,{"$f":"IF(E9=2,TRUE,FALSE)","v":false},""]
[null,null,null,null,null,{"$f":"IF(E9=3,TRUE,FALSE)","v":false},""]
[null,null,null,null,null,{"$f":"IF(E9=4,TRUE,FALSE)","v":false},""]
[null,null,null,null,null,{"$f":"IF(E9=5,TRUE,FALSE)","v":false},""]
[null,null,null,null,null,{"$f":"IF(E9=6,TRUE,FALSE)","v":false},""]
[null,"최상의 복원력을 달성하기 위한 활동계획","담당부서","추진기간",null,null,""]
[null,null,null,null,null,null,""]
[null,null,null,null,null,null,""]
[null,"1.1.2 - 계획 수립에 따른 협의",null,null,null,null,"1.1.2"]
[null,"주제 / 현안","비고",null,null,null,""]
[null,null,null,null,null,null,""]
[null,"대답","증빙수단(설명과 증빙자료)",null,null,null,""]
[null,null,null,null,null,{"$f":"IF(E22=1,TRUE,FALSE)","v":false},""]
[null,null,null,null,null,{"$f":"IF(E22=2,TRUE,FALSE)","v":false},""]
[null,null,null,null,null,{"$f":"IF(E22=3,TRUE,FALSE)","v":false},""]
[null,null,null,null,null,{"$f":"IF(E22=4,TRUE,FALSE)","v":false},""]
[null,null,null,null,null,{"$f":"IF(E22=5,TRUE,FALSE)","v":false},""]
[null,null,null,null,null,{"$f":"IF(E22=6,TRUE,FALSE)","v":false},""]
[null,"최상의 복원력을 달성하기 위한 활동계획","담당부서","추진기간",null,null,""]
[null,null,null,null,null,null,""]
[null,null,null,null,null,null,""]
[null,"1.1.3 - 전략계획 검토",null,null,null,null,"1.1.3"]
[null,"주제 / 현안","비고",null,null,null,""]
[null,null,null,null,null,null,""]
[null,"대답","증빙수단(설명과 증빙자료)",null,null,null,""]
[null,null,null,null,null,{"$f":"IF(E35=1,TRUE,FALSE)","v":false},""]
[null,null,null,null,null,{"$f":"IF(E35=2,TRUE,FALSE)","v":false},""]
[null,null,null,null,null,{"$f":"IF(E35=3,TRUE,FALSE)","v":false},""]
[null,null,null,null,null,{"$f":"IF(E35=4,TRUE,FALSE)","v":false},""]
[null,null,null,null,null,{"$f":"IF(E35=5,TRUE,FALSE)","v":false},""]
[null,null,null,null,null,{"$f":"IF(E35=6,TRUE,FALSE)","v":false},""]
[null,"최상의 복원력을 달성하기 위한 활동계획","담당부서","추진기간",null,null,""]
[null,null,null,null,null,null,""]
[null,null,null,null,null,null,""]
[null,"1.2 - 조직, 조정과 참여",null,null,null,null,"1.2"]
[null,null,null,null,null,null,""]
[null,"1.2.1 - 재난발생 이전의 계획과 준비",null,null,null,null,"1.2.1"]
[null,"주제 / 현안","비고",null,null,null,""]
[null,null,null,null,null,null,""]
[null,"대답","증빙수단(설명과 증빙자료)",null,null,null,""]
[null,null,null,null,null,{"$f":"IF(E50=1,TRUE,FALSE)","v":false},""]
[null,null,null,null,null,{"$f":"IF(E50=2,TRUE,FALSE)","v":false},""]
[null,null,null,null,null,{"$f":"IF(E50=3,TRUE,FALSE)","v":false},""]
[null,null,null,null,null,{"$f":"IF(E50=4,TRUE,FALSE)","v":false},""]
[null,null,null,null,null,{"$f":"IF(E50=5,TRUE,FALSE)","v":false},""]
[null,null,null,null,null,{"$f":"IF(E50=6,TRUE,FALSE)","v":false},""]
[null,"최상의 복원력을 달성하기 위한 활동계획","담당부서","추진기간",null,null,""]
[null,null,null,null,null,null,""]
[null,null,null,null,null,null,""]
[null,"1.2.2 - 재난 대응의 조직화",null,null,null,null,"1.2.2"]
[null,"주제 / 현안","비고",null,null,null,""]
[null,null,null,null,null,null,""]
[null,"대답","증빙수단(설명과 증빙자료)",null,null,null,""]
[null,null,null,null,null,{"$f":"IF(E63=1,TRUE,FALSE)","v":false},""]
[null,null,null,null,null,{"$f":"IF(E63=2,TRUE,FALSE)","v":false},""]
[null,null,null,null,null,{"$f":"IF(E63=3,TRUE,FALSE)","v":false},""]
[null,null,null,null,null,{"$f":"IF(E63=4,TRUE,FALSE)","v":false},""]
[null,null,null,null,null,{"$f":"IF(E63=5,TRUE,FALSE)","v":false},""]
[null,null,null,null,null,{"$f":"IF(E63=6,TRUE,FALSE)","v":false},""]
[null,"최상의 복원력을 달성하기 위한 활동계획","담당부서","추진기간",null,null,""]
[null,null,null,null,null,null,""]
[null,null,null,null,null,null,""]
[null,"1.2.3 - 조직관리, 조정, 참여를위한 도시 자원",null,null,null,null,"1.2.3"]
[null,"주제 / 현안","비고",null,null,null,""]
[null,null,null,null,null,null,""]
[null,"대답","증빙수단(설명과 증빙자료)",null,null,null,""]
[null,null,null,null,null,{"$f":"IF(E76=1,TRUE,FALSE)","v":false},""]
[null,null,null,null,null,{"$f":"IF(E76=2,TRUE,FALSE)","v":false},""]
[null,null,null,null,null,{"$f":"IF(E76=3,TRUE,FALSE)","v":false},""]
[null,null,null,null,null,{"$f":"IF(E76=4,TRUE,FALSE)","v":false},""]
[null,null,null,null,null,{"$f":"IF(E76=5,TRUE,FALSE)","v":false},""]
[null,null,null,null,null,{"$f":"IF(E76=6,TRUE,FALSE)","v":false},""]
[null,"최상의 복원력을 달성하기 위한 활동계획","담당부서","추진기간",null,null,""]
[null,null,null,null,null,null,""]
[null,null,null,null,null,null,""]
[null,"1.2.4 - 물리적 기여사항의 확인",null,null,null,null,"1.2.4"]
[null,"주제 / 현안","비고",null,null,null,""]
[null,null,null,null,null,null,""]
[null,"대답","증빙수단(설명과 증빙자료)",null,null,null,""]
[null,null,null,null,null,{"$f":"IF(E89=1,TRUE,FALSE)","v":false},""]
[null,null,null,null,null,{"$f":"IF(E89=2,TRUE,FALSE)","v":false},""]
[null,null,null,null,null,{"$f":"IF(E89=3,TRUE,FALSE)","v":false},""]
[null,null,null,null,null,{"$f":"IF(E89=4,TRUE,FALSE)","v":false},""]
[null,null,null,null,null,{"$f":"IF(E89=5,TRUE,FALSE)","v":false},""]
[null,null,null,null,null,{"$f":"IF(E89=6,TRUE,FALSE)","v":false},""]
[null,"최상의 복원력을 달성하기 위한 활동계획","담당부서","추진기간",null,null,""]
[null,null,null,null,null,null,""]
[null,null,null,null,null,null,""]
[null,"1.3 - 통합",null,null,null,null,"1.3"]
[null,null,null,null,null,null,""]
[null,"1.3.1 - 다른 계획과재난 복원력의 통합",null,null,null,null,"1.3.1"]
[null,"주제 / 현안","비고",null,null,null,""]
[null,null,null,null,null,null,""]
[null,"대답","증빙수단(설명과 증빙자료)",null,null,null,""]
[null,null,null,null,null,{"$f":"IF(E104=1,TRUE,FALSE)","v":false},""]
[null,null,null,null,null,{"$f":"IF(E104=2,TRUE,FALSE)","v":false},""]
[null,null,null,null,null,{"$f":"IF(E104=3,TRUE,FALSE)","v":false},""]
[null,null,null,null,null,{"$f":"IF(E104=4,TRUE,FALSE)","v":false},""]
[null,null,null,null,null,{"$f":"IF(E104=5,TRUE,FALSE)","v":false},""]
[null,null,null,null,null,{"$f":"IF(E104=6,TRUE,FALSE)","v":false},""]
[null,"최상의 복원력을 달성하기 위한 활동계획","담당부서","추진기간",null,null,""]
[null,null,null,null,null,null,""]
[null,null,null,null,null,null,""]
[null,"1.4 - 데이터 수집, 공개 및 공유",null,null,null,null,"1.4"]
[null,null,null,null,null,null,""]
[null,"1.4.1 - 도시 복원력에 참여한 다른 기관과의 도시 복원력 데이터 공유 범위",null,null,null,null,"1.4.1"]
[null,"주제 / 현안","비고",null,null,null,""]
[null,null,null,null,null,null,""]
[null,"대답","증빙수단(설명과 증빙자료)",null,null,null,""]
[null,null,null,null,null,{"$f":"IF(E119=1,TRUE,FALSE)","v":false},""]
[null,null,null,null,null,{"$f":"IF(E119=2,TRUE,FALSE)","v":false},""]
[null,null,null,null,null,{"$f":"IF(E119=3,TRUE,FALSE)","v":false},""]
[null,null,null,null,null,{"$f":"IF(E119=4,TRUE,FALSE)","v":false},""]
[null,null,null,null,null,{"$f":"IF(E119=5,TRUE,FALSE)","v":false},""]
[null,null,null,null,null,{"$f":"IF(E119=6,TRUE,FALSE)","v":false},""]
[null,"최상의 복원력을 달성하기 위한 활동계획","담당부서","추진기간",null,null,""]
[null,null,null,null,null,null,""]
[null,null,null,null,null,null,""]
[null,null,null,null,null,null,""]
[null,null,null,null,null,null,""]
[null,null,null,null,null,null,""]
[null,null,null,null,null,null,""]
[null,null,null,null,null,null,""]
[null,null,null,null,null,null,""]
[null,null,null,null,null,null,""]
[null,null,null,null,null,null,""]
[null,null,null,null,null,null,""]
[null,null,null,null,null,null,""]
[null,null,null,null,null,null,""]
[null,null,null,null,null,null,""]
[null,null,null,null,null,null,""]
[null,null,null,null,null,null,""]
[null,null,null,null,null,null,""]
[null,null,null,null,null,null,""]
[null,null,null,null,null,null,""]
[null,null,null,null,null,null,""]
[null,null,null,null,null,null,""]
[null,null,null,null,null,null,""]
[null,null,null,null,null,null,""]
[null,null,null,null,null,null,""]
[null,null,null,null,null,null,""]
[null,null,null,null,null,null,""]
[null,null,null,null,null,null,""]
[null,null,null,null,null,null,""]
[null,null,null,null,null,null,""]
[null,null,null,null,null,null,""]
[null,null,null,null,null,null,""]
[null,null,null,null,null,null,""]
[null,null,null,null,null,null,""]
[null,null,null,null,null,null,""]
[null,null,null,null,null,null,""]
[null,null,null,null,null,null,""]
[null,null,null,null,null,null,""]
[null,null,null,null,null,null,""]
[null,null,null,null,null,null,""]
[null,null,null,null,null,null,""]
[null,null,null,null,null,null,""]
[null,null,null,null,null,null,""]
[null,null,null,null,null,null,""]
[null,null,null,null,null,null,""]
[null,null,null,null,null,null,""]
[null,null,null,null,null,null,""]
[null,null,null,null,null,null,""]
[null,null,null,null,null,null,""]
[null,null,null,null,null,null,""]
[null,null,null,null,null,null,""]
[null,null,null,null,null,null,""]
[null,null,null,null,null,null,""]
[null,null,null,null,null,null,""]
[null,null,null,null,null,null,""]
[null,null,null,null,null,null,""]
[null,null,null,null,null,null,""]
[null,null,null,null,null,null,""]
[null,null,null,null,null,null,""]
[null,null,null,null,null,null,""]
[null,null,null,null,null,null,""]
[null,null,null,null,null,null,""]
[null,null,null,null,null,null,""]
[null,null,null,null,null,null,""]
[null,null,null,null,null,null,""]
[null,null,null,null,null,null,""]
[null,null,null,null,null,null,""]
[null,null,null,null,null,null,""]
[null,null,null,null,null,null,""]
[null,null,null,null,null,null,""]
[null,null,null,null,null,null,""]
[null,null,null,null,null,null,""]
[null,null,null,null,null,null,""]
[null,null,null,null,null,null,""]
[null,null,null,null,null,null,""]
[null,null,null,null,null,null,""]
[null,null,null,null,null,null,""]
[null,null,null,null,null,null,""]
[null,null,null,null,null,null,""]
[null,null,null,null,null,null,""]
[null,null,null,null,null,null,""]
[null,null,null,null,null,null,""]
[null,null,null,null,null,null,""]
[null,null,null,null,null,null,""]
[null,null,null,null,null,null,""]
[null,null,null,null,null,null,""]
[null,null,null,null,null,null,""]
[null,null,null,null,null,null,""]
[null,null,null,null,null,null,""]
[null,null,null,null,null,null,""]
[null,null,null,null,null,null,""]
[null,null,null,null,null,null,""]
[null,null,null,null,null,null,""]
[null,null,null,null,null,null,""]
[null,null,null,null,null,null,""]
[null,null,null,null,null,null,""]
[null,null,null,null,null,null,""]
[null,null,null,null,null,null,""]
[null,null,null,null,null,null,""]
[null,null,null,null,null,null,""]
[null,null,null,null,null,null,""]
[null,null,null,null,null,null,""]
[null,null,null,null,null,null,""]
[null,null,null,null,null,null,""]
[null,null,null,null,null,null,""]
[null,null,null,null,null,null,""]
[null,null,null,null,null,null,""]
[null,null,null,null,null,null,""]
[null,null,null,null,null,null,""]
[null,null,null,null,null,null,""]
[null,null,null,null,null,null,""]
[null,null,null,null,null,null,""]
[null,null,null,null,null,null,""]
[null,null,null,null,null,null,""]
[null,null,null,null,null,null,""]
[null,null,null,null,null,null,""]
[null,null,null,null,null,null,""]
[null,null,null,null,null,null,""]
[null,null,null,null,null,null,""]
[null,null,null,null,null,null,""]
[null,null,null,null,null,null,""]
[null,null,null,null,null,null,""]
[null,null,null,null,null,null,""]
[null,null,null,null,null,null,""]
[null,null,null,null,null,null,""]
[null,null,null,null,null,null,""]
[null,null,null,null,null,null,""]
[null,null,null,null,null,null,""]
[null,null,null,null,null,null,""]
[null,null,null,null,null,null,""]
[null,null,null,null,null,null,""]
[null,null,null,null,null,null,""]
[null,null,null,null,null,null,""]
[null,null,null,null,null,null,""]
[null,null,null,null,null,null,""]
[null,null,null,null,null,null,""]
[null,null,null,null,null,null,""]
[null,null,null,null,null,null,""]
[null,null,null,null,null,null,""]
[null,null,null,null,null,null,""]
[null,null,null,null,null,null,""]
[null,null,null,null,null,null,""]
[null,null,null,null,null,null,""]
[null,null,null,null,null,null,""]
[null,null,null,null,null,null,""]
[null,null,null,null,null,null,""]
[null,null,null,null,null,null,""]
[null,null,null,null,null,null,""]
[null,null,null,null,null,null,""]
[null,null,null,null,null,null,""]
[null,null,null,null,null,null,""]
[null,null,null,null,null,null,""]
[null,null,null,null,null,null,""]
[null,null,null,null,null,null,""]
[null,null,null,null,null,null,""]
[null,null,null,null,null,null,""]
[null,null,null,null,null,null,""]
[null,null,null,null,null,null,""]
[null,null,null,null,null,null,""]
[null,null,null,null,null,null,""]
[null,null,null,null,null,null,""]
[null,null,null,null,null,null,""]
[null,null,null,null,null,null,""]
[null,null,null,null,null,null,""]
[null,null,null,null,null,null,""]
[null,null,null,null,null,null,""]
[null,null,null,null,null,null,""]
[null,null,null,null,null,null,""]
[null,null,null,null,null,null,""]
[null,null,null,null,null,null,""]
[null,null,null,null,null,null,""]
[null,null,null,null,null,null,""]
[null,null,null,null,null,null,""]
[null,null,null,null,null,null,""]
[null,null,null,null,null,null,""]
[null,null,null,null,null,null,""]
[null,null,null,null,null,null,""]
[null,null,null,null,null,null,""]
[null,null,null,null,null,null,""]
[null,null,null,null,null,null,""]
[null,null,null,null,null,null,""]
[null,null,null,null,null,null,""]
[null,null,null,null,null,null,""]
[null,null,null,null,null,null,""]
[null,null,null,null,null,null,""]
[null,null,null,null,null,null,""]
[null,null,null,null,null,null,""]
[null,null,null,null,null,null,""]
[null,null,null,null,null,null,""]
[null,null,null,null,null,null,""]
[null,null,null,null,null,null,""]
[null,null,null,null,null,null,""]
[null,null,null,null,null,null,""]
[null,null,null,null,null,null,""]
[null,null,null,null,null,null,""]
[null,null,null,null,null,null,""]
[null,null,null,null,null,null,""]
[null,null,null,null,null,null,""]
[null,null,null,null,null,null,""]
[null,null,null,null,null,null,""]
[null,null,null,null,null,null,""]
[null,null,null,null,null,null,""]
[null,null,null,null,null,null,""]
[null,null,null,null,null,null,""]
[null,null,null,null,null,null,""]
[null,null,null,null,null,null,""]
[null,null,null,null,null,null,""]
[null,null,null,null,null,null,""]
[null,null,null,null,null,null,""]
[null,null,null,null,null,null,""]
[null,null,null,null,null,null,""]
[null,null,null,null,null,null,""]
[null,null,null,null,null,null,""]
[null,null,null,null,null,null,""]
[null,null,null,null,null,null,""]
[null,null,null,null,null,null,""]
[null,null,null,null,null,null,""]
[null,null,null,null,null,null,""]
[null,null,null,null,null,null,""]
[null,null,null,null,null,null,""]
[null,null,null,null,null,null,""]
[null,null,null,null,null,null,""]
[null,null,null,null,null,null,""]
[null,null,null,null,null,null,""]
[null,null,null,null,null,null,""]
[null,null,null,null,null,null,""]
[null,null,null,null,null,null,""]
[null,null,null,null,null,null,""]
[null,null,null,null,null,null,""]
[null,null,null,null,null,null,""]
[null,null,null,null,null,null,""]
[null,null,null,null,null,null,""]
[null,null,null,null,null,null,""]
[null,null,null,null,null,null,""]
[null,null,null,null,null,null,""]
[null,null,null,null,null,null,""]
[null,null,null,null,null,null,""]
[null,null,null,null,null,null,""]
[null,null,null,null,null,null,""]
[null,null,null,null,null,null,""]
[null,null,null,null,null,null,""]
[null,null,null,null,null,null,""]
[null,null,null,null,null,null,""]
[null,null,null,null,null,null,""]
[null,null,null,null,null,null,""]
[null,null,null,null,null,null,""]
[null,null,null,null,null,null,""]
[null,null,null,null,null,null,""]
[null,null,null,null,null,null,""]
[null,null,null,null,null,null,""]
[null,null,null,null,null,null,""]
[null,null,null,null,null,null,""]
[null,null,null,null,null,null,""]
[null,null,null,null,null,null,""]
[null,null,null,null,null,null,""]
[null,null,null,null,null,null,""]
[null,null,null,null,null,null,""]
[null,null,null,null,null,null,""]
[null,null,null,null,null,null,""]
[null,null,null,null,null,null,""]
[null,null,null,null,null,null,""]
[null,null,null,null,null,null,""]
[null,null,null,null,null,null,""]
[null,null,null,null,null,null,""]
[null,null,null,null,null,null,""]
[null,null,null,null,null,null,""]
[null,null,null,null,null,null,""]
[null,null,null,null,null,null,""]
[null,null,null,null,null,null,""]
[null,null,null,null,null,null,""]
[null,null,null,null,null,null,""]
[null,null,null,null,null,null,""]
[null,null,null,null,null,null,""]
[null,null,null,null,null,null,""]
[null,null,null,null,null,null,""]
[null,null,null,null,null,null,""]
[null,null,null,null,null,null,""]
[null,null,null,null,null,null,""]
[null,null,null,null,null,null,""]
[null,null,null,null,null,null,""]
[null,null,null,null,null,null,""]
[null,null,null,null,null,null,""]
[null,null,null,null,null,null,""]
[null,null,null,null,null,null,""]
[null,null,null,null,null,null,""]
[null,null,null,null,null,null,""]
[null,null,null,null,null,null,""]
[null,null,null,null,null,null,""]
[null,null,null,null,null,null,""]
[null,null,null,null,null,null,""]
[null,null,null,null,null,null,""]
[null,null,null,null,null,null,""]
[null,null,null,null,null,null,""]
[null,null,null,null,null,null,""]
[null,null,null,null,null,null,""]
[null,null,null,null,null,null,""]
[null,null,null,null,null,null,""]
[null,null,null,null,null,null,""]
[null,null,null,null,null,null,""]
[null,null,null,null,null,null,""]
[null,null,null,null,null,null,""]
[null,null,null,null,null,null,""]
[null,null,null,null,null,null,""]
[null,null,null,null,null,null,""]
[null,null,null,null,null,null,""]
[null,null,null,null,null,null,""]
[null,null,null,null,null,null,""]
[null,null,null,null,null,null,""]
[null,null,null,null,null,null,""]
[null,null,null,null,null,null,""]
[null,null,null,null,null,null,""]
[null,null,null,null,null,null,""]
[null,null,null,null,null,null,""]
[null,null,null,null,null,null,""]
[null,null,null,null,null,null,""]
[null,null,null,null,null,null,""]
[null,null,null,null,null,null,""]
[null,null,null,null,null,null,""]
[null,null,null,null,null,null,""]
[null,null,null,null,null,null,""]
[null,null,null,null,null,null,""]
[null,null,null,null,null,null,""]
[null,null,null,null,null,null,""]
[null,null,null,null,null,null,""]
[null,null,null,null,null,null,""]
[null,null,null,null,null,null,""]
[null,null,null,null,null,null,""]
[null,null,null,null,null,null,""]
[null,null,null,null,null,null,""]
[null,null,null,null,null,null,""]
[null,null,null,null,null,null,""]
[null,null,null,null,null,null,""]
[null,null,null,null,null,null,""]
[null,null,null,null,null,null,""]
[null,null,null,null,null,null,""]
[null,null,null,null,null,null,""]
[null,null,null,null,null,null,""]
[null,null,null,null,null,null,""]
[null,null,null,null,null,null,""]
[null,null,null,null,null,null,""]
[null,null,null,null,null,null,""]
[null,null,null,null,null,null,""]
[null,null,null,null,null,null,""]
[null,null,null,null,null,null,""]
[null,null,null,null,null,null,""]
[null,null,null,null,null,null,""]
[null,null,null,null,null,null,""]
[null,null,null,null,null,null,""]
[null,null,null,null,null,null,""]
[null,null,null,null,null,null,""]
[null,null,null,null,null,null,""]
[null,null,null,null,null,null,""]
[null,null,null,null,null,null,""]
[null,null,null,null,null,null,""]
[null,null,null,null,null,null,""]
[null,null,null,null,null,null,""]
[null,null,null,null,null,null,""]
[null,null,null,null,null,null,""]
[null,null,null,null,null,null,""]
[null,null,null,null,null,null,""]
[null,null,null,null,null,null,""]
[null,null,null,null,null,null,""]
[null,null,null,null,null,null,""]
[null,null,null,null,null,null,""]
[null,null,null,null,null,null,""]
[null,null,null,null,null,null,""]
[null,null,null,null,null,null,""]
[null,null,null,null,null,null,""]
[null,null,null,null,null,null,""]
[null,null,null,null,null,null,""]
[null,null,null,null,null,null,""]
[null,null,null,null,null,null,""]
[null,null,null,null,null,null,""]
[null,null,null,null,null,null,""]
[null,null,null,null,null,null,""]
[null,null,null,null,null,null,""]
[null,null,null,null,null,null,""]
[null,null,null,null,null,null,""]
[null,null,null,null,null,null,""]
[null,null,null,null,null,null,""]
[null,null,null,null,null,null,""]
[null,null,null,null,null,null,""]
[null,null,null,null,null,null,""]
[null,null,null,null,null,null,""]
[null,null,null,null,null,null,""]
[null,null,null,null,null,null,""]
[null,null,null,null,null,null,""]
[null,null,null,null,null,null,""]
[null,null,null,null,null,null,""]
[null,null,null,null,null,null,""]
[null,null,null,null,null,null,""]
[null,null,null,null,null,null,""]
[null,null,null,null,null,null,""]
[null,null,null,null,null,null,""]
[null,null,null,null,null,null,""]
[null,null,null,null,null,null,""]
[null,null,null,null,null,null,""]
[null,null,null,null,null,null,""]
[null,null,null,null,null,null,""]
[null,null,null,null,null,null,""]
[null,null,null,null,null,null,""]
[null,null,null,null,null,null,""]
[null,null,null,null,null,null,""]
[null,null,null,null,null,null,""]
[null,null,null,null,null,null,""]
[null,null,null,null,null,null,""]
[null,null,null,null,null,null,""]
[null,null,null,null,null,null,""]
[null,null,null,null,null,null,""]
[null,null,null,null,null,null,""]
[null,null,null,null,null,null,""]
[null,null,null,null,null,null,""]
[null,null,null,null,null,null,""]
[null,null,null,null,null,null,""]
[null,null,null,null,null,null,""]
[null,null,null,null,null,null,""]
[null,null,null,null,null,null,""]
[null,null,null,null,null,null,""]
[null,null,null,null,null,null,""]
[null,null,null,null,null,null,""]
[null,null,null,null,null,null,""]
[null,null,null,null,null,null,""]
[null,null,null,null,null,null,""]
[null,null,null,null,null,null,""]
[null,null,null,null,null,null,""]
[null,null,null,null,null,null,""]
[null,null,null,null,null,null,""]
[null,null,null,null,null,null,""]
[null,null,null,null,null,null,""]
[null,null,null,null,null,null,""]
[null,null,null,null,null,null,""]
[null,null,null,null,null,null,""]
[null,null,null,null,null,null,""]
[null,null,null,null,null,null,""]
[null,null,null,null,null,null,""]
[null,null,null,null,null,null,""]
[null,null,null,null,null,null,""]
[null,null,null,null,null,null,""]
[null,null,null,null,null,null,""]
[null,null,null,null,null,null,""]
[null,null,null,null,null,null,""]
[null,null,null,null,null,null,""]
[null,null,null,null,null,null,""]
[null,null,null,null,null,null,""]
[null,null,null,null,null,null,""]
[null,null,null,null,null,null,""]
[null,null,null,null,null,null,""]
[null,null,null,null,null,null,""]
[null,null,null,null,null,null,""]
[null,null,null,null,null,null,""]
[null,null,null,null,null,null,""]
[null,null,null,null,null,null,""]
[null,null,null,null,null,null,""]
[null,null,null,null,null,null,""]
[null,null,null,null,null,null,""]
[null,null,null,null,null,null,""]
[null,null,null,null,null,null,""]
[null,null,null,null,null,null,""]
[null,null,null,null,null,null,""]
[null,null,null,null,null,null,""]
[null,null,null,null,null,null,""]
[null,null,null,null,null,null,""]
[null,null,null,null,null,null,""]
[null,null,null,null,null,null,""]
[null,null,null,null,null,null,""]
[null,null,null,null,null,null,""]
[null,null,null,null,null,null,""]
[null,null,null,null,null,null,""]
[null,null,null,null,null,null,""]
[null,null,null,null,null,null,""]
[null,null,null,null,null,null,""]
[null,null,null,null,null,null,""]
[null,null,null,null,null,null,""]
[null,null,null,null,null,null,""]
[null,null,null,null,null,null,""]
[null,null,null,null,null,null,""]
[null,null,null,null,null,null,""]
[null,null,null,null,null,null,""]
[null,null,null,null,null,null,""]
[null,null,null,null,null,null,""]
[null,null,null,null,null,null,""]
[null,null,null,null,null,null,""]
[null,null,null,null,null,null,""]
[null,null,null,null,null,null,""]
[null,null,null,null,null,null,""]
[null,null,null,null,null,null,""]
[null,null,null,null,null,null,""]
[null,null,null,null,null,null,""]
[null,null,null,null,null,null,""]
[null,null,null,null,null,null,""]
[null,null,null,null,null,null,""]
[null,null,null,null,null,null,""]
[null,null,null,null,null,null,""]
[null,null,null,null,null,null,""]
[null,null,null,null,null,null,""]
[null,null,null,null,null,null,""]
[null,null,null,null,null,null,""]
[null,null,null,null,null,null,""]
[null,null,null,null,null,null,""]
[null,null,null,null,null,null,""]
[null,null,null,null,null,null,""]
[null,null,null,null,null,null,""]
[null,null,null,null,null,null,""]
[null,null,null,null,null,null,""]
[null,null,null,null,null,null,""]
[null,null,null,null,null,null,""]
[null,null,null,null,null,null,""]
[null,null,null,null,null,null,""]
[null,null,null,null,null,null,""]
[null,null,null,null,null,null,""]
[null,null,null,null,null,null,""]
[null,null,null,null,null,null,""]
[null,null,null,null,null,null,""]
[null,null,null,null,null,null,""]
[null,null,null,null,null,null,""]
[null,null,null,null,null,null,""]
[null,null,null,null,null,null,""]
[null,null,null,null,null,null,""]
[null,null,null,null,null,null,""]
[null,null,null,null,null,null,""]
[null,null,null,null,null,null,""]
[null,null,null,null,null,null,""]
[null,null,null,null,null,null,""]
[null,null,null,null,null,null,""]
[null,null,null,null,null,null,""]
[null,null,null,null,null,null,""]
[null,null,null,null,null,null,""]
[null,null,null,null,null,null,""]
[null,null,null,null,null,null,""]
[null,null,null,null,null,null,""]
[null,null,null,null,null,null,""]
[null,null,null,null,null,null,""]
[null,null,null,null,null,null,""]
[null,null,null,null,null,null,""]
[null,null,null,null,null,null,""]
[null,null,null,null,null,null,""]
[null,null,null,null,null,null,""]
[null,null,null,null,null,null,""]
[null,null,null,null,null,null,""]
[null,null,null,null,null,null,""]

{"sheet":"E02","index":4,"n_rows":664,"n_cols":7,"rows_kept":664,"cut":false,"hidden":false,"merged":[[78,2,78,3],[79,2,79,3],[80,2,80,3],[81,2,86,3],[51,2,56,3],[63,2,63,3],[64,2,64,3],[65,2,65,3],[66,2,71,3],[5,2,5,3],[6,2,6,3],[7,2,7,3],[8,2,13,3],[20,2,20,3],[21,2,21,3],[22,2,22,3],[23,2,28,3],[33,2,33,3],[34,2,34,3],[35,2,35,3],[36,2,41,3],[48,2,48,3],[49,2,49,3],[50,2,50,3]]}
[]
[null,null,null,null,null,null,""]
[null,"2.1 - 위험요인 평가",null,null,null,null,"2.1"]
[null,null,null,null,null,null,""]
[null,"2.1.1 - 도시가 당면한 위험요인에 대한 정보과 위험요인이 재난으로 발생한 가능성",null,null,null,null,"2.1.1"]
[null,"주제 / 현안","비고",null,null,null,""]
[null,null,null,null,null,null,""]
[null,"대답","증빙수단(설명과 증빙자료)",null,null,null,""]
[null,null,null,null,null,{"$f":"IF(E9=1,TRUE,FALSE)","v":false},""]
[null,null,null,null,null,{"$f":"IF(E9=2,TRUE,FALSE)","v":false},""]
[null,null,null,null,null,{"$f":"IF(E9=3,TRUE,FALSE)","v":false},""]
[null,null,null,null,null,{"$f":"IF(E9=4,TRUE,FALSE)","v":false},""]
[null,null,null,null,null,{"$f":"IF(E9=5,TRUE,FALSE)","v":false},""]
[null,null,null,null,null,{"$f":"IF(E9=6,TRUE,FALSE)","v":false},""]
[null,"최상의 복원력을 달성하기 위한 활동계획","담당부서","추진기간",null,null,""]
[null,null,null,null,null,null,""]
[null,null,null,null,null,null,""]
[null,"2.2 - 노출과 결과에 대한 지식",null,null,null,null,"2.2"]
[null,null,null,null,null,null,""]
[null,"2.2.1 - 노출과 취약성에 대한 지식",null,null,null,null,"2.2.1"]
[null,"주제 / 현안","비고",null,null,null,""]
[null,null,null,null,null,null,""]
[null,"대답","증빙수단(설명과 증빙자료)",null,null,null,""]
[null,null,null,null,null,{"$f":"IF(E24=1,TRUE,FALSE)","v":false},""]
[null,null,null,null,null,{"$f":"IF(E24=2,TRUE,FALSE)","v":false},""]
[null,null,null,null,null,{"$f":"IF(E24=3,TRUE,FALSE)","v":false},""]
[null,null,null,null,null,{"$f":"IF(E24=4,TRUE,FALSE)","v":false},""]
[null,null,null,null,null,{"$f":"IF(E24=5,TRUE,FALSE)","v":false},""]
[null,null,null,null,null,{"$f":"IF(E24=6,TRUE,FALSE)","v":false},""]
[null,"최상의 복원력을 달성하기 위한 활동계획","담당부서","추진기간",null,null,""]
[null,null,null,null,null,null,""]
[null,null,null,null,null,null,""]
[null,"2.2.2 - 피해와 손실 산정",null,null,null,null,"2.2.2"]
[null,"주제 / 현안","비고",null,null,null,""]
[null,null,null,null,null,null,""]
[null,"대답","증빙수단(설명과 증빙자료)",null,null,null,""]
[null,null,null,null,null,{"$f":"IF(E37=1,TRUE,FALSE)","v":false},""]
[null,null,null,null,null,{"$f":"IF(E37=2,TRUE,FALSE)","v":false},""]
[null,null,null,null,null,{"$f":"IF(E37=3,TRUE,FALSE)","v":false},""]
[null,null,null,null,null,{"$f":"IF(E37=4,TRUE,FALSE)","v":false},""]
[null,null,null,null,null,{"$f":"IF(E37=5,TRUE,FALSE)","v":false},""]
[null,null,null,null,null,{"$f":"IF(E37=6,TRUE,FALSE)","v":false},""]
[null,"최상의 복원력을 달성하기 위한 활동계획","담당부서","추진기간",null,null,""]
[null,null,null,null,null,null,""]
[null,null,null,null,null,null,""]
[null,"2.3 - 연쇄적인 영향과 상호의존성",null,null,null,null,"2.3"]
[null,null,null,null,null,null,""]
[null,"2.3.1 - 중요자산과 이들 간연계성의 이해",null,null,null,null,"2.3.1"]
[null,"주제 / 현안","비고",null,null,null,""]
[null,null,null,null,null,null,""]
[null,"대답","증빙수단(설명과 증빙자료)",null,null,null,""]
[null,null,null,null,null,{"$f":"IF(E52=1,TRUE,FALSE)","v":false},""]
[null,null,null,null,null,{"$f":"IF(E52=2,TRUE,FALSE)","v":false},""]
[null,null,null,null,null,{"$f":"IF(E52=3,TRUE,FALSE)","v":false},""]
[null,null,null,null,null,{"$f":"IF(E52=4,TRUE,FALSE)","v":false},""]
[null,null,null,null,null,{"$f":"IF(E52=5,TRUE,FALSE)","v":false},""]
[null,null,null,null,null,{"$f":"IF(E52=6,TRUE,FALSE)","v":false},""]
[null,"최상의 복원력을 달성하기 위한 활동계획","담당부서","추진기간",null,null,""]
[null,null,null,null,null,null,""]
[null,null,null,null,null,null,""]
[null,"2.4 - 위험요인지도",null,null,null,null,"2.4"]
[null,null,null,null,null,null,""]
[null,"2.4.1 - 위험요인 지도",null,null,null,null,"2.4.1"]
[null,"주제 / 현안","비고",null,null,null,""]
[null,null,null,null,null,null,""]
[null,"대답","증빙수단(설명과 증빙자료)",null,null,null,""]
[null,null,null,null,null,{"$f":"IF(E67=1,TRUE,FALSE)","v":false},""]
[null,null,null,null,null,{"$f":"IF(E67=2,TRUE,FALSE)","v":false},""]
[null,null,null,null,null,{"$f":"IF(E67=3,TRUE,FALSE)","v":false},""]
[null,null,null,null,null,{"$f":"IF(E67=4,TRUE,FALSE)","v":false},""]
[null,null,null,null,null,{"$f":"IF(E67=5,TRUE,FALSE)","v":false},""]
[null,null,null,null,null,{"$f":"IF(E67=6,TRUE,FALSE)","v":false},""]
[null,"최상의 복원력을 달성하기 위한 활동계획","담당부서","추진기간",null,null,""]
[null,null,null,null,null,null,""]
[null,null,null,null,null,null,""]
[null,"2.5 - 시나리오, 위험도, 취약성, 노출 정보 업데이트",null,null,null,null,"2.5"]
[null,null,null,null,null,null,""]
[null,"2.5.1 - 업데이트 과정",null,null,null,null,"2.5.1"]
[null,"주제 / 현안","비고",null,null,null,""]
[null,null,null,null,null,null,""]
[null,"대답","증빙수단(설명과 증빙자료)",null,null,null,""]
[null,null,null,null,null,{"$f":"IF(E82=1,TRUE,FALSE)","v":false},""]
[null,null,null,null,null,{"$f":"IF(E82=2,TRUE,FALSE)","v":false},""]
[null,null,null,null,null,{"$f":"IF(E82=3,TRUE,FALSE)","v":false},""]
[null,null,null,null,null,{"$f":"IF(E82=4,TRUE,FALSE)","v":false},""]
[null,null,null,null,null,{"$f":"IF(E82=5,TRUE,FALSE)","v":false},""]
[null,null,null,null,null,{"$f":"IF(E82=6,TRUE,FALSE)","v":false},""]
[null,"최상의 복원력을 달성하기 위한 활동계획","담당부서","추진기간",null,null,""]
[null,null,null,null,null,null,""]
[null,null,null,null,null,null,""]
[null,null,null,null,null,null,""]
[null,null,null,null,null,null,""]
[null,null,null,null,null,null,""]
[null,null,null,null,null,null,""]
[null,null,null,null,null,null,""]
[null,null,null,null,null,null,""]
[null,null,null,null,null,null,""]
[null,null,null,null,null,null,""]
[null,null,null,null,null,null,""]
[null,null,null,null,null,null,""]
[null,null,null,null,null,null,""]
[null,null,null,null,null,null,""]
[null,null,null,null,null,null,""]
[null,null,null,null,null,null,""]
[null,null,null,null,null,null,""]
[null,null,null,null,null,null,""]
[null,null,null,null,null,null,""]
[null,null,null,null,null,null,""]
[null,null,null,null,null,null,""]
[null,null,null,null,null,null,""]
[null,null,null,null,null,null,""]
[null,null,null,null,null,null,""]
[null,null,null,null,null,null,""]
[null,null,null,null,null,null,""]
[null,null,null,null,null,null,""]
[null,null,null,null,null,null,""]
[null,null,null,null,null,null,""]
[null,null,null,null,null,null,""]
[null,null,null,null,null,null,""]
[null,null,null,null,null,null,""]
[null,null,null,null,null,null,""]
[null,null,null,null,null,null,""]
[null,null,null,null,null,null,""]
[null,null,null,null,null,null,""]
[null,null,null,null,null,null,""]
[null,null,null,null,null,null,""]
[null,null,null,null,null,null,""]
[null,null,null,null,null,null,""]
[null,null,null,null,null,null,""]
[null,null,null,null,null,null,""]
[null,null,null,null,null,null,""]
[null,null,null,null,null,null,""]
[null,null,null,null,null,null,""]
[null,null,null,null,null,null,""]
[null,null,null,null,null,null,""]
[null,null,null,null,null,null,""]
[null,null,null,null,null,null,""]
[null,null,null,null,null,null,""]
[null,null,null,null,null,null,""]
[null,null,null,null,null,null,""]
[null,null,null,null,null,null,""]
[null,null,null,null,null,null,""]
[null,null,null,null,null,null,""]
[null,null,null,null,null,null,""]
[null,null,null,null,null,null,""]
[null,null,null,null,null,null,""]
[null,null,null,null,null,null,""]
[null,null,null,null,null,null,""]
[null,null,null,null,null,null,""]
[null,null,null,null,null,null,""]
[null,null,null,null,null,null,""]
[null,null,null,null,null,null,""]
[null,null,null,null,null,null,""]
[null,null,null,null,null,null,""]
[null,null,null,null,null,null,""]
[null,null,null,null,null,null,""]
[null,null,null,null,null,null,""]
[null,null,null,null,null,null,""]
[null,null,null,null,null,null,""]
[null,null,null,null,null,null,""]
[null,null,null,null,null,null,""]
[null,null,null,null,null,null,""]
[null,null,null,null,null,null,""]
[null,null,null,null,null,null,""]
[null,null,null,null,null,null,""]
[null,null,null,null,null,null,""]
[null,null,null,null,null,null,""]
[null,null,null,null,null,null,""]
[null,null,null,null,null,null,""]
[null,null,null,null,null,null,""]
[null,null,null,null,null,null,""]
[null,null,null,null,null,null,""]
[null,null,null,null,null,null,""]
[null,null,null,null,null,null,""]
[null,null,null,null,null,null,""]
[null,null,null,null,null,null,""]
[null,null,null,null,null,null,""]
[null,null,null,null,null,null,""]
[null,null,null,null,null,null,""]
[null,null,null,null,null,null,""]
[null,null,null,null,null,null,""]
[null,null,null,null,null,null,""]
[null,null,null,null,null,null,""]
[null,null,null,null,null,null,""]
[null,null,null,null,null,null,""]
[null,null,null,null,null,null,""]
[null,null,null,null,null,null,""]
[null,null,null,null,null,null,""]
[null,null,null,null,null,null,""]
[null,null,null,null,null,null,""]
[null,null,null,null,null,null,""]
[null,null,null,null,null,null,""]
[null,null,null,null,null,null,""]
[null,null,null,null,null,null,""]
[null,null,null,null,null,null,""]
[null,null,null,null,null,null,""]
[null,null,null,null,null,null,""]
[null,null,null,null,null,null,""]
[null,null,null,null,null,null,""]
[null,null,null,null,null,null,""]
[null,null,null,null,null,null,""]
[null,null,null,null,null,null,""]
[null,null,null,null,null,null,""]
[null,null,null,null,null,null,""]
[null,null,null,null,null,null,""]
[null,null,null,null,null,null,""]
[null,null,null,null,null,null,""]
[null,null,null,null,null,null,""]
[null,null,null,null,null,null,""]
[null,null,null,null,null,null,""]
[null,null,null,null,null,null,""]
[null,null,null,null,null,null,""]
[null,null,null,null,null,null,""]
[null,null,null,null,null,null,""]
[null,null,null,null,null,null,""]
[null,null,null,null,null,null,""]
[null,null,null,null,null,null,""]
[null,null,null,null,null,null,""]
[null,null,null,null,null,null,""]
[null,null,null,null,null,null,""]
[null,null,null,null,null,null,""]
[null,null,null,null,null,null,""]
[null,null,null,null,null,null,""]
[null,null,null,null,null,null,""]
[null,null,null,null,null,null,""]
[null,null,null,null,null,null,""]
[null,null,null,null,null,null,""]
[null,null,null,null,null,null,""]
[null,null,null,null,null,null,""]
[null,null,null,null,null,null,""]
[null,null,null,null,null,null,""]
[null,null,null,null,null,null,""]
[null,null,null,null,null,null,""]
[null,null,null,null,null,null,""]
[null,null,null,null,null,null,""]
[null,null,null,null,null,null,""]
[null,null,null,null,null,null,""]
[null,null,null,null,null,null,""]
[null,null,null,null,null,null,""]
[null,null,null,null,null,null,""]
[null,null,null,null,null,null,""]
[null,null,null,null,null,null,""]
[null,null,null,null,null,null,""]
[null,null,null,null,null,null,""]
[null,null,null,null,null,null,""]
[null,null,null,null,null,null,""]
[null,null,null,null,null,null,""]
[null,null,null,null,null,null,""]
[null,null,null,null,null,null,""]
[null,null,null,null,null,null,""]
[null,null,null,null,null,null,""]
[null,null,null,null,null,null,""]
[null,null,null,null,null,null,""]
[null,null,null,null,null,null,""]
[null,null,null,null,null,null,""]
[null,null,null,null,null,null,""]
[null,null,null,null,null,null,""]
[null,null,null,null,null,null,""]
[null,null,null,null,null,null,""]
[null,null,null,null,null,null,""]
[null,null,null,null,null,null,""]
[null,null,null,null,null,null,""]
[null,null,null,null,null,null,""]
[null,null,null,null,null,null,""]
[null,null,null,null,null,null,""]
[null,null,null,null,null,null,""]
[null,null,null,null,null,null,""]
[null,null,null,null,null,null,""]
[null,null,null,null,null,null,""]
[null,null,null,null,null,null,""]
[null,null,null,null,null,null,""]
[null,null,null,null,null,null,""]
[null,null,null,null,null,null,""]
[null,null,null,null,null,null,""]
[null,null,null,null,null,null,""]
[null,null,null,null,null,null,""]
[null,null,null,null,null,null,""]
[null,null,null,null,null,null,""]
[null,null,null,null,null,null,""]
[null,null,null,null,null,null,""]
[null,null,null,null,null,null,""]
[null,null,null,null,null,null,""]
[null,null,null,null,null,null,""]
[null,null,null,null,null,null,""]
[null,null,null,null,null,null,""]
[null,null,null,null,null,null,""]
[null,null,null,null,null,null,""]
[null,null,null,null,null,null,""]
[null,null,null,null,null,null,""]
[null,null,null,null,null,null,""]
[null,null,null,null,null,null,""]
[null,null,null,null,null,null,""]
[null,null,null,null,null,null,""]
[null,null,null,null,null,null,""]
[null,null,null,null,null,null,""]
[null,null,null,null,null,null,""]
[null,null,null,null,null,null,""]
[null,null,null,null,null,null,""]
[null,null,null,null,null,null,""]
[null,null,null,null,null,null,""]
[null,null,null,null,null,null,""]
[null,null,null,null,null,null,""]
[null,null,null,null,null,null,""]
[null,null,null,null,null,null,""]
[null,null,null,null,null,null,""]
[null,null,null,null,null,null,""]
[null,null,null,null,null,null,""]
[null,null,null,null,null,null,""]
[null,null,null,null,null,null,""]
[null,null,null,null,null,null,""]
[null,null,null,null,null,null,""]
[null,null,null,null,null,null,""]
[null,null,null,null,null,null,""]
[null,null,null,null,null,null,""]
[null,null,null,null,null,null,""]
[null,null,null,null,null,null,""]
[null,null,null,null,null,null,""]
[null,null,null,null,null,null,""]
[null,null,null,null,null,null,""]
[null,null,null,null,null,null,""]
[null,null,null,null,null,null,""]
[null,null,null,null,null,null,""]
[null,null,null,null,null,null,""]
[null,null,null,null,null,null,""]
[null,null,null,null,null,null,""]
[null,null,null,null,null,null,""]
[null,null,null,null,null,null,""]
[null,null,null,null,null,null,""]
[null,null,null,null,null,null,""]
[null,null,null,null,null,null,""]
[null,null,null,null,null,null,""]
[null,null,null,null,null,null,""]
[null,null,null,null,null,null,""]
[null,null,null,null,null,null,""]
[null,null,null,null,null,null,""]
[null,null,null,null,null,null,""]
[null,null,null,null,null,null,""]
[null,null,null,null,null,null,""]
[null,null,null,null,null,null,""]
[null,null,null,null,null,null,""]
[null,null,null,null,null,null,""]
[null,null,null,null,null,null,""]
[null,null,null,null,null,null,""]
[null,null,null,null,null,null,""]
[null,null,null,null,null,null,""]
[null,null,null,null,null,null,""]
[null,null,null,null,null,null,""]
[null,null,null,null,null,null,""]
[null,null,null,null,null,null,""]
[null,null,null,null,null,null,""]
[null,null,null,null,null,null,""]
[null,null,null,null,null,null,""]
[null,null,null,null,null,null,""]
[null,null,null,null,null,null,""]
[null,null,null,null,null,null,""]
[null,null,null,null,null,null,""]
[null,null,null,null,null,null,""]
[null,null,null,null,null,null,""]
[null,null,null,null,null,null,""]
[null,null,null,null,null,null,""]
[null,null,null,null,null,null,""]
[null,null,null,null,null,null,""]
[null,null,null,null,null,null,""]
[null,null,null,null,null,null,""]
[null,null,null,null,null,null,""]
[null,null,null,null,null,null,""]
[null,null,null,null,null,null,""]
[null,null,null,null,null,null,""]
[null,null,null,null,null,null,""]
[null,null,null,null,null,null,""]
[null,null,null,null,null,null,""]
[null,null,null,null,null,null,""]
[null,null,null,null,null,null,""]
[null,null,null,null,null,null,""]
[null,null,null,null,null,null,""]
[null,null,null,null,null,null,""]
[null,null,null,null,null,null,""]
[null,null,null,null,null,null,""]
[null,null,null,null,null,null,""]
[null,null,null,null,null,null,""]
[null,null,null,null,null,null,""]
[null,null,null,null,null,null,""]
[null,null,null,null,null,null,""]
[null,null,null,null,null,null,""]
[null,null,null,null,null,null,""]
[null,null,null,null,null,null,""]
[null,null,null,null,null,null,""]
[null,null,null,null,null,null,""]
[null,null,null,null,null,null,""]
[null,null,null,null,null,null,""]
[null,null,null,null,null,null,""]
[null,null,null,null,null,null,""]
[null,null,null,null,null,null,""]
[null,null,null,null,null,null,""]
[null,null,null,null,null,null,""]
[null,null,null,null,null,null,""]
[null,null,null,null,null,null,""]
[null,null,null,null,null,null,""]
[null,null,null,null,null,null,""]
[null,null,null,null,null,null,""]
[null,null,null,null,null,null,""]
[null,null,null,null,null,null,""]
[null,null,null,null,null,null,""]
[null,null,null,null,null,null,""]
[null,null,null,null,null,null,""]
[null,null,null,null,null,null,""]
[null,null,null,null,null,null,""]
[null,null,null,null,null,null,""]
[null,null,null,null,null,null,""]
[null,null,null,null,null,null,""]
[null,null,null,null,null,null,""]
[null,null,null,null,null,null,""]
[null,null,null,null,null,null,""]
[null,null,null,null,null,null,""]
[null,null,null,null,null,null,""]
[null,null,null,null,null,null,""]
[null,null,null,null,null,null,""]
[null,null,null,null,null,null,""]
[null,null,null,null,null,null,""]
[null,null,null,null,null,null,""]
[null,null,null,null,null,null,""]
[null,null,null,null,null,null,""]
[null,null,null,null,null,null,""]
[null,null,null,null,null,null,""]
[null,null,null,null,null,null,""]
[null,null,null,null,null,null,""]
[null,null,null,null,null,null,""]
[null,null,null,null,null,null,""]
[null,null,null,null,null,null,""]
[null,null,null,null,null,null,""]
[null,null,null,null,null,null,""]
[null,null,null,null,null,null,""]
[null,null,null,null,null,null,""]
[null,null,null,null,null,null,""]
[null,null,null,null,null,null,""]
[null,null,null,null,null,null,""]
[null,null,null,null,null,null,""]
[null,null,null,null,null,null,""]
[null,null,null,null,null,null,""]
[null,null,null,null,null,null,""]
[null,null,null,null,null,null,""]
[null,null,null,null,null,null,""]
[null,null,null,null,null,null,""]
[null,null,null,null,null,null,""]
[null,null,null,null,null,null,""]
[null,null,null,null,null,null,""]
[null,null,null,null,null,null,""]
[null,null,null,null,null,null,""]
[null,null,null,null,null,null,""]
[null,null,null,null,null,null,""]
[null,null,null,null,null,null,""]
[null,null,null,null,null,null,""]
[null,null,null,null,null,null,""]
[null,null,null,null,null,null,""]
[null,null,null,null,null,null,""]
[null,null,null,null,null,null,""]
[null,null,null,null,null,null,""]
[null,null,null,null,null,null,""]
[null,null,null,null,null,null,""]
[null,null,null,null,null,null,""]
[null,null,null,null,null,null,""]
[null,null,null,null,null,null,""]
[null,null,null,null,null,null,""]
[null,null,null,null,null,null,""]
[null,null,null,null,null,null,""]
[null,null,null,null,null,null,""]
[null,null,null,null,null,null,""]
[null,null,null,null,null,null,""]
[null,null,null,null,null,null,""]
[null,null,null,null,null,null,""]
[null,null,null,null,null,null,""]
[null,null,null,null,null,null,""]
[null,null,null,null,null,null,""]
[null,null,null,null,null,null,""]
[null,null,null,null,null,null,""]
[null,null,null,null,null,null,""]
[null,null,null,null,null,null,""]
[null,null,null,null,null,null,""]
[null,null,null,null,null,null,""]
[null,null,null,null,null,null,""]
[null,null,null,null,null,null,""]
[null,null,null,null,null,null,""]
[null,null,null,null,null,null,""]
[null,null,null,null,null,null,""]
[null,null,null,null,null,null,""]
[null,null,null,null,null,null,""]
[null,null,null,null,null,null,""]
[null,null,null,null,null,null,""]
[null,null,null,null,null,null,""]
[null,null,null,null,null,null,""]
[null,null,null,null,null,null,""]
[null,null,null,null,null,null,""]
[null,null,null,null,null,null,""]
[null,null,null,null,null,null,""]
[null,null,null,null,null,null,""]
[null,null,null,null,null,null,""]
[null,null,null,null,null,null,""]
[null,null,null,null,null,null,""]
[null,null,null,null,null,null,""]
[null,null,null,null,null,null,""]
[null,null,null,null,null,null,""]
[null,null,null,null,null,null,""]
[null,null,null,null,null,null,""]
[null,null,null,null,null,null,""]
[null,null,null,null,null,null,""]
[null,null,null,null,null,null,""]
[null,null,null,null,null,null,""]
[null,null,null,null,null,null,""]
[null,null,null,null,null,null,""]
[null,null,null,null,null,null,""]
[null,null,null,null,null,null,""]
[null,null,null,null,null,null,""]
[null,null,null,null,null,null,""]
[null,null,null,null,null,null,""]
[null,null,null,null,null,null,""]
[null,null,null,null,null,null,""]
[null,null,null,null,null,null,""]
[null,null,null,null,null,null,""]
[null,null,null,null,null,null,""]
[null,null,null,null,null,null,""]
[null,null,null,null,null,null,""]
[null,null,null,null,null,null,""]
[null,null,null,null,null,null,""]
[null,null,null,null,null,null,""]
[null,null,null,null,null,null,""]
[null,null,null,null,null,null,""]
[null,null,null,null,null,null,""]
[null,null,null,null,null,null,""]
[null,null,null,null,null,null,""]
[null,null,null,null,null,null,""]
[null,null,null,null,null,null,""]
[null,null,null,null,null,null,""]
[null,null,null,null,null,null,""]
[null,null,null,null,null,null,""]
[null,null,null,null,null,null,""]
[null,null,null,null,null,null,""]
[null,null,null,null,null,null,""]
[null,null,null,null,null,null,""]
[null,null,null,null,null,null,""]
[null,null,null,null,null,null,""]
[null,null,null,null,null,null,""]
[null,null,null,null,null,null,""]
[null,null,null,null,null,null,""]
[null,null,null,null,null,null,""]
[null,null,null,null,null,null,""]
[null,null,null,null,null,null,""]
[null,null,null,null,null,null,""]
[null,null,null,null,null,null,""]
[null,null,null,null,null,null,""]
[null,null,null,null,null,null,""]
[null,null,null,null,null,null,""]
[null,null,null,null,null,null,""]
[null,null,null,null,null,null,""]
[null,null,null,null,null,null,""]
[null,null,null,null,null,null,""]
[null,null,null,null,null,null,""]
[null,null,null,null,null,null,""]
[null,null,null,null,null,null,""]
[null,null,null,null,null,null,""]
[null,null,null,null,null,null,""]
[null,null,null,null,null,null,""]
[null,null,null,null,null,null,""]
[null,null,null,null,null,null,""]
[null,null,null,null,null,null,""]
[null,null,null,null,null,null,""]
[null,null,null,null,null,null,""]
[null,null,null,null,null,null,""]
[null,null,null,null,null,null,""]
[null,null,null,null,null,null,""]
[null,null,null,null,null,null,""]
[null,null,null,null,null,null,""]
[null,null,null,null,null,null,""]
[null,null,null,null,null,null,""]
[null,null,null,null,null,null,""]
[null,null,null,null,null,null,""]
[null,null,null,null,null,null,""]
[null,null,null,null,null,null,""]
[null,null,null,null,null,null,""]
[null,null,null,null,null,null,""]
[null,null,null,null,null,null,""]
[null,null,null,null,null,null,""]
[null,null,null,null,null,null,""]
[null,null,null,null,null,null,""]
[null,null,null,null,null,null,""]
[null,null,null,null,null,null,""]
[null,null,null,null,null,null,""]
[null,null,null,null,null,null,""]
[null,null,null,null,null,null,""]
[null,null,null,null,null,null,""]
[null,null,null,null,null,null,""]
[null,null,null,null,null,null,""]
[null,null,null,null,null,null,""]
[null,null,null,null,null,null,""]
[null,null,null,null,null,null,""]
[null,null,null,null,null,null,""]
[null,null,null,null,null,null,""]
[null,null,null,null,null,null,""]
[null,null,null,null,null,null,""]
[null,null,null,null,null,null,""]
[null,null,null,null,null,null,""]
[null,null,null,null,null,null,""]
[null,null,null,null,null,null,""]
[null,null,null,null,null,null,""]
[null,null,null,null,null,null,""]
[null,null,null,null,null,null,""]
[null,null,null,null,null,null,""]
[null,null,null,null,null,null,""]
[null,null,null,null,null,null,""]
[null,null,null,null,null,null,""]
[null,null,null,null,null,null,""]
[null,null,null,null,null,null,""]
[null,null,null,null,null,null,""]
[null,null,null,null,null,null,""]
[null,null,null,null,null,null,""]
[null,null,null,null,null,null,""]
[null,null,null,null,null,null,""]
[null,null,null,null,null,null,""]
[null,null,null,null,null,null,""]
[null,null,null,null,null,null,""]
[null,null,null,null,null,null,""]
[null,null,null,null,null,null,""]
[null,null,null,null,null,null,""]
[null,null,null,null,null,null,""]
[null,null,null,null,null,null,""]
[null,null,null,null,null,null,""]
[null,null,null,null,null,null,""]
[null,null,null,null,null,null,""]
[null,null,null,null,null,null,""]
[null,null,null,null,null,null,""]
[null,null,null,null,null,null,""]
[null,null,null,null,null,null,""]
[null,null,null,null,null,null,""]
[null,null,null,null,null,null,""]
[null,null,null,null,null,null,""]
[null,null,null,null,null,null,""]
[null,null,null,null,null,null,""]
[null,null,null,null,null,null,""]
[null,null,null,null,null,null,""]
[null,null,null,null,null,null,""]
[null,null,null,null,null,null,""]
[null,null,null,null,null,null,""]
[null,null,null,null,null,null,""]
[null,null,null,null,null,null,""]
[null,null,null,null,null,null,""]
[null,null,null,null,null,null,""]
[null,null,null,null,null,null,""]
[null,null,null,null,null,null,""]
[null,null,null,null,null,null,""]
[null,null,null,null,null,null,""]
[null,null,null,null,null,null,""]
[null,null,null,null,null,null,""]
[null,null,null,null,null,null,""]
[null,null,null,null,null,null,""]
[null,null,null,null,null,null,""]
[null,null,null,null,null,null,""]
[null,null,null,null,null,null,""]
[null,null,null,null,null,null,""]
[null,null,null,null,null,null,""]
[null,null,null,null,null,null,""]
[null,null,null,null,null,null,""]
[null,null,null,null,null,null,""]
[null,null,null,null,null,null,""]
[null,null,null,null,null,null,""]
[null,null,null,null,null,null,""]

{"sheet":"E03","index":5,"n_rows":664,"n_cols":7,"rows_kept":664,"cut":false,"hidden":false,"merged":[[129,2,129,3],[130,2,130,3],[131,2,136,3],[116,2,116,3],[117,2,117,3],[118,2,123,3],[127,1,127,3],[128,2,128,3],[103,2,103,3],[104,2,104,3],[105,2,110,3],[114,1,114,3],[115,2,115,3],[88,2,88,3],[89,2,89,3],[90,2,95,3],[101,1,101,3],[102,2,102,3],[75,2,75,3],[76,2,76,3],[77,2,82,3],[86,1,86,3],[87,2,87,3],[60,2,60,3],[61,2,61,3],[62,2,67,3],[73,1,73,3],[74,2,74,3],[47,2,47,3],[48,2,48,3],[49,2,54,3],[58,1,58,3],[59,2,59,3],[35,2,35,3],[36,2,41,3],[32,1,32,3],[45,1,45,3],[46,2,46,3],[34,2,34,3],[5,2,5,3],[6,2,6,3],[7,2,7,3],[8,2,13,3],[4,1,4,3],[20,2,20,3],[21,2,21,3],[22,2,22,3],[23,2,28,3],[33,2,33,3]]}
[]
[null,null,null,null,null,null,""]
[null,"3.1 - 도시 재난위험경감을 위한 새로운 투자 유치에 대한 접근법",null,null,null,null,"3.1"]
[null,null,null,null,null,null,""]
[null,"3.1.1 - 자금조달이 가능한 모든 방법에 대한 인지와 지식 도시는 활발하게 자금조달 을 추구하고 있다. \n참고: 충분한 기금이 존재 한다면 본 평가기준은 생 략될 수 있다.",null,null,null,null,"3.1.1"]
[null,"주제 / 현안","비고",null,null,null,""]
[null,null,null,null,null,null,""]
[null,"대답","증빙수단(설명과 증빙자료)",null,null,null,""]
[null,null,null,null,null,{"$f":"IF(E9=1,TRUE,FALSE)","v":false},""]
[null,null,null,null,null,{"$f":"IF(E9=2,TRUE,FALSE)","v":false},""]
[null,null,null,null,null,{"$f":"IF(E9=3,TRUE,FALSE)","v":false},""]
[null,null,null,null,null,{"$f":"IF(E9=4,TRUE,FALSE)","v":false},""]
[null,null,null,null,null,{"$f":"IF(E9=5,TRUE,FALSE)","v":false},""]
[null,null,null,null,null,{"$f":"IF(E9=6,TRUE,FALSE)","v":false},""]
[null,"최상의 복원력을 달성하기 위한 활동계획","담당부서","추진기간",null,null,""]
[null,null,null,null,null,null,""]
[null,null,null,null,null,null,""]
[null,"3.2 - 비상기금을 포함한 도시 재정 계획 내 복원력 예산",null,null,null,null,"3.2"]
[null,null,null,null,null,null,""]
[null,"3.2.1 - 재난 복원력 필수사업을 위한 재정계획의 적절성",null,null,null,null,"3.2.1"]
[null,"주제 / 현안","비고",null,null,null,""]
[null,null,null,null,null,null,""]
[null,"대답","증빙수단(설명과 증빙자료)",null,null,null,""]
[null,null,null,null,null,{"$f":"IF(E24=1,TRUE,FALSE)","v":false},""]
[null,null,null,null,null,{"$f":"IF(E24=2,TRUE,FALSE)","v":false},""]
[null,null,null,null,null,{"$f":"IF(E24=3,TRUE,FALSE)","v":false},""]
[null,null,null,null,null,{"$f":"IF(E24=4,TRUE,FALSE)","v":false},""]
[null,null,null,null,null,{"$f":"IF(E24=5,TRUE,FALSE)","v":false},""]
[null,null,null,null,null,{"$f":"IF(E24=6,TRUE,FALSE)","v":false},""]
[null,"최상의 복원력을 달성하기 위한 활동계획","담당부서","추진기간",null,null,""]
[null,null,null,null,null,null,""]
[null,null,null,null,null,null,""]
[null,"3.2.2 -필수사항2와 8에 명시된 시나리오와 주요 자산을 위 한 공학적 및 비공학적 사 업들을 장기적으로 지원할 자금",null,null,null,null,"3.2.2"]
[null,"주제 / 현안","비고",null,null,null,""]
[null,null,null,null,null,null,""]
[null,"대답","증빙수단(설명과 증빙자료)",null,null,null,""]
[null,null,null,null,null,{"$f":"IF(E37=1,TRUE,FALSE)","v":false},""]
[null,null,null,null,null,{"$f":"IF(E37=2,TRUE,FALSE)","v":false},""]
[null,null,null,null,null,{"$f":"IF(E37=3,TRUE,FALSE)","v":false},""]
[null,null,null,null,null,{"$f":"IF(E37=4,TRUE,FALSE)","v":false},""]
[null,null,null,null,null,{"$f":"IF(E37=5,TRUE,FALSE)","v":false},""]
[null,null,null,null,null,{"$f":"IF(E37=6,TRUE,FALSE)","v":false},""]
[null,"최상의 복원력을 달성하기 위한 활동계획","담당부서","추진기간",null,null,""]
[null,null,null,null,null,null,""]
[null,null,null,null,null,null,""]
[null,"3.2.3 - 재난복원력 활동을 위해 필요한 유지관리 비용을 충당할 기금",null,null,null,null,"3.2.3"]
[null,"주제 / 현안","비고",null,null,null,""]
[null,null,null,null,null,null,""]
[null,"대답","증빙수단(설명과 증빙자료)",null,null,null,""]
[null,null,null,null,null,{"$f":"IF(E50=1,TRUE,FALSE)","v":false},""]
[null,null,null,null,null,{"$f":"IF(E50=2,TRUE,FALSE)","v":false},""]
[null,null,null,null,null,{"$f":"IF(E50=3,TRUE,FALSE)","v":false},""]
[null,null,null,null,null,{"$f":"IF(E50=4,TRUE,FALSE)","v":false},""]
[null,null,null,null,null,{"$f":"IF(E50=5,TRUE,FALSE)","v":false},""]
[null,null,null,null,null,{"$f":"IF(E50=6,TRUE,FALSE)","v":false},""]
[null,"최상의 복원력을 달성하기 위한 활동계획","담당부서","추진기간",null,null,""]
[null,null,null,null,null,null,""]
[null,null,null,null,null,null,""]
[null,"3.2.4 - 재난 이후 복구를 위한 비상기금 (“불황 대비 자금”)",null,null,null,null,"3.2.4"]
[null,"주제 / 현안","비고",null,null,null,""]
[null,null,null,null,null,null,""]
[null,"대답","증빙수단(설명과 증빙자료)",null,null,null,""]
[null,null,null,null,null,{"$f":"IF(E63=1,TRUE,FALSE)","v":false},""]
[null,null,null,null,null,{"$f":"IF(E63=2,TRUE,FALSE)","v":false},""]
[null,null,null,null,null,{"$f":"IF(E63=3,TRUE,FALSE)","v":false},""]
[null,null,null,null,null,{"$f":"IF(E63=4,TRUE,FALSE)","v":false},""]
[null,null,null,null,null,{"$f":"IF(E63=5,TRUE,FALSE)","v":false},""]
[null,null,null,null,null,{"$f":"IF(E63=6,TRUE,FALSE)","v":false},""]
[null,"최상의 복원력을 달성하기 위한 활동계획","담당부서","추진기간",null,null,""]
[null,null,null,null,null,null,""]
[null,null,null,null,null,null,""]
[null,"3.3 - 보험",null,null,null,null,"3.3"]
[null,null,null,null,null,null,""]
[null,"3.3.1 - 가정보험의 보장범위",null,null,null,null,"3.3.1"]
[null,"주제 / 현안","비고",null,null,null,""]
[null,null,null,null,null,null,""]
[null,"대답","증빙수단(설명과 증빙자료)",null,null,null,""]
[null,null,null,null,null,{"$f":"IF(E78=1,TRUE,FALSE)","v":false},""]
[null,null,null,null,null,{"$f":"IF(E78=2,TRUE,FALSE)","v":false},""]
[null,null,null,null,null,{"$f":"IF(E78=3,TRUE,FALSE)","v":false},""]
[null,null,null,null,null,{"$f":"IF(E78=4,TRUE,FALSE)","v":false},""]
[null,null,null,null,null,{"$f":"IF(E78=5,TRUE,FALSE)","v":false},""]
[null,null,null,null,null,{"$f":"IF(E78=6,TRUE,FALSE)","v":false},""]
[null,"최상의 복원력을 달성하기 위한 활동계획","담당부서","추진기간",null,null,""]
[null,null,null,null,null,null,""]
[null,null,null,null,null,null,""]
[null,"3.3.2 - 비주택 보험의 보장범위",null,null,null,null,"3.3.2"]
[null,"주제 / 현안","비고",null,null,null,""]
[null,null,null,null,null,null,""]
[null,"대답","증빙수단(설명과 증빙자료)",null,null,null,""]
[null,null,null,null,null,{"$f":"IF(E91=1,TRUE,FALSE)","v":false},""]
[null,null,null,null,null,{"$f":"IF(E91=2,TRUE,FALSE)","v":false},""]
[null,null,null,null,null,{"$f":"IF(E91=3,TRUE,FALSE)","v":false},""]
[null,null,null,null,null,{"$f":"IF(E91=4,TRUE,FALSE)","v":false},""]
[null,null,null,null,null,{"$f":"IF(E91=5,TRUE,FALSE)","v":false},""]
[null,null,null,null,null,{"$f":"IF(E91=6,TRUE,FALSE)","v":false},""]
[null,"최상의 복원력을 달성하기 위한 활동계획","담당부서","추진기간",null,null,""]
[null,null,null,null,null,null,""]
[null,null,null,null,null,null,""]
[null,"3.4 - 기업, 지역사회 조직, 시민들을 위한 인센티브와 재정지원",null,null,null,null,"3.4"]
[null,null,null,null,null,null,""]
[null,"3.4.1 - 기업 재난 복원력(BCP)을 증진하기 위한 기업체에 대한 인센티브",null,null,null,null,"3.4.1"]
[null,"주제 / 현안","비고",null,null,null,""]
[null,null,null,null,null,null,""]
[null,"대답","증빙수단(설명과 증빙자료)",null,null,null,""]
[null,null,null,null,null,{"$f":"IF(E106=1,TRUE,FALSE)","v":false},""]
[null,null,null,null,null,{"$f":"IF(E106=2,TRUE,FALSE)","v":false},""]
[null,null,null,null,null,{"$f":"IF(E106=3,TRUE,FALSE)","v":false},""]
[null,null,null,null,null,{"$f":"IF(E106=4,TRUE,FALSE)","v":false},""]
[null,null,null,null,null,{"$f":"IF(E106=5,TRUE,FALSE)","v":false},""]
[null,null,null,null,null,{"$f":"IF(E106=6,TRUE,FALSE)","v":false},""]
[null,"최상의 복원력을 달성하기 위한 활동계획","담당부서","추진기간",null,null,""]
[null,null,null,null,null,null,""]
[null,null,null,null,null,null,""]
[null,"3.4.2 - 도시복원력 향상을 위한 비영리조직에 대한 인센티브",null,null,null,null,"3.4.2"]
[null,"주제 / 현안","비고",null,null,null,""]
[null,null,null,null,null,null,""]
[null,"대답","증빙수단(설명과 증빙자료)",null,null,null,""]
[null,null,null,null,null,{"$f":"IF(E119=1,TRUE,FALSE)","v":false},""]
[null,null,null,null,null,{"$f":"IF(E119=2,TRUE,FALSE)","v":false},""]
[null,null,null,null,null,{"$f":"IF(E119=3,TRUE,FALSE)","v":false},""]
[null,null,null,null,null,{"$f":"IF(E119=4,TRUE,FALSE)","v":false},""]
[null,null,null,null,null,{"$f":"IF(E119=5,TRUE,FALSE)","v":false},""]
[null,null,null,null,null,{"$f":"IF(E119=6,TRUE,FALSE)","v":false},""]
[null,"최상의 복원력을 달성하기 위한 활동계획","담당부서","추진기간",null,null,""]
[null,null,null,null,null,null,""]
[null,null,null,null,null,null,""]
[null,"3.4.3 - 재난 복원력을 향상시키기 위한 주택소유자에 대한 인센티브",null,null,null,null,"3.4.3"]
[null,"주제 / 현안","비고",null,null,null,""]
[null,null,null,null,null,null,""]
[null,"대답","증빙수단(설명과 증빙자료)",null,null,null,""]
[null,null,null,null,null,{"$f":"IF(E132=1,TRUE,FALSE)","v":false},""]
[null,null,null,null,null,{"$f":"IF(E132=2,TRUE,FALSE)","v":false},""]
[null,null,null,null,null,{"$f":"IF(E132=3,TRUE,FALSE)","v":false},""]
[null,null,null,null,null,{"$f":"IF(E132=4,TRUE,FALSE)","v":false},""]
[null,null,null,null,null,{"$f":"IF(E132=5,TRUE,FALSE)","v":false},""]
[null,null,null,null,null,{"$f":"IF(E132=6,TRUE,FALSE)","v":false},""]
[null,"최상의 복원력을 달성하기 위한 활동계획","담당부서","추진기간",null,null,""]
[null,null,null,null,null,null,""]
[null,null,null,null,null,null,""]
[null,null,null,null,null,null,""]
[null,null,null,null,null,null,""]
[null,null,null,null,null,null,""]
[null,null,null,null,null,null,""]
[null,null,null,null,null,null,""]
[null,null,null,null,null,null,""]
[null,null,null,null,null,null,""]
[null,null,null,null,null,null,""]
[null,null,null,null,null,null,""]
[null,null,null,null,null,null,""]
[null,null,null,null,null,null,""]
[null,null,null,null,null,null,""]
[null,null,null,null,null,null,""]
[null,null,null,null,null,null,""]
[null,null,null,null,null,null,""]
[null,null,null,null,null,null,""]
[null,null,null,null,null,null,""]
[null,null,null,null,null,null,""]
[null,null,null,null,null,null,""]
[null,null,null,null,null,null,""]
[null,null,null,null,null,null,""]
[null,null,null,null,null,null,""]
[null,null,null,null,null,null,""]
[null,null,null,null,null,null,""]
[null,null,null,null,null,null,""]
[null,null,null,null,null,null,""]
[null,null,null,null,null,null,""]
[null,null,null,null,null,null,""]
[null,null,null,null,null,null,""]
[null,null,null,null,null,null,""]
[null,null,null,null,null,null,""]
[null,null,null,null,null,null,""]
[null,null,null,null,null,null,""]
[null,null,null,null,null,null,""]
[null,null,null,null,null,null,""]
[null,null,null,null,null,null,""]
[null,null,null,null,null,null,""]
[null,null,null,null,null,null,""]
[null,null,null,null,null,null,""]
[null,null,null,null,null,null,""]
[null,null,null,null,null,null,""]
[null,null,null,null,null,null,""]
[null,null,null,null,null,null,""]
[null,null,null,null,null,null,""]
[null,null,null,null,null,null,""]
[null,null,null,null,null,null,""]
[null,null,null,null,null,null,""]
[null,null,null,null,null,null,""]
[null,null,null,null,null,null,""]
[null,null,null,null,null,null,""]
[null,null,null,null,null,null,""]
[null,null,null,null,null,null,""]
[null,null,null,null,null,null,""]
[null,null,null,null,null,null,""]
[null,null,null,null,null,null,""]
[null,null,null,null,null,null,""]
[null,null,null,null,null,null,""]
[null,null,null,null,null,null,""]
[null,null,null,null,null,null,""]
[null,null,null,null,null,null,""]
[null,null,null,null,null,null,""]
[null,null,null,null,null,null,""]
[null,null,null,null,null,null,""]
[null,null,null,null,null,null,""]
[null,null,null,null,null,null,""]
[null,null,null,null,null,null,""]
[null,null,null,null,null,null,""]
[null,null,null,null,null,null,""]
[null,null,null,null,null,null,""]
[null,null,null,null,null,null,""]
[null,null,null,null,null,null,""]
[null,null,null,null,null,null,""]
[null,null,null,null,null,null,""]
[null,null,null,null,null,null,""]
[null,null,null,null,null,null,""]
[null,null,null,null,null,null,""]
[null,null,null,null,null,null,""]
[null,null,null,null,null,null,""]
[null,null,null,null,null,null,""]
[null,null,null,null,null,null,""]
[null,null,null,null,null,null,""]
[null,null,null,null,null,null,""]
[null,null,null,null,null,null,""]
[null,null,null,null,null,null,""]
[null,null,null,null,null,null,""]
[null,null,null,null,null,null,""]
[null,null,null,null,null,null,""]
[null,null,null,null,null,null,""]
[null,null,null,null,null,null,""]
[null,null,null,null,null,null,""]
[null,null,null,null,null,null,""]
[null,null,null,null,null,null,""]
[null,null,null,null,null,null,""]
[null,null,null,null,null,null,""]
[null,null,null,null,null,null,""]
[null,null,null,null,null,null,""]
[null,null,null,null,null,null,""]
[null,null,null,null,null,null,""]
[null,null,null,null,null,null,""]
[null,null,null,null,null,null,""]
[null,null,null,null,null,null,""]
[null,null,null,null,null,null,""]
[null,null,null,null,null,null,""]
[null,null,null,null,null,null,""]
[null,null,null,null,null,null,""]
[null,null,null,null,null,null,""]
[null,null,null,null,null,null,""]
[null,null,null,null,null,null,""]
[null,null,null,null,null,null,""]
[null,null,null,null,null,null,""]
[null,null,null,null,null,null,""]
[null,null,null,null,null,null,""]
[null,null,null,null,null,null,""]
[null,null,null,null,null,null,""]
[null,null,null,null,null,null,""]
[null,null,null,null,null,null,""]
[null,null,null,null,null,null,""]
[null,null,null,null,null,null,""]
[null,null,null,null,null,null,""]
[null,null,null,null,null,null,""]
[null,null,null,null,null,null,""]
[null,null,null,null,null,null,""]
[null,null,null,null,null,null,""]
[null,null,null,null,null,null,""]
[null,null,null,null,null,null,""]
[null,null,null,null,null,null,""]
[null,null,null,null,null,null,""]
[null,null,null,null,null,null,""]
[null,null,null,null,null,null,""]
[null,null,null,null,null,null,""]
[null,null,null,null,null,null,""]
[null,null,null,null,null,null,""]
[null,null,null,null,null,null,""]
[null,null,null,null,null,null,""]
[null,null,null,null,null,null,""]
[null,null,null,null,null,null,""]
[null,null,null,null,null,null,""]
[null,null,null,null,null,null,""]
[null,null,null,null,null,null,""]
[null,null,null,null,null,null,""]
[null,null,null,null,null,null,""]
[null,null,null,null,null,null,""]
[null,null,null,null,null,null,""]
[null,null,null,null,null,null,""]
[null,null,null,null,null,null,""]
[null,null,null,null,null,null,""]
[null,null,null,null,null,null,""]
[null,null,null,null,null,null,""]
[null,null,null,null,null,null,""]
[null,null,null,null,null,null,""]
[null,null,null,null,null,null,""]
[null,null,null,null,null,null,""]
[null,null,null,null,null,null,""]
[null,null,null,null,null,null,""]
[null,null,null,null,null,null,""]
[null,null,null,null,null,null,""]
[null,null,null,null,null,null,""]
[null,null,null,null,null,null,""]
[null,null,null,null,null,null,""]
[null,null,null,null,null,null,""]
[null,null,null,null,null,null,""]
[null,null,null,null,null,null,""]
[null,null,null,null,null,null,""]
[null,null,null,null,null,null,""]
[null,null,null,null,null,null,""]
[null,null,null,null,null,null,""]
[null,null,null,null,null,null,""]
[null,null,null,null,null,null,""]
[null,null,null,null,null,null,""]
[null,null,null,null,null,null,""]
[null,null,null,null,null,null,""]
[null,null,null,null,null,null,""]
[null,null,null,null,null,null,""]
[null,null,null,null,null,null,""]
[null,null,null,null,null,null,""]
[null,null,null,null,null,null,""]
[null,null,null,null,null,null,""]
[null,null,null,null,null,null,""]
[null,null,null,null,null,null,""]
[null,null,null,null,null,null,""]
[null,null,null,null,null,null,""]
[null,null,null,null,null,null,""]
[null,null,null,null,null,null,""]
[null,null,null,null,null,null,""]
[null,null,null,null,null,null,""]
[null,null,null,null,null,null,""]
[null,null,null,null,null,null,""]
[null,null,null,null,null,null,""]
[null,null,null,null,null,null,""]
[null,null,null,null,null,null,""]
[null,null,null,null,null,null,""]
[null,null,null,null,null,null,""]
[null,null,null,null,null,null,""]
[null,null,null,null,null,null,""]
[null,null,null,null,null,null,""]
[null,null,null,null,null,null,""]
[null,null,null,null,null,null,""]
[null,null,null,null,null,null,""]
[null,null,null,null,null,null,""]
[null,null,null,null,null,null,""]
[null,null,null,null,null,null,""]
[null,null,null,null,null,null,""]
[null,null,null,null,null,null,""]
[null,null,null,null,null,null,""]
[null,null,null,null,null,null,""]
[null,null,null,null,null,null,""]
[null,null,null,null,null,null,""]
[null,null,null,null,null,null,""]
[null,null,null,null,null,null,""]
[null,null,null,null,null,null,""]
[null,null,null,null,null,null,""]
[null,null,null,null,null,null,""]
[null,null,null,null,null,null,""]
[null,null,null,null,null,null,""]
[null,null,null,null,null,null,""]
[null,null,null,null,null,null,""]
[null,null,null,null,null,null,""]
[null,null,null,null,null,null,""]
[null,null,null,null,null,null,""]
[null,null,null,null,null,null,""]
[null,null,null,null,null,null,""]
[null,null,null,null,null,null,""]
[null,null,null,null,null,null,""]
[null,null,null,null,null,null,""]
[null,null,null,null,null,null,""]
[null,null,null,null,null,null,""]
[null,null,null,null,null,null,""]
[null,null,null,null,null,null,""]
[null,null,null,null,null,null,""]
[null,null,null,null,null,null,""]
[null,null,null,null,null,null,""]
[null,null,null,null,null,null,""]
[null,null,null,null,null,null,""]
[null,null,null,null,null,null,""]
[null,null,null,null,null,null,""]
[null,null,null,null,null,null,""]
[null,null,null,null,null,null,""]
[null,null,null,null,null,null,""]
[null,null,null,null,null,null,""]
[null,null,null,null,null,null,""]
[null,null,null,null,null,null,""]
[null,null,null,null,null,null,""]
[null,null,null,null,null,null,""]
[null,null,null,null,null,null,""]
[null,null,null,null,null,null,""]
[null,null,null,null,null,null,""]
[null,null,null,null,null,null,""]
[null,null,null,null,null,null,""]
[null,null,null,null,null,null,""]
[null,null,null,null,null,null,""]
[null,null,null,null,null,null,""]
[null,null,null,null,null,null,""]
[null,null,null,null,null,null,""]
[null,null,null,null,null,null,""]
[null,null,null,null,null,null,""]
[null,null,null,null,null,null,""]
[null,null,null,null,null,null,""]
[null,null,null,null,null,null,""]
[null,null,null,null,null,null,""]
[null,null,null,null,null,null,""]
[null,null,null,null,null,null,""]
[null,null,null,null,null,null,""]
[null,null,null,null,null,null,""]
[null,null,null,null,null,null,""]
[null,null,null,null,null,null,""]
[null,null,null,null,null,null,""]
[null,null,null,null,null,null,""]
[null,null,null,null,null,null,""]
[null,null,null,null,null,null,""]
[null,null,null,null,null,null,""]
[null,null,null,null,null,null,""]
[null,null,null,null,null,null,""]
[null,null,null,null,null,null,""]
[null,null,null,null,null,null,""]
[null,null,null,null,null,null,""]
[null,null,null,null,null,null,""]
[null,null,null,null,null,null,""]
[null,null,null,null,null,null,""]
[null,null,null,null,null,null,""]
[null,null,null,null,null,null,""]
[null,null,null,null,null,null,""]
[null,null,null,null,null,null,""]
[null,null,null,null,null,null,""]
[null,null,null,null,null,null,""]
[null,null,null,null,null,null,""]
[null,null,null,null,null,null,""]
[null,null,null,null,null,null,""]
[null,null,null,null,null,null,""]
[null,null,null,null,null,null,""]
[null,null,null,null,null,null,""]
[null,null,null,null,null,null,""]
[null,null,null,null,null,null,""]
[null,null,null,null,null,null,""]
[null,null,null,null,null,null,""]
[null,null,null,null,null,null,""]
[null,null,null,null,null,null,""]
[null,null,null,null,null,null,""]
[null,null,null,null,null,null,""]
[null,null,null,null,null,null,""]
[null,null,null,null,null,null,""]
[null,null,null,null,null,null,""]
[null,null,null,null,null,null,""]
[null,null,null,null,null,null,""]
[null,null,null,null,null,null,""]
[null,null,null,null,null,null,""]
[null,null,null,null,null,null,""]
[null,null,null,null,null,null,""]
[null,null,null,null,null,null,""]
[null,null,null,null,null,null,""]
[null,null,null,null,null,null,""]
[null,null,null,null,null,null,""]
[null,null,null,null,null,null,""]
[null,null,null,null,null,null,""]
[null,null,null,null,null,null,""]
[null,null,null,null,null,null,""]
[null,null,null,null,null,null,""]
[null,null,null,null,null,null,""]
[null,null,null,null,null,null,""]
[null,null,null,null,null,null,""]
[null,null,null,null,null,null,""]
[null,null,null,null,null,null,""]
[null,null,null,null,null,null,""]
[null,null,null,null,null,null,""]
[null,null,null,null,null,null,""]
[null,null,null,null,null,null,""]
[null,null,null,null,null,null,""]
[null,null,null,null,null,null,""]
[null,null,null,null,null,null,""]
[null,null,null,null,null,null,""]
[null,null,null,null,null,null,""]
[null,null,null,null,null,null,""]
[null,null,null,null,null,null,""]
[null,null,null,null,null,null,""]
[null,null,null,null,null,null,""]
[null,null,null,null,null,null,""]
[null,null,null,null,null,null,""]
[null,null,null,null,null,null,""]
[null,null,null,null,null,null,""]
[null,null,null,null,null,null,""]
[null,null,null,null,null,null,""]
[null,null,null,null,null,null,""]
[null,null,null,null,null,null,""]
[null,null,null,null,null,null,""]
[null,null,null,null,null,null,""]
[null,null,null,null,null,null,""]
[null,null,null,null,null,null,""]
[null,null,null,null,null,null,""]
[null,null,null,null,null,null,""]
[null,null,null,null,null,null,""]
[null,null,null,null,null,null,""]
[null,null,null,null,null,null,""]
[null,null,null,null,null,null,""]
[null,null,null,null,null,null,""]
[null,null,null,null,null,null,""]
[null,null,null,null,null,null,""]
[null,null,null,null,null,null,""]
[null,null,null,null,null,null,""]
[null,null,null,null,null,null,""]
[null,null,null,null,null,null,""]
[null,null,null,null,null,null,""]
[null,null,null,null,null,null,""]
[null,null,null,null,null,null,""]
[null,null,null,null,null,null,""]
[null,null,null,null,null,null,""]
[null,null,null,null,null,null,""]
[null,null,null,null,null,null,""]
[null,null,null,null,null,null,""]
[null,null,null,null,null,null,""]
[null,null,null,null,null,null,""]
[null,null,null,null,null,null,""]
[null,null,null,null,null,null,""]
[null,null,null,null,null,null,""]
[null,null,null,null,null,null,""]
[null,null,null,null,null,null,""]
[null,null,null,null,null,null,""]
[null,null,null,null,null,null,""]
[null,null,null,null,null,null,""]
[null,null,null,null,null,null,""]
[null,null,null,null,null,null,""]
[null,null,null,null,null,null,""]
[null,null,null,null,null,null,""]
[null,null,null,null,null,null,""]
[null,null,null,null,null,null,""]
[null,null,null,null,null,null,""]
[null,null,null,null,null,null,""]
[null,null,null,null,null,null,""]
[null,null,null,null,null,null,""]
[null,null,null,null,null,null,""]
[null,null,null,null,null,null,""]
[null,null,null,null,null,null,""]
[null,null,null,null,null,null,""]
[null,null,null,null,null,null,""]
[null,null,null,null,null,null,""]
[null,null,null,null,null,null,""]
[null,null,null,null,null,null,""]
[null,null,null,null,null,null,""]
[null,null,null,null,null,null,""]
[null,null,null,null,null,null,""]
[null,null,null,null,null,null,""]
[null,null,null,null,null,null,""]
[null,null,null,null,null,null,""]
[null,null,null,null,null,null,""]
[null,null,null,null,null,null,""]
[null,null,null,null,null,null,""]
[null,null,null,null,null,null,""]
[null,null,null,null,null,null,""]
[null,null,null,null,null,null,""]
[null,null,null,null,null,null,""]
[null,null,null,null,null,null,""]
[null,null,null,null,null,null,""]
[null,null,null,null,null,null,""]
[null,null,null,null,null,null,""]
[null,null,null,null,null,null,""]
[null,null,null,null,null,null,""]
[null,null,null,null,null,null,""]
[null,null,null,null,null,null,""]
[null,null,null,null,null,null,""]
[null,null,null,null,null,null,""]
[null,null,null,null,null,null,""]
[null,null,null,null,null,null,""]
[null,null,null,null,null,null,""]
[null,null,null,null,null,null,""]
[null,null,null,null,null,null,""]
[null,null,null,null,null,null,""]
[null,null,null,null,null,null,""]
[null,null,null,null,null,null,""]
[null,null,null,null,null,null,""]
[null,null,null,null,null,null,""]
[null,null,null,null,null,null,""]
[null,null,null,null,null,null,""]
[null,null,null,null,null,null,""]
[null,null,null,null,null,null,""]
[null,null,null,null,null,null,""]
[null,null,null,null,null,null,""]
[null,null,null,null,null,null,""]
[null,null,null,null,null,null,""]
[null,null,null,null,null,null,""]
[null,null,null,null,null,null,""]
[null,null,null,null,null,null,""]
[null,null,null,null,null,null,""]
[null,null,null,null,null,null,""]
[null,null,null,null,null,null,""]
[null,null,null,null,null,null,""]
[null,null,null,null,null,null,""]
[null,null,null,null,null,null,""]
[null,null,null,null,null,null,""]
[null,null,null,null,null,null,""]
[null,null,null,null,null,null,""]
[null,null,null,null,null,null,""]
[null,null,null,null,null,null,""]
[null,null,null,null,null,null,""]
[null,null,null,null,null,null,""]
[null,null,null,null,null,null,""]
[null,null,null,null,null,null,""]
[null,null,null,null,null,null,""]
[null,null,null,null,null,null,""]
[null,null,null,null,null,null,""]
[null,null,null,null,null,null,""]
[null,null,null,null,null,null,""]
[null,null,null,null,null,null,""]
[null,null,null,null,null,null,""]
[null,null,null,null,null,null,""]
[null,null,null,null,null,null,""]
[null,null,null,null,null,null,""]
[null,null,null,null,null,null,""]
[null,null,null,null,null,null,""]
[null,null,null,null,null,null,""]
[null,null,null,null,null,null,""]
[null,null,null,null,null,null,""]
[null,null,null,null,null,null,""]
[null,null,null,null,null,null,""]
[null,null,null,null,null,null,""]
[null,null,null,null,null,null,""]
[null,null,null,null,null,null,""]
[null,null,null,null,null,null,""]
[null,null,null,null,null,null,""]
[null,null,null,null,null,null,""]
[null,null,null,null,null,null,""]
[null,null,null,null,null,null,""]
[null,null,null,null,null,null,""]
[null,null,null,null,null,null,""]
[null,null,null,null,null,null,""]
[null,null,null,null,null,null,""]
[null,null,null,null,null,null,""]
[null,null,null,null,null,null,""]
[null,null,null,null,null,null,""]
[null,null,null,null,null,null,""]
[null,null,null,null,null,null,""]
[null,null,null,null,null,null,""]
[null,null,null,null,null,null,""]
[null,null,null,null,null,null,""]
[null,null,null,null,null,null,""]
[null,null,null,null,null,null,""]
[null,null,null,null,null,null,""]
[null,null,null,null,null,null,""]
[null,null,null,null,null,null,""]
[null,null,null,null,null,null,""]
[null,null,null,null,null,null,""]
[null,null,null,null,null,null,""]
[null,null,null,null,null,null,""]
[null,null,null,null,null,null,""]
[null,null,null,null,null,null,""]
[null,null,null,null,null,null,""]
[null,null,null,null,null,null,""]
[null,null,null,null,null,null,""]
[null,null,null,null,null,null,""]
[null,null,null,null,null,null,""]
[null,null,null,null,null,null,""]
[null,null,null,null,null,null,""]
[null,null,null,null,null,null,""]
[null,null,null,null,null,null,""]
[null,null,null,null,null,null,""]
[null,null,null,null,null,null,""]
[null,null,null,null,null,null,""]
[null,null,null,null,null,null,""]
[null,null,null,null,null,null,""]
[null,null,null,null,null,null,""]
[null,null,null,null,null,null,""]
[null,null,null,null,null,null,""]
[null,null,null,null,null,null,""]
[null,null,null,null,null,null,""]
[null,null,null,null,null,null,""]
[null,null,null,null,null,null,""]
[null,null,null,null,null,null,""]

{"sheet":"E04","index":6,"n_rows":664,"n_cols":7,"rows_kept":664,"cut":false,"hidden":false,"merged":[[128,2,128,3],[129,2,129,3],[130,2,130,3],[131,2,136,3],[115,2,115,3],[116,2,116,3],[117,2,117,3],[118,2,123,3],[127,1,127,3],[100,2,100,3],[101,2,101,3],[102,2,102,3],[103,2,108,3],[114,1,114,3],[87,2,87,3],[88,2,88,3],[89,2,89,3],[90,2,95,3],[99,1,99,3],[74,2,74,3],[75,2,75,3],[76,2,76,3],[77,2,82,3],[86,1,86,3],[59,2,59,3],[60,2,60,3],[61,2,61,3],[62,2,67,3],[73,1,73,3],[44,2,44,3],[45,2,45,3],[46,2,46,3],[47,2,52,3],[58,1,58,3],[31,2,31,3],[32,2,32,3],[33,2,33,3],[34,2,39,3],[43,1,43,3],[5,2,5,3],[4,1,4,3],[6,2,6,3],[7,2,7,3],[8,2,13,3],[30,1,30,3],[17,1,17,3],[18,2,18,3],[19,2,19,3],[20,2,20,3],[21,2,26,3]]}
[]
[null,null,null,null,null,null,""]
[null,"4.1 -토지이용 구역",null,null,null,null,"4.1"]
[null,null,null,null,null,null,""]
[null,"4.1.1 - 잠재적 인구 이동",null,null,null,null,"4.1.1"]
[null,"주제 / 현안","비고",null,null,null,""]
[null,null,null,null,null,null,""]
[null,"대답","증빙수단(설명과 증빙자료)",null,null,null,""]
[null,null,null,null,null,{"$f":"IF(E9=1,TRUE,FALSE)","v":false},""]
[null,null,null,null,null,{"$f":"IF(E9=2,TRUE,FALSE)","v":false},""]
[null,null,null,null,null,{"$f":"IF(E9=3,TRUE,FALSE)","v":false},""]
[null,null,null,null,null,{"$f":"IF(E9=4,TRUE,FALSE)","v":false},""]
[null,null,null,null,null,{"$f":"IF(E9=5,TRUE,FALSE)","v":false},""]
[null,null,null,null,null,{"$f":"IF(E9=6,TRUE,FALSE)","v":false},""]
[null,"최상의 복원력을 달성하기 위한 활동계획","담당부서","추진기간",null,null,""]
[null,null,null,null,null,null,""]
[null,null,null,null,null,null,""]
[null,"4.1.2 - 재난 발생시에도 연속할 수 있는 경제활동",null,null,null,null,"4.1.2"]
[null,"주제 / 현안","비고",null,null,null,""]
[null,null,null,null,null,null,""]
[null,"대답","증빙수단(설명과 증빙자료)",null,null,null,""]
[null,null,null,null,null,{"$f":"IF(E22=1,TRUE,FALSE)","v":false},""]
[null,null,null,null,null,{"$f":"IF(E22=2,TRUE,FALSE)","v":false},""]
[null,null,null,null,null,{"$f":"IF(E22=3,TRUE,FALSE)","v":false},""]
[null,null,null,null,null,{"$f":"IF(E22=4,TRUE,FALSE)","v":false},""]
[null,null,null,null,null,{"$f":"IF(E22=5,TRUE,FALSE)","v":false},""]
[null,null,null,null,null,{"$f":"IF(E22=6,TRUE,FALSE)","v":false},""]
[null,"최상의 복원력을 달성하기 위한 활동계획","담당부서","추진기간",null,null,""]
[null,null,null,null,null,null,""]
[null,null,null,null,null,null,""]
[null,"4.1.2.1 - 위험에 처한 기업 생산량",null,null,null,null,"4.1.2.1"]
[null,"주제 / 현안","비고",null,null,null,""]
[null,null,null,null,null,null,""]
[null,"대답","증빙수단(설명과 증빙자료)",null,null,null,""]
[null,null,null,null,null,{"$f":"IF(E35=1,TRUE,FALSE)","v":false},""]
[null,null,null,null,null,{"$f":"IF(E35=2,TRUE,FALSE)","v":false},""]
[null,null,null,null,null,{"$f":"IF(E35=3,TRUE,FALSE)","v":false},""]
[null,null,null,null,null,{"$f":"IF(E35=4,TRUE,FALSE)","v":false},""]
[null,null,null,null,null,{"$f":"IF(E35=5,TRUE,FALSE)","v":false},""]
[null,null,null,null,null,{"$f":"IF(E35=6,TRUE,FALSE)","v":false},""]
[null,"최상의 복원력을 달성하기 위한 활동계획","담당부서","추진기간",null,null,""]
[null,null,null,null,null,null,""]
[null,null,null,null,null,null,""]
[null,"4.1.3 - 위험에 처한 농업용지",null,null,null,null,"4.1.3"]
[null,"주제 / 현안","비고",null,null,null,""]
[null,null,null,null,null,null,""]
[null,"대답","증빙수단(설명과 증빙자료)",null,null,null,""]
[null,null,null,null,null,{"$f":"IF(E48=1,TRUE,FALSE)","v":false},""]
[null,null,null,null,null,{"$f":"IF(E48=2,TRUE,FALSE)","v":false},""]
[null,null,null,null,null,{"$f":"IF(E48=3,TRUE,FALSE)","v":false},""]
[null,null,null,null,null,{"$f":"IF(E48=4,TRUE,FALSE)","v":false},""]
[null,null,null,null,null,{"$f":"IF(E48=5,TRUE,FALSE)","v":false},""]
[null,null,null,null,null,{"$f":"IF(E48=6,TRUE,FALSE)","v":false},""]
[null,"최상의 복원력을 달성하기 위한 활동계획","담당부서","추진기간",null,null,""]
[null,null,null,null,null,null,""]
[null,null,null,null,null,null,""]
[null,"4.2 - 새로운 도시 개발",null,null,null,null,"4.2"]
[null,null,null,null,null,null,""]
[null,"4.2.1 - 복원력을 증가시키는 도시 설계 솔루션",null,null,null,null,"4.2.1"]
[null,"주제 / 현안","비고",null,null,null,""]
[null,null,null,null,null,null,""]
[null,"대답","증빙수단(설명과 증빙자료)",null,null,null,""]
[null,null,null,null,null,{"$f":"IF(E63=1,TRUE,FALSE)","v":false},""]
[null,null,null,null,null,{"$f":"IF(E63=2,TRUE,FALSE)","v":false},""]
[null,null,null,null,null,{"$f":"IF(E63=3,TRUE,FALSE)","v":false},""]
[null,null,null,null,null,{"$f":"IF(E63=4,TRUE,FALSE)","v":false},""]
[null,null,null,null,null,{"$f":"IF(E63=5,TRUE,FALSE)","v":false},""]
[null,null,null,null,null,{"$f":"IF(E63=6,TRUE,FALSE)","v":false},""]
[null,"최상의 복원력을 달성하기 위한 활동계획","담당부서","추진기간",null,null,""]
[null,null,null,null,null,null,""]
[null,null,null,null,null,null,""]
[null,"4.3 - 건축 법규 및 기준",null,null,null,null,"4.3"]
[null,null,null,null,null,null,""]
[null,"4.3.1 - 필수사항2에 명시된 위험들을 다루기 위한 건축법규의 존재",null,null,null,null,"4.3.1"]
[null,"주제 / 현안","비고",null,null,null,""]
[null,null,null,null,null,null,""]
[null,"대답","증빙수단(설명과 증빙자료)",null,null,null,""]
[null,null,null,null,null,{"$f":"IF(E78=1,TRUE,FALSE)","v":false},""]
[null,null,null,null,null,{"$f":"IF(E78=2,TRUE,FALSE)","v":false},""]
[null,null,null,null,null,{"$f":"IF(E78=3,TRUE,FALSE)","v":false},""]
[null,null,null,null,null,{"$f":"IF(E78=4,TRUE,FALSE)","v":false},""]
[null,null,null,null,null,{"$f":"IF(E78=5,TRUE,FALSE)","v":false},""]
[null,null,null,null,null,{"$f":"IF(E78=6,TRUE,FALSE)","v":false},""]
[null,"최상의 복원력을 달성하기 위한 활동계획","담당부서","추진기간",null,null,""]
[null,null,null,null,null,null,""]
[null,null,null,null,null,null,""]
[null,"4.3.2 - 건축법규 갱신",null,null,null,null,"4.3.2"]
[null,"주제 / 현안","비고",null,null,null,""]
[null,null,null,null,null,null,""]
[null,"대답","증빙수단(설명과 증빙자료)",null,null,null,""]
[null,null,null,null,null,{"$f":"IF(E91=1,TRUE,FALSE)","v":false},""]
[null,null,null,null,null,{"$f":"IF(E91=2,TRUE,FALSE)","v":false},""]
[null,null,null,null,null,{"$f":"IF(E91=3,TRUE,FALSE)","v":false},""]
[null,null,null,null,null,{"$f":"IF(E91=4,TRUE,FALSE)","v":false},""]
[null,null,null,null,null,{"$f":"IF(E91=5,TRUE,FALSE)","v":false},""]
[null,null,null,null,null,{"$f":"IF(E91=6,TRUE,FALSE)","v":false},""]
[null,"최상의 복원력을 달성하기 위한 활동계획","담당부서","추진기간",null,null,""]
[null,null,null,null,null,null,""]
[null,null,null,null,null,null,""]
[null,"4.3.3 -지속가능한 건축설계 기준",null,null,null,null,"4.3.3"]
[null,"주제 / 현안","비고",null,null,null,""]
[null,null,null,null,null,null,""]
[null,"대답","증빙수단(설명과 증빙자료)",null,null,null,""]
[null,null,null,null,null,{"$f":"IF(E104=1,TRUE,FALSE)","v":false},""]
[null,null,null,null,null,{"$f":"IF(E104=2,TRUE,FALSE)","v":false},""]
[null,null,null,null,null,{"$f":"IF(E104=3,TRUE,FALSE)","v":false},""]
[null,null,null,null,null,{"$f":"IF(E104=4,TRUE,FALSE)","v":false},""]
[null,null,null,null,null,{"$f":"IF(E104=5,TRUE,FALSE)","v":false},""]
[null,null,null,null,null,{"$f":"IF(E104=6,TRUE,FALSE)","v":false},""]
[null,"최상의 복원력을 달성하기 위한 활동계획","담당부서","추진기간",null,null,""]
[null,null,null,null,null,null,""]
[null,null,null,null,null,null,""]
[null,"4.4 - 토지이용 구역에 대한 건축법규와 기준 적용",null,null,null,null,"4.4"]
[null,null,null,null,null,null,""]
[null,"4.4.1 - 토지이용구역의 적용",null,null,null,null,"4.4.1"]
[null,"주제 / 현안","비고",null,null,null,""]
[null,null,null,null,null,null,""]
[null,"대답","증빙수단(설명과 증빙자료)",null,null,null,""]
[null,null,null,null,null,{"$f":"IF(E119=1,TRUE,FALSE)","v":false},""]
[null,null,null,null,null,{"$f":"IF(E119=2,TRUE,FALSE)","v":false},""]
[null,null,null,null,null,{"$f":"IF(E119=3,TRUE,FALSE)","v":false},""]
[null,null,null,null,null,{"$f":"IF(E119=4,TRUE,FALSE)","v":false},""]
[null,null,null,null,null,{"$f":"IF(E119=5,TRUE,FALSE)","v":false},""]
[null,null,null,null,null,{"$f":"IF(E119=6,TRUE,FALSE)","v":false},""]
[null,"최상의 복원력을 달성하기 위한 활동계획","담당부서","추진기간",null,null,""]
[null,null,null,null,null,null,""]
[null,null,null,null,null,null,""]
[null,"4.4.2 - 건축법규의 적용",null,null,null,null,"4.4.2"]
[null,"주제 / 현안","비고",null,null,null,""]
[null,null,null,null,null,null,""]
[null,"대답","증빙수단(설명과 증빙자료)",null,null,null,""]
[null,null,null,null,null,{"$f":"IF(E132=1,TRUE,FALSE)","v":false},""]
[null,null,null,null,null,{"$f":"IF(E132=2,TRUE,FALSE)","v":false},""]
[null,null,null,null,null,{"$f":"IF(E132=3,TRUE,FALSE)","v":false},""]
[null,null,null,null,null,{"$f":"IF(E132=4,TRUE,FALSE)","v":false},""]
[null,null,null,null,null,{"$f":"IF(E132=5,TRUE,FALSE)","v":false},""]
[null,null,null,null,null,{"$f":"IF(E132=6,TRUE,FALSE)","v":false},""]
[null,"최상의 복원력을 달성하기 위한 활동계획","담당부서","추진기간",null,null,""]
[null,null,null,null,null,null,""]
[null,null,null,null,null,null,""]
[null,null,null,null,null,null,""]
[null,null,null,null,null,null,""]
[null,null,null,null,null,null,""]
[null,null,null,null,null,null,""]
[null,null,null,null,null,null,""]
[null,null,null,null,null,null,""]
[null,null,null,null,null,null,""]
[null,null,null,null,null,null,""]
[null,null,null,null,null,null,""]
[null,null,null,null,null,null,""]
[null,null,null,null,null,null,""]
[null,null,null,null,null,null,""]
[null,null,null,null,null,null,""]
[null,null,null,null,null,null,""]
[null,null,null,null,null,null,""]
[null,null,null,null,null,null,""]
[null,null,null,null,null,null,""]
[null,null,null,null,null,null,""]
[null,null,null,null,null,null,""]
[null,null,null,null,null,null,""]
[null,null,null,null,null,null,""]
[null,null,null,null,null,null,""]
[null,null,null,null,null,null,""]
[null,null,null,null,null,null,""]
[null,null,null,null,null,null,""]
[null,null,null,null,null,null,""]
[null,null,null,null,null,null,""]
[null,null,null,null,null,null,""]
[null,null,null,null,null,null,""]
[null,null,null,null,null,null,""]
[null,null,null,null,null,null,""]
[null,null,null,null,null,null,""]
[null,null,null,null,null,null,""]
[null,null,null,null,null,null,""]
[null,null,null,null,null,null,""]
[null,null,null,null,null,null,""]
[null,null,null,null,null,null,""]
[null,null,null,null,null,null,""]
[null,null,null,null,null,null,""]
[null,null,null,null,null,null,""]
[null,null,null,null,null,null,""]
[null,null,null,null,null,null,""]
[null,null,null,null,null,null,""]
[null,null,null,null,null,null,""]
[null,null,null,null,null,null,""]
[null,null,null,null,null,null,""]
[null,null,null,null,null,null,""]
[null,null,null,null,null,null,""]
[null,null,null,null,null,null,""]
[null,null,null,null,null,null,""]
[null,null,null,null,null,null,""]
[null,null,null,null,null,null,""]
[null,null,null,null,null,null,""]
[null,null,null,null,null,null,""]
[null,null,null,null,null,null,""]
[null,null,null,null,null,null,""]
[null,null,null,null,null,null,""]
[null,null,null,null,null,null,""]
[null,null,null,null,null,null,""]
[null,null,null,null,null,null,""]
[null,null,null,null,null,null,""]
[null,null,null,null,null,null,""]
[null,null,null,null,null,null,""]
[null,null,null,null,null,null,""]
[null,null,null,null,null,null,""]
[null,null,null,null,null,null,""]
[null,null,null,null,null,null,""]
[null,null,null,null,null,null,""]
[null,null,null,null,null,null,""]
[null,null,null,null,null,null,""]
[null,null,null,null,null,null,""]
[null,null,null,null,null,null,""]
[null,null,null,null,null,null,""]
[null,null,null,null,null,null,""]
[null,null,null,null,null,null,""]
[null,null,null,null,null,null,""]
[null,null,null,null,null,null,""]
[null,null,null,null,null,null,""]
[null,null,null,null,null,null,""]
[null,null,null,null,null,null,""]
[null,null,null,null,null,null,""]
[null,null,null,null,null,null,""]
[null,null,null,null,null,null,""]
[null,null,null,null,null,null,""]
[null,null,null,null,null,null,""]
[null,null,null,null,null,null,""]
[null,null,null,null,null,null,""]
[null,null,null,null,null,null,""]
[null,null,null,null,null,null,""]
[null,null,null,null,null,null,""]
[null,null,null,null,null,null,""]
[null,null,null,null,null,null,""]
[null,null,null,null,null,null,""]
[null,null,null,null,null,null,""]
[null,null,null,null,null,null,""]
[null,null,null,null,null,null,""]
[null,null,null,null,null,null,""]
[null,null,null,null,null,null,""]
[null,null,null,null,null,null,""]
[null,null,null,null,null,null,""]
[null,null,null,null,null,null,""]
[null,null,null,null,null,null,""]
[null,null,null,null,null,null,""]
[null,null,null,null,null,null,""]
[null,null,null,null,null,null,""]
[null,null,null,null,null,null,""]
[null,null,null,null,null,null,""]
[null,null,null,null,null,null,""]
[null,null,null,null,null,null,""]
[null,null,null,null,null,null,""]
[null,null,null,null,null,null,""]
[null,null,null,null,null,null,""]
[null,null,null,null,null,null,""]
[null,null,null,null,null,null,""]
[null,null,null,null,null,null,""]
[null,null,null,null,null,null,""]
[null,null,null,null,null,null,""]
[null,null,null,null,null,null,""]
[null,null,null,null,null,null,""]
[null,null,null,null,null,null,""]
[null,null,null,null,null,null,""]
[null,null,null,null,null,null,""]
[null,null,null,null,null,null,""]
[null,null,null,null,null,null,""]
[null,null,null,null,null,null,""]
[null,null,null,null,null,null,""]
[null,null,null,null,null,null,""]
[null,null,null,null,null,null,""]
[null,null,null,null,null,null,""]
[null,null,null,null,null,null,""]
[null,null,null,null,null,null,""]
[null,null,null,null,null,null,""]
[null,null,null,null,null,null,""]
[null,null,null,null,null,null,""]
[null,null,null,null,null,null,""]
[null,null,null,null,null,null,""]
[null,null,null,null,null,null,""]
[null,null,null,null,null,null,""]
[null,null,null,null,null,null,""]
[null,null,null,null,null,null,""]
[null,null,null,null,null,null,""]
[null,null,null,null,null,null,""]
[null,null,null,null,null,null,""]
[null,null,null,null,null,null,""]
[null,null,null,null,null,null,""]
[null,null,null,null,null,null,""]
[null,null,null,null,null,null,""]
[null,null,null,null,null,null,""]
[null,null,null,null,null,null,""]
[null,null,null,null,null,null,""]
[null,null,null,null,null,null,""]
[null,null,null,null,null,null,""]
[null,null,null,null,null,null,""]
[null,null,null,null,null,null,""]
[null,null,null,null,null,null,""]
[null,null,null,null,null,null,""]
[null,null,null,null,null,null,""]
[null,null,null,null,null,null,""]
[null,null,null,null,null,null,""]
[null,null,null,null,null,null,""]
[null,null,null,null,null,null,""]
[null,null,null,null,null,null,""]
[null,null,null,null,null,null,""]
[null,null,null,null,null,null,""]
[null,null,null,null,null,null,""]
[null,null,null,null,null,null,""]
[null,null,null,null,null,null,""]
[null,null,null,null,null,null,""]
[null,null,null,null,null,null,""]
[null,null,null,null,null,null,""]
[null,null,null,null,null,null,""]
[null,null,null,null,null,null,""]
[null,null,null,null,null,null,""]
[null,null,null,null,null,null,""]
[null,null,null,null,null,null,""]
[null,null,null,null,null,null,""]
[null,null,null,null,null,null,""]
[null,null,null,null,null,null,""]
[null,null,null,null,null,null,""]
[null,null,null,null,null,null,""]
[null,null,null,null,null,null,""]
[null,null,null,null,null,null,""]
[null,null,null,null,null,null,""]
[null,null,null,null,null,null,""]
[null,null,null,null,null,null,""]
[null,null,null,null,null,null,""]
[null,null,null,null,null,null,""]
[null,null,null,null,null,null,""]
[null,null,null,null,null,null,""]
[null,null,null,null,null,null,""]
[null,null,null,null,null,null,""]
[null,null,null,null,null,null,""]
[null,null,null,null,null,null,""]
[null,null,null,null,null,null,""]
[null,null,null,null,null,null,""]
[null,null,null,null,null,null,""]
[null,null,null,null,null,null,""]
[null,null,null,null,null,null,""]
[null,null,null,null,null,null,""]
[null,null,null,null,null,null,""]
[null,null,null,null,null,null,""]
[null,null,null,null,null,null,""]
[null,null,null,null,null,null,""]
[null,null,null,null,null,null,""]
[null,null,null,null,null,null,""]
[null,null,null,null,null,null,""]
[null,null,null,null,null,null,""]
[null,null,null,null,null,null,""]
[null,null,null,null,null,null,""]
[null,null,null,null,null,null,""]
[null,null,null,null,null,null,""]
[null,null,null,null,null,null,""]
[null,null,null,null,null,null,""]
[null,null,null,null,null,null,""]
[null,null,null,null,null,null,""]
[null,null,null,null,null,null,""]
[null,null,null,null,null,null,""]
[null,null,null,null,null,null,""]
[null,null,null,null,null,null,""]
[null,null,null,null,null,null,""]
[null,null,null,null,null,null,""]
[null,null,null,null,null,null,""]
[null,null,null,null,null,null,""]
[null,null,null,null,null,null,""]
[null,null,null,null,null,null,""]
[null,null,null,null,null,null,""]
[null,null,null,null,null,null,""]
[null,null,null,null,null,null,""]
[null,null,null,null,null,null,""]
[null,null,null,null,null,null,""]
[null,null,null,null,null,null,""]
[null,null,null,null,null,null,""]
[null,null,null,null,null,null,""]
[null,null,null,null,null,null,""]
[null,null,null,null,null,null,""]
[null,null,null,null,null,null,""]
[null,null,null,null,null,null,""]
[null,null,null,null,null,null,""]
[null,null,null,null,null,null,""]
[null,null,null,null,null,null,""]
[null,null,null,null,null,null,""]
[null,null,null,null,null,null,""]
[null,null,null,null,null,null,""]
[null,null,null,null,null,null,""]
[null,null,null,null,null,null,""]
[null,null,null,null,null,null,""]
[null,null,null,null,null,null,""]
[null,null,null,null,null,null,""]
[null,null,null,null,null,null,""]
[null,null,null,null,null,null,""]
[null,null,null,null,null,null,""]
[null,null,null,null,null,null,""]
[null,null,null,null,null,null,""]
[null,null,null,null,null,null,""]
[null,null,null,null,null,null,""]
[null,null,null,null,null,null,""]
[null,null,null,null,null,null,""]
[null,null,null,null,null,null,""]
[null,null,null,null,null,null,""]
[null,null,null,null,null,null,""]
[null,null,null,null,null,null,""]
[null,null,null,null,null,null,""]
[null,null,null,null,null,null,""]
[null,null,null,null,null,null,""]
[null,null,null,null,null,null,""]
[null,null,null,null,null,null,""]
[null,null,null,null,null,null,""]
[null,null,null,null,null,null,""]
[null,null,null,null,null,null,""]
[null,null,null,null,null,null,""]
[null,null,null,null,null,null,""]
[null,null,null,null,null,null,""]
[null,null,null,null,null,null,""]
[null,null,null,null,null,null,""]
[null,null,null,null,null,null,""]
[null,null,null,null,null,null,""]
[null,null,null,null,null,null,""]
[null,null,null,null,null,null,""]
[null,null,null,null,null,null,""]
[null,null,null,null,null,null,""]
[null,null,null,null,null,null,""]
[null,null,null,null,null,null,""]
[null,null,null,null,null,null,""]
[null,null,null,null,null,null,""]
[null,null,null,null,null,null,""]
[null,null,null,null,null,null,""]
[null,null,null,null,null,null,""]
[null,null,null,null,null,null,""]
[null,null,null,null,null,null,""]
[null,null,null,null,null,null,""]
[null,null,null,null,null,null,""]
[null,null,null,null,null,null,""]
[null,null,null,null,null,null,""]
[null,null,null,null,null,null,""]
[null,null,null,null,null,null,""]
[null,null,null,null,null,null,""]
[null,null,null,null,null,null,""]
[null,null,null,null,null,null,""]
[null,null,null,null,null,null,""]
[null,null,null,null,null,null,""]
[null,null,null,null,null,null,""]
[null,null,null,null,null,null,""]
[null,null,null,null,null,null,""]
[null,null,null,null,null,null,""]
[null,null,null,null,null,null,""]
[null,null,null,null,null,null,""]
[null,null,null,null,null,null,""]
[null,null,null,null,null,null,""]
[null,null,null,null,null,null,""]
[null,null,null,null,null,null,""]
[null,null,null,null,null,null,""]
[null,null,null,null,null,null,""]
[null,null,null,null,null,null,""]
[null,null,null,null,null,null,""]
[null,null,null,null,null,null,""]
[null,null,null,null,null,null,""]
[null,null,null,null,null,null,""]
[null,null,null,null,null,null,""]
[null,null,null,null,null,null,""]
[null,null,null,null,null,null,""]
[null,null,null,null,null,null,""]
[null,null,null,null,null,null,""]
[null,null,null,null,null,null,""]
[null,null,null,null,null,null,""]
[null,null,null,null,null,null,""]
[null,null,null,null,null,null,""]
[null,null,null,null,null,null,""]
[null,null,null,null,null,null,""]
[null,null,null,null,null,null,""]
[null,null,null,null,null,null,""]
[null,null,null,null,null,null,""]
[null,null,null,null,null,null,""]
[null,null,null,null,null,null,""]
[null,null,null,null,null,null,""]
[null,null,null,null,null,null,""]
[null,null,null,null,null,null,""]
[null,null,null,null,null,null,""]
[null,null,null,null,null,null,""]
[null,null,null,null,null,null,""]
[null,null,null,null,null,null,""]
[null,null,null,null,null,null,""]
[null,null,null,null,null,null,""]
[null,null,null,null,null,null,""]
[null,null,null,null,null,null,""]
[null,null,null,null,null,null,""]
[null,null,null,null,null,null,""]
[null,null,null,null,null,null,""]
[null,null,null,null,null,null,""]
[null,null,null,null,null,null,""]
[null,null,null,null,null,null,""]
[null,null,null,null,null,null,""]
[null,null,null,null,null,null,""]
[null,null,null,null,null,null,""]
[null,null,null,null,null,null,""]
[null,null,null,null,null,null,""]
[null,null,null,null,null,null,""]
[null,null,null,null,null,null,""]
[null,null,null,null,null,null,""]
[null,null,null,null,null,null,""]
[null,null,null,null,null,null,""]
[null,null,null,null,null,null,""]
[null,null,null,null,null,null,""]
[null,null,null,null,null,null,""]
[null,null,null,null,null,null,""]
[null,null,null,null,null,null,""]
[null,null,null,null,null,null,""]
[null,null,null,null,null,null,""]
[null,null,null,null,null,null,""]
[null,null,null,null,null,null,""]
[null,null,null,null,null,null,""]
[null,null,null,null,null,null,""]
[null,null,null,null,null,null,""]
[null,null,null,null,null,null,""]
[null,null,null,null,null,null,""]
[null,null,null,null,null,null,""]
[null,null,null,null,null,null,""]
[null,null,null,null,null,null,""]
[null,null,null,null,null,null,""]
[null,null,null,null,null,null,""]
[null,null,null,null,null,null,""]
[null,null,null,null,null,null,""]
[null,null,null,null,null,null,""]
[null,null,null,null,null,null,""]
[null,null,null,null,null,null,""]
[null,null,null,null,null,null,""]
[null,null,null,null,null,null,""]
[null,null,null,null,null,null,""]
[null,null,null,null,null,null,""]
[null,null,null,null,null,null,""]
[null,null,null,null,null,null,""]
[null,null,null,null,null,null,""]
[null,null,null,null,null,null,""]
[null,null,null,null,null,null,""]
[null,null,null,null,null,null,""]
[null,null,null,null,null,null,""]
[null,null,null,null,null,null,""]
[null,null,null,null,null,null,""]
[null,null,null,null,null,null,""]
[null,null,null,null,null,null,""]
[null,null,null,null,null,null,""]
[null,null,null,null,null,null,""]
[null,null,null,null,null,null,""]
[null,null,null,null,null,null,""]
[null,null,null,null,null,null,""]
[null,null,null,null,null,null,""]
[null,null,null,null,null,null,""]
[null,null,null,null,null,null,""]
[null,null,null,null,null,null,""]
[null,null,null,null,null,null,""]
[null,null,null,null,null,null,""]
[null,null,null,null,null,null,""]
[null,null,null,null,null,null,""]
[null,null,null,null,null,null,""]
[null,null,null,null,null,null,""]
[null,null,null,null,null,null,""]
[null,null,null,null,null,null,""]
[null,null,null,null,null,null,""]
[null,null,null,null,null,null,""]
[null,null,null,null,null,null,""]
[null,null,null,null,null,null,""]
[null,null,null,null,null,null,""]
[null,null,null,null,null,null,""]
[null,null,null,null,null,null,""]
[null,null,null,null,null,null,""]
[null,null,null,null,null,null,""]
[null,null,null,null,null,null,""]
[null,null,null,null,null,null,""]
[null,null,null,null,null,null,""]
[null,null,null,null,null,null,""]
[null,null,null,null,null,null,""]
[null,null,null,null,null,null,""]
[null,null,null,null,null,null,""]
[null,null,null,null,null,null,""]
[null,null,null,null,null,null,""]
[null,null,null,null,null,null,""]
[null,null,null,null,null,null,""]
[null,null,null,null,null,null,""]
[null,null,null,null,null,null,""]
[null,null,null,null,null,null,""]
[null,null,null,null,null,null,""]
[null,null,null,null,null,null,""]
[null,null,null,null,null,null,""]
[null,null,null,null,null,null,""]
[null,null,null,null,null,null,""]
[null,null,null,null,null,null,""]
[null,null,null,null,null,null,""]
[null,null,null,null,null,null,""]
[null,null,null,null,null,null,""]
[null,null,null,null,null,null,""]
[null,null,null,null,null,null,""]
[null,null,null,null,null,null,""]
[null,null,null,null,null,null,""]
[null,null,null,null,null,null,""]
[null,null,null,null,null,null,""]
[null,null,null,null,null,null,""]
[null,null,null,null,null,null,""]
[null,null,null,null,null,null,""]
[null,null,null,null,null,null,""]
[null,null,null,null,null,null,""]
[null,null,null,null,null,null,""]
[null,null,null,null,null,null,""]
[null,null,null,null,null,null,""]
[null,null,null,null,null,null,""]
[null,null,null,null,null,null,""]
[null,null,null,null,null,null,""]
[null,null,null,null,null,null,""]
[null,null,null,null,null,null,""]
[null,null,null,null,null,null,""]
[null,null,null,null,null,null,""]
[null,null,null,null,null,null,""]
[null,null,null,null,null,null,""]
[null,null,null,null,null,null,""]
[null,null,null,null,null,null,""]
[null,null,null,null,null,null,""]
[null,null,null,null,null,null,""]
[null,null,null,null,null,null,""]
[null,null,null,null,null,null,""]
[null,null,null,null,null,null,""]
[null,null,null,null,null,null,""]
[null,null,null,null,null,null,""]
[null,null,null,null,null,null,""]
[null,null,null,null,null,null,""]
[null,null,null,null,null,null,""]
[null,null,null,null,null,null,""]
[null,null,null,null,null,null,""]
[null,null,null,null,null,null,""]
[null,null,null,null,null,null,""]
[null,null,null,null,null,null,""]
[null,null,null,null,null,null,""]
[null,null,null,null,null,null,""]
[null,null,null,null,null,null,""]
[null,null,null,null,null,null,""]
[null,null,null,null,null,null,""]
[null,null,null,null,null,null,""]
[null,null,null,null,null,null,""]
[null,null,null,null,null,null,""]
[null,null,null,null,null,null,""]
[null,null,null,null,null,null,""]
[null,null,null,null,null,null,""]
[null,null,null,null,null,null,""]
[null,null,null,null,null,null,""]
[null,null,null,null,null,null,""]
[null,null,null,null,null,null,""]
[null,null,null,null,null,null,""]
[null,null,null,null,null,null,""]
[null,null,null,null,null,null,""]
[null,null,null,null,null,null,""]
[null,null,null,null,null,null,""]
[null,null,null,null,null,null,""]
[null,null,null,null,null,null,""]
[null,null,null,null,null,null,""]
[null,null,null,null,null,null,""]
[null,null,null,null,null,null,""]
[null,null,null,null,null,null,""]
[null,null,null,null,null,null,""]
[null,null,null,null,null,null,""]
[null,null,null,null,null,null,""]
[null,null,null,null,null,null,""]
[null,null,null,null,null,null,""]
[null,null,null,null,null,null,""]
[null,null,null,null,null,null,""]
[null,null,null,null,null,null,""]
[null,null,null,null,null,null,""]
[null,null,null,null,null,null,""]

{"sheet":"E05","index":7,"n_rows":664,"n_cols":7,"rows_kept":664,"cut":false,"hidden":false,"merged":[[73,1,73,3],[74,2,74,3],[75,2,75,3],[76,2,76,3],[77,2,82,3],[60,1,60,3],[61,2,61,3],[62,2,62,3],[63,2,63,3],[64,2,69,3],[45,1,45,3],[46,2,46,3],[47,2,47,3],[48,2,48,3],[49,2,54,3],[32,1,32,3],[33,2,33,3],[34,2,34,3],[35,2,35,3],[36,2,41,3],[20,2,20,3],[17,1,17,3],[18,2,18,3],[21,2,26,3],[4,1,4,3],[8,2,13,3],[19,2,19,3],[5,2,5,3],[6,2,6,3],[7,2,7,3]]}
[]
[null,null,null,null,null,null,""]
[null,"5.1 -자연환경 및 생태계 건강",null,null,null,null,"5.1"]
[null,null,null,null,null,null,""]
[null,"5.1.1 - 생태계 서비스의 도시 재난 복원력에의 역할 인지\n",null,null,null,null,"5.1.1"]
[null,"주제 / 현안","비고",null,null,null,""]
[null,null,null,null,null,null,""]
[null,"대답","증빙수단(설명과 증빙자료)",null,null,null,""]
[null,null,null,null,null,{"$f":"IF(E9=1,TRUE,FALSE)","v":false},""]
[null,null,null,null,null,{"$f":"IF(E9=2,TRUE,FALSE)","v":false},""]
[null,null,null,null,null,{"$f":"IF(E9=3,TRUE,FALSE)","v":false},""]
[null,null,null,null,null,{"$f":"IF(E9=4,TRUE,FALSE)","v":false},""]
[null,null,null,null,null,{"$f":"IF(E9=5,TRUE,FALSE)","v":false},""]
[null,null,null,null,null,{"$f":"IF(E9=6,TRUE,FALSE)","v":false},""]
[null,"최상의 복원력을 달성하기 위한 활동계획","담당부서","추진기간",null,null,""]
[null,null,null,null,null,null,""]
[null,null,null,null,null,null,""]
[null,"5.1.2 - 생태계 건강",null,null,null,null,"5.1.2"]
[null,"주제 / 현안","비고",null,null,null,""]
[null,null,null,null,null,null,""]
[null,"대답","증빙수단(설명과 증빙자료)",null,null,null,""]
[null,null,null,null,null,{"$f":"IF(E22=1,TRUE,FALSE)","v":false},""]
[null,null,null,null,null,{"$f":"IF(E22=2,TRUE,FALSE)","v":false},""]
[null,null,null,null,null,{"$f":"IF(E22=3,TRUE,FALSE)","v":false},""]
[null,null,null,null,null,{"$f":"IF(E22=4,TRUE,FALSE)","v":false},""]
[null,null,null,null,null,{"$f":"IF(E22=5,TRUE,FALSE)","v":false},""]
[null,null,null,null,null,{"$f":"IF(E22=6,TRUE,FALSE)","v":false},""]
[null,"최상의 복원력을 달성하기 위한 활동계획","담당부서","추진기간",null,null,""]
[null,null,null,null,null,null,""]
[null,null,null,null,null,null,""]
[null,"5.2 - 친환경 사회기반시설의 도시 정책과 프로젝트 통합",null,null,null,null,"5.2"]
[null,null,null,null,null,null,""]
[null,"5.2.1 - 토지이용정책이 생태계 서비스에 미치는 영향",null,null,null,null,"5.2.1"]
[null,"주제 / 현안","비고",null,null,null,""]
[null,null,null,null,null,null,""]
[null,"대답","증빙수단(설명과 증빙자료)",null,null,null,""]
[null,null,null,null,null,{"$f":"IF(E37=1,TRUE,FALSE)","v":false},""]
[null,null,null,null,null,{"$f":"IF(E37=2,TRUE,FALSE)","v":false},""]
[null,null,null,null,null,{"$f":"IF(E37=3,TRUE,FALSE)","v":false},""]
[null,null,null,null,null,{"$f":"IF(E37=4,TRUE,FALSE)","v":false},""]
[null,null,null,null,null,{"$f":"IF(E37=5,TRUE,FALSE)","v":false},""]
[null,null,null,null,null,{"$f":"IF(E37=6,TRUE,FALSE)","v":false},""]
[null,"최상의 복원력을 달성하기 위한 활동계획","담당부서","추진기간",null,null,""]
[null,null,null,null,null,null,""]
[null,null,null,null,null,null,""]
[null,"5.2.2 - 도시 사업에 친환경 사회기반시설의 정기적 반영",null,null,null,null,"5.2.2"]
[null,"주제 / 현안","비고",null,null,null,""]
[null,null,null,null,null,null,""]
[null,"대답","증빙수단(설명과 증빙자료)",null,null,null,""]
[null,null,null,null,null,{"$f":"IF(E50=1,TRUE,FALSE)","v":false},""]
[null,null,null,null,null,{"$f":"IF(E50=2,TRUE,FALSE)","v":false},""]
[null,null,null,null,null,{"$f":"IF(E50=3,TRUE,FALSE)","v":false},""]
[null,null,null,null,null,{"$f":"IF(E50=4,TRUE,FALSE)","v":false},""]
[null,null,null,null,null,{"$f":"IF(E50=5,TRUE,FALSE)","v":false},""]
[null,null,null,null,null,{"$f":"IF(E50=6,TRUE,FALSE)","v":false},""]
[null,"최상의 복원력을 달성하기 위한 활동계획","담당부서","추진기간",null,null,""]
[null,null,null,null,null,null,""]
[null,null,null,null,null,null,""]
[null,"5.3 - 경계를 넘는 환경적 현안",null,null,null,null,"5.3"]
[null,null,null,null,null,null,""]
[null,"5.3.1 - 주요 환경 자산의 파악",null,null,null,null,"5.3.1"]
[null,"주제 / 현안","비고",null,null,null,""]
[null,null,null,null,null,null,""]
[null,"대답","증빙수단(설명과 증빙자료)",null,null,null,""]
[null,null,null,null,null,{"$f":"IF(E65=1,TRUE,FALSE)","v":false},""]
[null,null,null,null,null,{"$f":"IF(E65=2,TRUE,FALSE)","v":false},""]
[null,null,null,null,null,{"$f":"IF(E65=3,TRUE,FALSE)","v":false},""]
[null,null,null,null,null,{"$f":"IF(E65=4,TRUE,FALSE)","v":false},""]
[null,null,null,null,null,{"$f":"IF(E65=5,TRUE,FALSE)","v":false},""]
[null,null,null,null,null,{"$f":"IF(E65=6,TRUE,FALSE)","v":false},""]
[null,"최상의 복원력을 달성하기 위한 활동계획","담당부서","추진기간",null,null,""]
[null,null,null,null,null,null,""]
[null,null,null,null,null,null,""]
[null,"5.3.2 - 경계를 넘는 합의",null,null,null,null,"5.3.2"]
[null,"주제 / 현안","비고",null,null,null,""]
[null,null,null,null,null,null,""]
[null,"대답","증빙수단(설명과 증빙자료)",null,null,null,""]
[null,null,null,null,null,{"$f":"IF(E78=1,TRUE,FALSE)","v":false},""]
[null,null,null,null,null,{"$f":"IF(E78=2,TRUE,FALSE)","v":false},""]
[null,null,null,null,null,{"$f":"IF(E78=3,TRUE,FALSE)","v":false},""]
[null,null,null,null,null,{"$f":"IF(E78=4,TRUE,FALSE)","v":false},""]
[null,null,null,null,null,{"$f":"IF(E78=5,TRUE,FALSE)","v":false},""]
[null,null,null,null,null,{"$f":"IF(E78=6,TRUE,FALSE)","v":false},""]
[null,"최상의 복원력을 달성하기 위한 활동계획","담당부서","추진기간",null,null,""]
[null,null,null,null,null,null,""]
[null,null,null,null,null,null,""]
[null,null,null,null,null,null,""]
[null,null,null,null,null,null,""]
[null,null,null,null,null,null,""]
[null,null,null,null,null,null,""]
[null,null,null,null,null,null,""]
[null,null,null,null,null,null,""]
[null,null,null,null,null,null,""]
[null,null,null,null,null,null,""]
[null,null,null,null,null,null,""]
[null,null,null,null,null,null,""]
[null,null,null,null,null,null,""]
[null,null,null,null,null,null,""]
[null,null,null,null,null,null,""]
[null,null,null,null,null,null,""]
[null,null,null,null,null,null,""]
[null,null,null,null,null,null,""]
[null,null,null,null,null,null,""]
[null,null,null,null,null,null,""]
[null,null,null,null,null,null,""]
[null,null,null,null,null,null,""]
[null,null,null,null,null,null,""]
[null,null,null,null,null,null,""]
[null,null,null,null,null,null,""]
[null,null,null,null,null,null,""]
[null,null,null,null,null,null,""]
[null,null,null,null,null,null,""]
[null,null,null,null,null,null,""]
[null,null,null,null,null,null,""]
[null,null,null,null,null,null,""]
[null,null,null,null,null,null,""]
[null,null,null,null,null,null,""]
[null,null,null,null,null,null,""]
[null,null,null,null,null,null,""]
[null,null,null,null,null,null,""]
[null,null,null,null,null,null,""]
[null,null,null,null,null,null,""]
[null,null,null,null,null,null,""]
[null,null,null,null,null,null,""]
[null,null,null,null,null,null,""]
[null,null,null,null,null,null,""]
[null,null,null,null,null,null,""]
[null,null,null,null,null,null,""]
[null,null,null,null,null,null,""]
[null,null,null,null,null,null,""]
[null,null,null,null,null,null,""]
[null,null,null,null,null,null,""]
[null,null,null,null,null,null,""]
[null,null,null,null,null,null,""]
[null,null,null,null,null,null,""]
[null,null,null,null,null,null,""]
[null,null,null,null,null,null,""]
[null,null,null,null,null,null,""]
[null,null,null,null,null,null,""]
[null,null,null,null,null,null,""]
[null,null,null,null,null,null,""]
[null,null,null,null,null,null,""]
[null,null,null,null,null,null,""]
[null,null,null,null,null,null,""]
[null,null,null,null,null,null,""]
[null,null,null,null,null,null,""]
[null,null,null,null,null,null,""]
[null,null,null,null,null,null,""]
[null,null,null,null,null,null,""]
[null,null,null,null,null,null,""]
[null,null,null,null,null,null,""]
[null,null,null,null,null,null,""]
[null,null,null,null,null,null,""]
[null,null,null,null,null,null,""]
[null,null,null,null,null,null,""]
[null,null,null,null,null,null,""]
[null,null,null,null,null,null,""]
[null,null,null,null,null,null,""]
[null,null,null,null,null,null,""]
[null,null,null,null,null,null,""]
[null,null,null,null,null,null,""]
[null,null,null,null,null,null,""]
[null,null,null,null,null,null,""]
[null,null,null,null,null,null,""]
[null,null,null,null,null,null,""]
[null,null,null,null,null,null,""]
[null,null,null,null,null,null,""]
[null,null,null,null,null,null,""]
[null,null,null,null,null,null,""]
[null,null,null,null,null,null,""]
[null,null,null,null,null,null,""]
[null,null,null,null,null,null,""]
[null,null,null,null,null,null,""]
[null,null,null,null,null,null,""]
[null,null,null,null,null,null,""]
[null,null,null,null,null,null,""]
[null,null,null,null,null,null,""]
[null,null,null,null,null,null,""]
[null,null,null,null,null,null,""]
[null,null,null,null,null,null,""]
[null,null,null,null,null,null,""]
[null,null,null,null,null,null,""]
[null,null,null,null,null,null,""]
[null,null,null,null,null,null,""]
[null,null,null,null,null,null,""]
[null,null,null,null,null,null,""]
[null,null,null,null,null,null,""]
[null,null,null,null,null,null,""]
[null,null,null,null,null,null,""]
[null,null,null,null,null,null,""]
[null,null,null,null,null,null,""]
[null,null,null,null,null,null,""]
[null,null,null,null,null,null,""]
[null,null,null,null,null,null,""]
[null,null,null,null,null,null,""]
[null,null,null,null,null,null,""]
[null,null,null,null,null,null,""]
[null,null,null,null,null,null,""]
[null,null,null,null,null,null,""]
[null,null,null,null,null,null,""]
[null,null,null,null,null,null,""]
[null,null,null,null,null,null,""]
[null,null,null,null,null,null,""]
[null,null,null,null,null,null,""]
[null,null,null,null,null,null,""]
[null,null,null,null,null,null,""]
[null,null,null,null,null,null,""]
[null,null,null,null,null,null,""]
[null,null,null,null,null,null,""]
[null,null,null,null,null,null,""]
[null,null,null,null,null,null,""]
[null,null,null,null,null,null,""]
[null,null,null,null,null,null,""]
[null,null,null,null,null,null,""]
[null,null,null,null,null,null,""]
[null,null,null,null,null,null,""]
[null,null,null,null,null,null,""]
[null,null,null,null,null,null,""]
[null,null,null,null,null,null,""]
[null,null,null,null,null,null,""]
[null,null,null,null,null,null,""]
[null,null,null,null,null,null,""]
[null,null,null,null,null,null,""]
[null,null,null,null,null,null,""]
[null,null,null,null,null,null,""]
[null,null,null,null,null,null,""]
[null,null,null,null,null,null,""]
[null,null,null,null,null,null,""]
[null,null,null,null,null,null,""]
[null,null,null,null,null,null,""]
[null,null,null,null,null,null,""]
[null,null,null,null,null,null,""]
[null,null,null,null,null,null,""]
[null,null,null,null,null,null,""]
[null,null,null,null,null,null,""]
[null,null,null,null,null,null,""]
[null,null,null,null,null,null,""]
[null,null,null,null,null,null,""]
[null,null,null,null,null,null,""]
[null,null,null,null,null,null,""]
[null,null,null,null,null,null,""]
[null,null,null,null,null,null,""]
[null,null,null,null,null,null,""]
[null,null,null,null,null,null,""]
[null,null,null,null,null,null,""]
[null,null,null,null,null,null,""]
[null,null,null,null,null,null,""]
[null,null,null,null,null,null,""]
[null,null,null,null,null,null,""]
[null,null,null,null,null,null,""]
[null,null,null,null,null,null,""]
[null,null,null,null,null,null,""]
[null,null,null,null,null,null,""]
[null,null,null,null,null,null,""]
[null,null,null,null,null,null,""]
[null,null,null,null,null,null,""]
[null,null,null,null,null,null,""]
[null,null,null,null,null,null,""]
[null,null,null,null,null,null,""]
[null,null,null,null,null,null,""]
[null,null,null,null,null,null,""]
[null,null,null,null,null,null,""]
[null,null,null,null,null,null,""]
[null,null,null,null,null,null,""]
[null,null,null,null,null,null,""]
[null,null,null,null,null,null,""]
[null,null,null,null,null,null,""]
[null,null,null,null,null,null,""]
[null,null,null,null,null,null,""]
[null,null,null,null,null,null,""]
[null,null,null,null,null,null,""]
[null,null,null,null,null,null,""]
[null,null,null,null,null,null,""]
[null,null,null,null,null,null,""]
[null,null,null,null,null,null,""]
[null,null,null,null,null,null,""]
[null,null,null,null,null,null,""]
[null,null,null,null,null,null,""]
[null,null,null,null,null,null,""]
[null,null,null,null,null,null,""]
[null,null,null,null,null,null,""]
[null,null,null,null,null,null,""]
[null,null,null,null,null,null,""]
[null,null,null,null,null,null,""]
[null,null,null,null,null,null,""]
[null,null,null,null,null,null,""]
[null,null,null,null,null,null,""]
[null,null,null,null,null,null,""]
[null,null,null,null,null,null,""]
[null,null,null,null,null,null,""]
[null,null,null,null,null,null,""]
[null,null,null,null,null,null,""]
[null,null,null,null,null,null,""]
[null,null,null,null,null,null,""]
[null,null,null,null,null,null,""]
[null,null,null,null,null,null,""]
[null,null,null,null,null,null,""]
[null,null,null,null,null,null,""]
[null,null,null,null,null,null,""]
[null,null,null,null,null,null,""]
[null,null,null,null,null,null,""]
[null,null,null,null,null,null,""]
[null,null,null,null,null,null,""]
[null,null,null,null,null,null,""]
[null,null,null,null,null,null,""]
[null,null,null,null,null,null,""]
[null,null,null,null,null,null,""]
[null,null,null,null,null,null,""]
[null,null,null,null,null,null,""]
[null,null,null,null,null,null,""]
[null,null,null,null,null,null,""]
[null,null,null,null,null,null,""]
[null,null,null,null,null,null,""]
[null,null,null,null,null,null,""]
[null,null,null,null,null,null,""]
[null,null,null,null,null,null,""]
[null,null,null,null,null,null,""]
[null,null,null,null,null,null,""]
[null,null,null,null,null,null,""]
[null,null,null,null,null,null,""]
[null,null,null,null,null,null,""]
[null,null,null,null,null,null,""]
[null,null,null,null,null,null,""]
[null,null,null,null,null,null,""]
[null,null,null,null,null,null,""]
[null,null,null,null,null,null,""]
[null,null,null,null,null,null,""]
[null,null,null,null,null,null,""]
[null,null,null,null,null,null,""]
[null,null,null,null,null,null,""]
[null,null,null,null,null,null,""]
[null,null,null,null,null,null,""]
[null,null,null,null,null,null,""]
[null,null,null,null,null,null,""]
[null,null,null,null,null,null,""]
[null,null,null,null,null,null,""]
[null,null,null,null,null,null,""]
[null,null,null,null,null,null,""]
[null,null,null,null,null,null,""]
[null,null,null,null,null,null,""]
[null,null,null,null,null,null,""]
[null,null,null,null,null,null,""]
[null,null,null,null,null,null,""]
[null,null,null,null,null,null,""]
[null,null,null,null,null,null,""]
[null,null,null,null,null,null,""]
[null,null,null,null,null,null,""]
[null,null,null,null,null,null,""]
[null,null,null,null,null,null,""]
[null,null,null,null,null,null,""]
[null,null,null,null,null,null,""]
[null,null,null,null,null,null,""]
[null,null,null,null,null,null,""]
[null,null,null,null,null,null,""]
[null,null,null,null,null,null,""]
[null,null,null,null,null,null,""]
[null,null,null,null,null,null,""]
[null,null,null,null,null,null,""]
[null,null,null,null,null,null,""]
[null,null,null,null,null,null,""]
[null,null,null,null,null,null,""]
[null,null,null,null,null,null,""]
[null,null,null,null,null,null,""]
[null,null,null,null,null,null,""]
[null,null,null,null,null,null,""]
[null,null,null,null,null,null,""]
[null,null,null,null,null,null,""]
[null,null,null,null,null,null,""]
[null,null,null,null,null,null,""]
[null,null,null,null,null,null,""]
[null,null,null,null,null,null,""]
[null,null,null,null,null,null,""]
[null,null,null,null,null,null,""]
[null,null,null,null,null,null,""]
[null,null,null,null,null,null,""]
[null,null,null,null,null,null,""]
[null,null,null,null,null,null,""]
[null,null,null,null,null,null,""]
[null,null,null,null,null,null,""]
[null,null,null,null,null,null,""]
[null,null,null,null,null,null,""]
[null,null,null,null,null,null,""]
[null,null,null,null,null,null,""]
[null,null,null,null,null,null,""]
[null,null,null,null,null,null,""]
[null,null,null,null,null,null,""]
[null,null,null,null,null,null,""]
[null,null,null,null,null,null,""]
[null,null,null,null,null,null,""]
[null,null,null,null,null,null,""]
[null,null,null,null,null,null,""]
[null,null,null,null,null,null,""]
[null,null,null,null,null,null,""]
[null,null,null,null,null,null,""]
[null,null,null,null,null,null,""]
[null,null,null,null,null,null,""]
[null,null,null,null,null,null,""]
[null,null,null,null,null,null,""]
[null,null,null,null,null,null,""]
[null,null,null,null,null,null,""]
[null,null,null,null,null,null,""]
[null,null,null,null,null,null,""]
[null,null,null,null,null,null,""]
[null,null,null,null,null,null,""]
[null,null,null,null,null,null,""]
[null,null,null,null,null,null,""]
[null,null,null,null,null,null,""]
[null,null,null,null,null,null,""]
[null,null,null,null,null,null,""]
[null,null,null,null,null,null,""]
[null,null,null,null,null,null,""]
[null,null,null,null,null,null,""]
[null,null,null,null,null,null,""]
[null,null,null,null,null,null,""]
[null,null,null,null,null,null,""]
[null,null,null,null,null,null,""]
[null,null,null,null,null,null,""]
[null,null,null,null,null,null,""]
[null,null,null,null,null,null,""]
[null,null,null,null,null,null,""]
[null,null,null,null,null,null,""]
[null,null,null,null,null,null,""]
[null,null,null,null,null,null,""]
[null,null,null,null,null,null,""]
[null,null,null,null,null,null,""]
[null,null,null,null,null,null,""]
[null,null,null,null,null,null,""]
[null,null,null,null,null,null,""]
[null,null,null,null,null,null,""]
[null,null,null,null,null,null,""]
[null,null,null,null,null,null,""]
[null,null,null,null,null,null,""]
[null,null,null,null,null,null,""]
[null,null,null,null,null,null,""]
[null,null,null,null,null,null,""]
[null,null,null,null,null,null,""]
[null,null,null,null,null,null,""]
[null,null,null,null,null,null,""]
[null,null,null,null,null,null,""]
[null,null,null,null,null,null,""]
[null,null,null,null,null,null,""]
[null,null,null,null,null,null,""]
[null,null,null,null,null,null,""]
[null,null,null,null,null,null,""]
[null,null,null,null,null,null,""]
[null,null,null,null,null,null,""]
[null,null,null,null,null,null,""]
[null,null,null,null,null,null,""]
[null,null,null,null,null,null,""]
[null,null,null,null,null,null,""]
[null,null,null,null,null,null,""]
[null,null,null,null,null,null,""]
[null,null,null,null,null,null,""]
[null,null,null,null,null,null,""]
[null,null,null,null,null,null,""]
[null,null,null,null,null,null,""]
[null,null,null,null,null,null,""]
[null,null,null,null,null,null,""]
[null,null,null,null,null,null,""]
[null,null,null,null,null,null,""]
[null,null,null,null,null,null,""]
[null,null,null,null,null,null,""]
[null,null,null,null,null,null,""]
[null,null,null,null,null,null,""]
[null,null,null,null,null,null,""]
[null,null,null,null,null,null,""]
[null,null,null,null,null,null,""]
[null,null,null,null,null,null,""]
[null,null,null,null,null,null,""]
[null,null,null,null,null,null,""]
[null,null,null,null,null,null,""]
[null,null,null,null,null,null,""]
[null,null,null,null,null,null,""]
[null,null,null,null,null,null,""]
[null,null,null,null,null,null,""]
[null,null,null,null,null,null,""]
[null,null,null,null,null,null,""]
[null,null,null,null,null,null,""]
[null,null,null,null,null,null,""]
[null,null,null,null,null,null,""]
[null,null,null,null,null,null,""]
[null,null,null,null,null,null,""]
[null,null,null,null,null,null,""]
[null,null,null,null,null,null,""]
[null,null,null,null,null,null,""]
[null,null,null,null,null,null,""]
[null,null,null,null,null,null,""]
[null,null,null,null,null,null,""]
[null,null,null,null,null,null,""]
[null,null,null,null,null,null,""]
[null,null,null,null,null,null,""]
[null,null,null,null,null,null,""]
[null,null,null,null,null,null,""]
[null,null,null,null,null,null,""]
[null,null,null,null,null,null,""]
[null,null,null,null,null,null,""]
[null,null,null,null,null,null,""]
[null,null,null,null,null,null,""]
[null,null,null,null,null,null,""]
[null,null,null,null,null,null,""]
[null,null,null,null,null,null,""]
[null,null,null,null,null,null,""]
[null,null,null,null,null,null,""]
[null,null,null,null,null,null,""]
[null,null,null,null,null,null,""]
[null,null,null,null,null,null,""]
[null,null,null,null,null,null,""]
[null,null,null,null,null,null,""]
[null,null,null,null,null,null,""]
[null,null,null,null,null,null,""]
[null,null,null,null,null,null,""]
[null,null,null,null,null,null,""]
[null,null,null,null,null,null,""]
[null,null,null,null,null,null,""]
[null,null,null,null,null,null,""]
[null,null,null,null,null,null,""]
[null,null,null,null,null,null,""]
[null,null,null,null,null,null,""]
[null,null,null,null,null,null,""]
[null,null,null,null,null,null,""]
[null,null,null,null,null,null,""]
[null,null,null,null,null,null,""]
[null,null,null,null,null,null,""]
[null,null,null,null,null,null,""]
[null,null,null,null,null,null,""]
[null,null,null,null,null,null,""]
[null,null,null,null,null,null,""]
[null,null,null,null,null,null,""]
[null,null,null,null,null,null,""]
[null,null,null,null,null,null,""]
[null,null,null,null,null,null,""]
[null,null,null,null,null,null,""]
[null,null,null,null,null,null,""]
[null,null,null,null,null,null,""]
[null,null,null,null,null,null,""]
[null,null,null,null,null,null,""]
[null,null,null,null,null,null,""]
[null,null,null,null,null,null,""]
[null,null,null,null,null,null,""]
[null,null,null,null,null,null,""]
[null,null,null,null,null,null,""]
[null,null,null,null,null,null,""]
[null,null,null,null,null,null,""]
[null,null,null,null,null,null,""]
[null,null,null,null,null,null,""]
[null,null,null,null,null,null,""]
[null,null,null,null,null,null,""]
[null,null,null,null,null,null,""]
[null,null,null,null,null,null,""]
[null,null,null,null,null,null,""]
[null,null,null,null,null,null,""]
[null,null,null,null,null,null,""]
[null,null,null,null,null,null,""]
[null,null,null,null,null,null,""]
[null,null,null,null,null,null,""]
[null,null,null,null,null,null,""]
[null,null,null,null,null,null,""]
[null,null,null,null,null,null,""]
[null,null,null,null,null,null,""]
[null,null,null,null,null,null,""]
[null,null,null,null,null,null,""]
[null,null,null,null,null,null,""]
[null,null,null,null,null,null,""]
[null,null,null,null,null,null,""]
[null,null,null,null,null,null,""]
[null,null,null,null,null,null,""]
[null,null,null,null,null,null,""]
[null,null,null,null,null,null,""]
[null,null,null,null,null,null,""]
[null,null,null,null,null,null,""]
[null,null,null,null,null,null,""]
[null,null,null,null,null,null,""]
[null,null,null,null,null,null,""]
[null,null,null,null,null,null,""]
[null,null,null,null,null,null,""]
[null,null,null,null,null,null,""]
[null,null,null,null,null,null,""]
[null,null,null,null,null,null,""]
[null,null,null,null,null,null,""]
[null,null,null,null,null,null,""]
[null,null,null,null,null,null,""]
[null,null,null,null,null,null,""]
[null,null,null,null,null,null,""]
[null,null,null,null,null,null,""]
[null,null,null,null,null,null,""]
[null,null,null,null,null,null,""]
[null,null,null,null,null,null,""]
[null,null,null,null,null,null,""]
[null,null,null,null,null,null,""]
[null,null,null,null,null,null,""]
[null,null,null,null,null,null,""]
[null,null,null,null,null,null,""]
[null,null,null,null,null,null,""]
[null,null,null,null,null,null,""]
[null,null,null,null,null,null,""]
[null,null,null,null,null,null,""]
[null,null,null,null,null,null,""]
[null,null,null,null,null,null,""]
[null,null,null,null,null,null,""]
[null,null,null,null,null,null,""]
[null,null,null,null,null,null,""]
[null,null,null,null,null,null,""]
[null,null,null,null,null,null,""]
[null,null,null,null,null,null,""]
[null,null,null,null,null,null,""]
[null,null,null,null,null,null,""]
[null,null,null,null,null,null,""]
[null,null,null,null,null,null,""]
[null,null,null,null,null,null,""]
[null,null,null,null,null,null,""]
[null,null,null,null,null,null,""]
[null,null,null,null,null,null,""]
[null,null,null,null,null,null,""]
[null,null,null,null,null,null,""]
[null,null,null,null,null,null,""]
[null,null,null,null,null,null,""]
[null,null,null,null,null,null,""]
[null,null,null,null,null,null,""]
[null,null,null,null,null,null,""]
[null,null,null,null,null,null,""]
[null,null,null,null,null,null,""]
[null,null,null,null,null,null,""]
[null,null,null,null,null,null,""]
[null,null,null,null,null,null,""]
[null,null,null,null,null,null,""]
[null,null,null,null,null,null,""]
[null,null,null,null,null,null,""]
[null,null,null,null,null,null,""]
[null,null,null,null,null,null,""]
[null,null,null,null,null,null,""]
[null,null,null,null,null,null,""]
[null,null,null,null,null,null,""]
[null,null,null,null,null,null,""]
[null,null,null,null,null,null,""]
[null,null,null,null,null,null,""]
[null,null,null,null,null,null,""]
[null,null,null,null,null,null,""]
[null,null,null,null,null,null,""]
[null,null,null,null,null,null,""]
[null,null,null,null,null,null,""]
[null,null,null,null,null,null,""]
[null,null,null,null,null,null,""]
[null,null,null,null,null,null,""]
[null,null,null,null,null,null,""]
[null,null,null,null,null,null,""]
[null,null,null,null,null,null,""]
[null,null,null,null,null,null,""]
[null,null,null,null,null,null,""]
[null,null,null,null,null,null,""]
[null,null,null,null,null,null,""]
[null,null,null,null,null,null,""]
[null,null,null,null,null,null,""]
[null,null,null,null,null,null,""]
[null,null,null,null,null,null,""]
[null,null,null,null,null,null,""]
[null,null,null,null,null,null,""]
[null,null,null,null,null,null,""]
[null,null,null,null,null,null,""]
[null,null,null,null,null,null,""]
[null,null,null,null,null,null,""]
[null,null,null,null,null,null,""]
[null,null,null,null,null,null,""]
[null,null,null,null,null,null,""]
[null,null,null,null,null,null,""]

{"sheet":"E06","index":8,"n_rows":664,"n_cols":7,"rows_kept":664,"cut":false,"hidden":false,"merged":[[174,2,179,3],[173,2,173,3],[172,2,172,3],[171,2,171,3],[170,1,170,3],[155,1,155,3],[156,2,156,3],[157,2,157,3],[158,2,158,3],[159,2,164,3],[140,1,140,3],[141,2,141,3],[142,2,142,3],[143,2,143,3],[144,2,149,3],[131,2,136,3],[130,2,130,3],[129,2,129,3],[128,2,128,3],[127,1,127,3],[114,1,114,3],[115,2,115,3],[116,2,116,3],[117,2,117,3],[118,2,123,3],[103,2,108,3],[102,2,102,3],[101,2,101,3],[100,2,100,3],[99,1,99,3],[86,1,86,3],[87,2,87,3],[88,2,88,3],[89,2,89,3],[90,2,95,3],[43,1,43,3],[58,1,58,3],[61,2,61,3],[62,2,67,3],[75,2,80,3],[74,2,74,3],[73,2,73,3],[72,2,72,3],[71,1,71,3],[59,2,59,3],[60,2,60,3],[47,2,52,3],[46,2,46,3],[45,2,45,3],[44,2,44,3],[30,1,30,3],[31,2,31,3],[32,2,32,3],[33,2,33,3],[34,2,39,3],[17,1,17,3],[18,2,18,3],[19,2,19,3],[20,2,20,3],[21,2,26,3],[5,2,5,3],[4,1,4,3],[6,2,6,3],[7,2,7,3],[8,2,13,3]]}
[" "]
[null,null,null,null,null,null,""]
[null,"6.1 - 기술과 경험",null,null,null,null,"6.1"]
[null,null,null,null,null,null,""]
[null,"6.1.1 - 재난 복원력 - 위험도 파악, 경감, 계획, 대응 및 재난 후 대응 - 관련 기술과 경험의 이용 가능성",null,null,null,null,"6.1.1"]
[null,"주제 / 현안","비고",null,null,null,""]
[null,null,null,null,null,null,""]
[null,"대답","증빙수단(설명과 증빙자료)",null,null,null,""]
[null,null,null,null,null,{"$f":"IF(E9=1,TRUE,FALSE)","v":false},""]
[null,null,null,null,null,{"$f":"IF(E9=2,TRUE,FALSE)","v":false},""]
[null,null,null,null,null,{"$f":"IF(E9=3,TRUE,FALSE)","v":false},""]
[null,null,null,null,null,{"$f":"IF(E9=4,TRUE,FALSE)","v":false},""]
[null,null,null,null,null,{"$f":"IF(E9=5,TRUE,FALSE)","v":false},""]
[null,null,null,null,null,{"$f":"IF(E9=6,TRUE,FALSE)","v":false},""]
[null,"최상의 복원력을 달성하기 위한 활동계획","담당부서","추진기간",null,null,""]
[null,null,null,null,null,null,""]
[null,null,null,null,null,null,""]
[null,"6.1.2 -민간부문 연결",null,null,null,null,"6.1.2"]
[null,"주제 / 현안","비고",null,null,null,""]
[null,null,null,null,null,null,""]
[null,"대답","증빙수단(설명과 증빙자료)",null,null,null,""]
[null,null,null,null,null,{"$f":"IF(E22=1,TRUE,FALSE)","v":false},""]
[null,null,null,null,null,{"$f":"IF(E22=2,TRUE,FALSE)","v":false},""]
[null,null,null,null,null,{"$f":"IF(E22=3,TRUE,FALSE)","v":false},""]
[null,null,null,null,null,{"$f":"IF(E22=4,TRUE,FALSE)","v":false},""]
[null,null,null,null,null,{"$f":"IF(E22=5,TRUE,FALSE)","v":false},""]
[null,null,null,null,null,{"$f":"IF(E22=6,TRUE,FALSE)","v":false},""]
[null,"최상의 복원력을 달성하기 위한 활동계획","담당부서","추진기간",null,null,""]
[null,null,null,null,null,null,""]
[null,null,null,null,null,null,""]
[null,"6.1.3 - 보험부문의 참여",null,null,null,null,"6.1.3"]
[null,"주제 / 현안","비고",null,null,null,""]
[null,null,null,null,null,null,""]
[null,"대답","증빙수단(설명과 증빙자료)",null,null,null,""]
[null,null,null,null,null,{"$f":"IF(E35=1,TRUE,FALSE)","v":false},""]
[null,null,null,null,null,{"$f":"IF(E35=2,TRUE,FALSE)","v":false},""]
[null,null,null,null,null,{"$f":"IF(E35=3,TRUE,FALSE)","v":false},""]
[null,null,null,null,null,{"$f":"IF(E35=4,TRUE,FALSE)","v":false},""]
[null,null,null,null,null,{"$f":"IF(E35=5,TRUE,FALSE)","v":false},""]
[null,null,null,null,null,{"$f":"IF(E35=6,TRUE,FALSE)","v":false},""]
[null,"최상의 복원력을 달성하기 위한 활동계획","담당부서","추진기간",null,null,""]
[null,null,null,null,null,null,""]
[null,null,null,null,null,null,""]
[null,"6.1.4 - 시민 사회 연결",null,null,null,null,"6.1.4"]
[null,"주제 / 현안","비고",null,null,null,""]
[null,null,null,null,null,null,""]
[null,"대답","증빙수단(설명과 증빙자료)",null,null,null,""]
[null,null,null,null,null,{"$f":"IF(E48=1,TRUE,FALSE)","v":false},""]
[null,null,null,null,null,{"$f":"IF(E48=2,TRUE,FALSE)","v":false},""]
[null,null,null,null,null,{"$f":"IF(E48=3,TRUE,FALSE)","v":false},""]
[null,null,null,null,null,{"$f":"IF(E48=4,TRUE,FALSE)","v":false},""]
[null,null,null,null,null,{"$f":"IF(E48=5,TRUE,FALSE)","v":false},""]
[null,null,null,null,null,{"$f":"IF(E48=6,TRUE,FALSE)","v":false},""]
[null,"최상의 복원력을 달성하기 위한 활동계획","담당부서","추진기간",null,null,""]
[null,null,null,null,null,null,""]
[null,null,null,null,null,null,""]
[null,"6.2 - 시민 교육 및 인식",null,null,null,null,"6.2"]
[null,null,null,null,null,null,""]
[null,"6.2.1 - 시민에게 교육과 인식을 위한 자료/메시지 전달",null,null,null,null,"6.2.1"]
[null,"주제 / 현안","비고",null,null,null,""]
[null,null,null,null,null,null,""]
[null,"대답","증빙수단(설명과 증빙자료)",null,null,null,""]
[null,null,null,null,null,{"$f":"IF(E63=1,TRUE,FALSE)","v":false},""]
[null,null,null,null,null,{"$f":"IF(E63=2,TRUE,FALSE)","v":false},""]
[null,null,null,null,null,{"$f":"IF(E63=3,TRUE,FALSE)","v":false},""]
[null,null,null,null,null,{"$f":"IF(E63=4,TRUE,FALSE)","v":false},""]
[null,null,null,null,null,{"$f":"IF(E63=5,TRUE,FALSE)","v":false},""]
[null,null,null,null,null,{"$f":"IF(E63=6,TRUE,FALSE)","v":false},""]
[null,"최상의 복원력을 달성하기 위한 활동계획","담당부서","추진기간",null,null,""]
[null,null,null,null,null,null,""]
[null,null,null,null,null,null,""]
[null,"6.2.1.1 - 시민에게 교육과 인식을 위한 자료/메시지 전달",null,null,null,null,"6.2.1.1"]
[null,"주제 / 현안","비고",null,null,null,""]
[null,null,null,null,null,null,""]
[null,"대답","증빙수단(설명과 증빙자료)",null,null,null,""]
[null,null,null,null,null,{"$f":"IF(E76=1,TRUE,FALSE)","v":false},""]
[null,null,null,null,null,{"$f":"IF(E76=2,TRUE,FALSE)","v":false},""]
[null,null,null,null,null,{"$f":"IF(E76=3,TRUE,FALSE)","v":false},""]
[null,null,null,null,null,{"$f":"IF(E76=4,TRUE,FALSE)","v":false},""]
[null,null,null,null,null,{"$f":"IF(E76=5,TRUE,FALSE)","v":false},""]
[null,null,null,null,null,{"$f":"IF(E76=6,TRUE,FALSE)","v":false},""]
[null,"최상의 복원력을 달성하기 위한 활동계획","담당부서","추진기간",null,null,""]
[null,null,null,null,null,null,""]
[null,null,null,null,null,null,""]
[null,"6.3 - 데이터 수집, 출판 및 공유",null,null,null,null,"6.3"]
[null,null,null,null,null,null,""]
[null,"6.3.1 - 도시 복원력 현 상태에 대한 데이터가 다른 기관과 공유되는 범위",null,null,null,null,"6.3.1"]
[null,"주제 / 현안","비고",null,null,null,""]
[null,null,null,null,null,null,""]
[null,"대답","증빙수단(설명과 증빙자료)",null,null,null,""]
[null,null,null,null,null,{"$f":"IF(E91=1,TRUE,FALSE)","v":false},""]
[null,null,null,null,null,{"$f":"IF(E91=2,TRUE,FALSE)","v":false},""]
[null,null,null,null,null,{"$f":"IF(E91=3,TRUE,FALSE)","v":false},""]
[null,null,null,null,null,{"$f":"IF(E91=4,TRUE,FALSE)","v":false},""]
[null,null,null,null,null,{"$f":"IF(E91=5,TRUE,FALSE)","v":false},""]
[null,null,null,null,null,{"$f":"IF(E91=6,TRUE,FALSE)","v":false},""]
[null,"최상의 복원력을 달성하기 위한 활동계획","담당부서","추진기간",null,null,""]
[null,null,null,null,null,null,""]
[null,null,null,null,null,null,""]
[null,"6.3.2 - 도시 복원력과 관련된 데이터가 지역사회 조직과 시민들에게 공유되는 범위",null,null,null,null,"6.3.2"]
[null,"주제 / 현안","비고",null,null,null,""]
[null,null,null,null,null,null,""]
[null,"대답","증빙수단(설명과 증빙자료)",null,null,null,""]
[null,null,null,null,null,{"$f":"IF(E104=1,TRUE,FALSE)","v":false},""]
[null,null,null,null,null,{"$f":"IF(E104=2,TRUE,FALSE)","v":false},""]
[null,null,null,null,null,{"$f":"IF(E104=3,TRUE,FALSE)","v":false},""]
[null,null,null,null,null,{"$f":"IF(E104=4,TRUE,FALSE)","v":false},""]
[null,null,null,null,null,{"$f":"IF(E104=5,TRUE,FALSE)","v":false},""]
[null,null,null,null,null,{"$f":"IF(E104=6,TRUE,FALSE)","v":false},""]
[null,"최상의 복원력을 달성하기 위한 활동계획","담당부서","추진기간",null,null,""]
[null,null,null,null,null,null,""]
[null,null,null,null,null,null,""]
[null,"6.4 - 교육훈련 전수",null,null,null,null,"6.4"]
[null,null,null,null,null,null,""]
[null,"6.4.1 - 위험도와 복원력에 집중한 교육훈련의 존재 및 실시 여부(전문 훈련)",null,null,null,null,"6.4.1"]
[null,"주제 / 현안","비고",null,null,null,""]
[null,null,null,null,null,null,""]
[null,"대답","증빙수단(설명과 증빙자료)",null,null,null,""]
[null,null,null,null,null,{"$f":"IF(E119=1,TRUE,FALSE)","v":false},""]
[null,null,null,null,null,{"$f":"IF(E119=2,TRUE,FALSE)","v":false},""]
[null,null,null,null,null,{"$f":"IF(E119=3,TRUE,FALSE)","v":false},""]
[null,null,null,null,null,{"$f":"IF(E119=4,TRUE,FALSE)","v":false},""]
[null,null,null,null,null,{"$f":"IF(E119=5,TRUE,FALSE)","v":false},""]
[null,null,null,null,null,{"$f":"IF(E119=6,TRUE,FALSE)","v":false},""]
[null,"최상의 복원력을 달성하기 위한 활동계획","담당부서","추진기간",null,null,""]
[null,null,null,null,null,null,""]
[null,null,null,null,null,null,""]
[null,"6.4.1.1 - 위험도와 복원력에 집중한 교육훈련의 존재 및 실시 여부(전문 훈련)",null,null,null,null,"6.4.1.1"]
[null,"주제 / 현안","비고",null,null,null,""]
[null,null,null,null,null,null,""]
[null,"대답","증빙수단(설명과 증빙자료)",null,null,null,""]
[null,null,null,null,null,{"$f":"IF(E132=1,TRUE,FALSE)","v":false},""]
[null,null,null,null,null,{"$f":"IF(E132=2,TRUE,FALSE)","v":false},""]
[null,null,null,null,null,{"$f":"IF(E132=3,TRUE,FALSE)","v":false},""]
[null,null,null,null,null,{"$f":"IF(E132=4,TRUE,FALSE)","v":false},""]
[null,null,null,null,null,{"$f":"IF(E132=5,TRUE,FALSE)","v":false},""]
[null,null,null,null,null,{"$f":"IF(E132=6,TRUE,FALSE)","v":false},""]
[null,"최상의 복원력을 달성하기 위한 활동계획","담당부서","추진기간",null,null,""]
[null,null,null,null,null,null,""]
[null,null,null,null,null,null,""]
[null,"6.4.2 - 관련 교육훈련을 업데이트하기 위한 체계/과정",null,null,null,null,"6.4.2"]
[null,"주제 / 현안","비고",null,null,null,""]
[null,null,null,null,null,null,""]
[null,"대답","증빙수단(설명과 증빙자료)",null,null,null,""]
[null,null,null,null,null,{"$f":"IF(E145=1,TRUE,FALSE)","v":false},""]
[null,null,null,null,null,{"$f":"IF(E145=2,TRUE,FALSE)","v":false},""]
[null,null,null,null,null,{"$f":"IF(E145=3,TRUE,FALSE)","v":false},""]
[null,null,null,null,null,{"$f":"IF(E145=4,TRUE,FALSE)","v":false},""]
[null,null,null,null,null,{"$f":"IF(E145=5,TRUE,FALSE)","v":false},""]
[null,null,null,null,null,{"$f":"IF(E145=6,TRUE,FALSE)","v":false},""]
[null,"최상의 복원력을 달성하기 위한 활동계획","담당부서","추진기간",null,null,""]
[null,null,null,null,null,null,""]
[null,null,null,null,null,null,""]
[null,"6.5 -언어",null,null,null,null,"6.5"]
[null,null,null,null,null,null,""]
[null,"6.5.1 - 도시 내 모든 언어 집단에 대한 교육 및 훈련의 접근성",null,null,null,null,"6.5.1"]
[null,"주제 / 현안","비고",null,null,null,""]
[null,null,null,null,null,null,""]
[null,"대답","증빙수단(설명과 증빙자료)",null,null,null,""]
[null,null,null,null,null,{"$f":"IF(E160=1,TRUE,FALSE)","v":false},""]
[null,null,null,null,null,{"$f":"IF(E160=2,TRUE,FALSE)","v":false},""]
[null,null,null,null,null,{"$f":"IF(E160=3,TRUE,FALSE)","v":false},""]
[null,null,null,null,null,{"$f":"IF(E160=4,TRUE,FALSE)","v":false},""]
[null,null,null,null,null,{"$f":"IF(E160=5,TRUE,FALSE)","v":false},""]
[null,null,null,null,null,{"$f":"IF(E160=6,TRUE,FALSE)","v":false},""]
[null,"최상의 복원력을 달성하기 위한 활동계획","담당부서","추진기간",null,null,""]
[null,null,null,null,null,null,""]
[null,null,null,null,null,null,""]
[null,"6.6 - 다른 도시에서 배우기",null,null,null,null,"6.6"]
[null,null,null,null,null,null,""]
[null,"6.6.1 - 다른 도시, 나라, 기업들이 복원력 증진을 위해 무엇을 하는지에 학습하려는 노력",null,null,null,null,"6.6.1"]
[null,"주제 / 현안","비고",null,null,null,""]
[null,null,null,null,null,null,""]
[null,"대답","증빙수단(설명과 증빙자료)",null,null,null,""]
[null,null,null,null,null,{"$f":"IF(E175=1,TRUE,FALSE)","v":false},""]
[null,null,null,null,null,{"$f":"IF(E175=2,TRUE,FALSE)","v":false},""]
[null,null,null,null,null,{"$f":"IF(E175=3,TRUE,FALSE)","v":false},""]
[null,null,null,null,null,{"$f":"IF(E175=4,TRUE,FALSE)","v":false},""]
[null,null,null,null,null,{"$f":"IF(E175=5,TRUE,FALSE)","v":false},""]
[null,null,null,null,null,{"$f":"IF(E175=6,TRUE,FALSE)","v":false},""]
[null,"최상의 복원력을 달성하기 위한 활동계획","담당부서","추진기간",null,null,""]
[null,null,null,null,null,null,""]
[null,null,null,null,null,null,""]
[null,null,null,null,null,null,""]
[null,null,null,null,null,null,""]
[null,null,null,null,null,null,""]
[null,null,null,null,null,null,""]
[null,null,null,null,null,null,""]
[null,null,null,null,null,null,""]
[null,null,null,null,null,null,""]
[null,null,null,null,null,null,""]
[null,null,null,null,null,null,""]
[null,null,null,null,null,null,""]
[null,null,null,null,null,null,""]
[null,null,null,null,null,null,""]
[null,null,null,null,null,null,""]
[null,null,null,null,null,null,""]
[null,null,null,null,null,null,""]
[null,null,null,null,null,null,""]
[null,null,null,null,null,null,""]
[null,null,null,null,null,null,""]
[null,null,null,null,null,null,""]
[null,null,null,null,null,null,""]
[null,null,null,null,null,null,""]
[null,null,null,null,null,null,""]
[null,null,null,null,null,null,""]
[null,null,null,null,null,null,""]
[null,null,null,null,null,null,""]
[null,null,null,null,null,null,""]
[null,null,null,null,null,null,""]
[null,null,null,null,null,null,""]
[null,null,null,null,null,null,""]
[null,null,null,null,null,null,""]
[null,null,null,null,null,null,""]
[null,null,null,null,null,null,""]
[null,null,null,null,null,null,""]
[null,null,null,null,null,null,""]
[null,null,null,null,null,null,""]
[null,null,null,null,null,null,""]
[null,null,null,null,null,null,""]
[null,null,null,null,null,null,""]
[null,null,null,null,null,null,""]
[null,null,null,null,null,null,""]
[null,null,null,null,null,null,""]
[null,null,null,null,null,null,""]
[null,null,null,null,null,null,""]
[null,null,null,null,null,null,""]
[null,null,null,null,null,null,""]
[null,null,null,null,null,null,""]
[null,null,null,null,null,null,""]
[null,null,null,null,null,null,""]
[null,null,null,null,null,null,""]
[null,null,null,null,null,null,""]
[null,null,null,null,null,null,""]
[null,null,null,null,null,null,""]
[null,null,null,null,null,null,""]
[null,null,null,null,null,null,""]
[null,null,null,null,null,null,""]
[null,null,null,null,null,null,""]
[null,null,null,null,null,null,""]
[null,null,null,null,null,null,""]
[null,null,null,null,null,null,""]
[null,null,null,null,null,null,""]
[null,null,null,null,null,null,""]
[null,null,null,null,null,null,""]
[null,null,null,null,null,null,""]
[null,null,null,null,null,null,""]
[null,null,null,null,null,null,""]
[null,null,null,null,null,null,""]
[null,null,null,null,null,null,""]
[null,null,null,null,null,null,""]
[null,null,null,null,null,null,""]
[null,null,null,null,null,null,""]
[null,null,null,null,null,null,""]
[null,null,null,null,null,null,""]
[null,null,null,null,null,null,""]
[null,null,null,null,null,null,""]
[null,null,null,null,null,null,""]
[null,null,null,null,null,null,""]
[null,null,null,null,null,null,""]
[null,null,null,null,null,null,""]
[null,null,null,null,null,null,""]
[null,null,null,null,null,null,""]
[null,null,null,null,null,null,""]
[null,null,null,null,null,null,""]
[null,null,null,null,null,null,""]
[null,null,null,null,null,null,""]
[null,null,null,null,null,null,""]
[null,null,null,null,null,null,""]
[null,null,null,null,null,null,""]
[null,null,null,null,null,null,""]
[null,null,null,null,null,null,""]
[null,null,null,null,null,null,""]
[null,null,null,null,null,null,""]
[null,null,null,null,null,null,""]
[null,null,null,null,null,null,""]
[null,null,null,null,null,null,""]
[null,null,null,null,null,null,""]
[null,null,null,null,null,null,""]
[null,null,null,null,null,null,""]
[null,null,null,null,null,null,""]
[null,null,null,null,null,null,""]
[null,null,null,null,null,null,""]
[null,null,null,null,null,null,""]
[null,null,null,null,null,null,""]
[null,null,null,null,null,null,""]
[null,null,null,null,null,null,""]
[null,null,null,null,null,null,""]
[null,null,null,null,null,null,""]
[null,null,null,null,null,null,""]
[null,null,null,null,null,null,""]
[null,null,null,null,null,null,""]
[null,null,null,null,null,null,""]
[null,null,null,null,null,null,""]
[null,null,null,null,null,null,""]
[null,null,null,null,null,null,""]
[null,null,null,null,null,null,""]
[null,null,null,null,null,null,""]
[null,null,null,null,null,null,""]
[null,null,null,null,null,null,""]
[null,null,null,null,null,null,""]
[null,null,null,null,null,null,""]
[null,null,null,null,null,null,""]
[null,null,null,null,null,null,""]
[null,null,null,null,null,null,""]
[null,null,null,null,null,null,""]
[null,null,null,null,null,null,""]
[null,null,null,null,null,null,""]
[null,null,null,null,null,null,""]
[null,null,null,null,null,null,""]
[null,null,null,null,null,null,""]
[null,null,null,null,null,null,""]
[null,null,null,null,null,null,""]
[null,null,null,null,null,null,""]
[null,null,null,null,null,null,""]
[null,null,null,null,null,null,""]
[null,null,null,null,null,null,""]
[null,null,null,null,null,null,""]
[null,null,null,null,null,null,""]
[null,null,null,null,null,null,""]
[null,null,null,null,null,null,""]
[null,null,null,null,null,null,""]
[null,null,null,null,null,null,""]
[null,null,null,null,null,null,""]
[null,null,null,null,null,null,""]
[null,null,null,null,null,null,""]
[null,null,null,null,null,null,""]
[null,null,null,null,null,null,""]
[null,null,null,null,null,null,""]
[null,null,null,null,null,null,""]
[null,null,null,null,null,null,""]
[null,null,null,null,null,null,""]
[null,null,null,null,null,null,""]
[null,null,null,null,null,null,""]
[null,null,null,null,null,null,""]
[null,null,null,null,null,null,""]
[null,null,null,null,null,null,""]
[null,null,null,null,null,null,""]
[null,null,null,null,null,null,""]
[null,null,null,null,null,null,""]
[null,null,null,null,null,null,""]
[null,null,null,null,null,null,""]
[null,null,null,null,null,null,""]
[null,null,null,null,null,null,""]
[null,null,null,null,null,null,""]
[null,null,null,null,null,null,""]
[null,null,null,null,null,null,""]
[null,null,null,null,null,null,""]
[null,null,null,null,null,null,""]
[null,null,null,null,null,null,""]
[null,null,null,null,null,null,""]
[null,null,null,null,null,null,""]
[null,null,null,null,null,null,""]
[null,null,null,null,null,null,""]
[null,null,null,null,null,null,""]
[null,null,null,null,null,null,""]
[null,null,null,null,null,null,""]
[null,null,null,null,null,null,""]
[null,null,null,null,null,null,""]
[null,null,null,null,null,null,""]
[null,null,null,null,null,null,""]
[null,null,null,null,null,null,""]
[null,null,null,null,null,null,""]
[null,null,null,null,null,null,""]
[null,null,null,null,null,null,""]
[null,null,null,null,null,null,""]
[null,null,null,null,null,null,""]
[null,null,null,null,null,null,""]
[null,null,null,null,null,null,""]
[null,null,null,null,null,null,""]
[null,null,null,null,null,null,""]
[null,null,null,null,null,null,""]
[null,null,null,null,null,null,""]
[null,null,null,null,null,null,""]
[null,null,null,null,null,null,""]
[null,null,null,null,null,null,""]
[null,null,null,null,null,null,""]
[null,null,null,null,null,null,""]
[null,null,null,null,null,null,""]
[null,null,null,null,null,null,""]
[null,null,null,null,null,null,""]
[null,null,null,null,null,null,""]
[null,null,null,null,null,null,""]
[null,null,null,null,null,null,""]
[null,null,null,null,null,null,""]
[null,null,null,null,null,null,""]
[null,null,null,null,null,null,""]
[null,null,null,null,null,null,""]
[null,null,null,null,null,null,""]
[null,null,null,null,null,null,""]
[null,null,null,null,null,null,""]
[null,null,null,null,null,null,""]
[null,null,null,null,null,null,""]
[null,null,null,null,null,null,""]
[null,null,null,null,null,null,""]
[null,null,null,null,null,null,""]
[null,null,null,null,null,null,""]
[null,null,null,null,null,null,""]
[null,null,null,null,null,null,""]
[null,null,null,null,null,null,""]
[null,null,null,null,null,null,""]
[null,null,null,null,null,null,""]
[null,null,null,null,null,null,""]
[null,null,null,null,null,null,""]
[null,null,null,null,null,null,""]
[null,null,null,null,null,null,""]
[null,null,null,null,null,null,""]
[null,null,null,null,null,null,""]
[null,null,null,null,null,null,""]
[null,null,null,null,null,null,""]
[null,null,null,null,null,null,""]
[null,null,null,null,null,null,""]
[null,null,null,null,null,null,""]
[null,null,null,null,null,null,""]
[null,null,null,null,null,null,""]
[null,null,null,null,null,null,""]
[null,null,null,null,null,null,""]
[null,null,null,null,null,null,""]
[null,null,null,null,null,null,""]
[null,null,null,null,null,null,""]
[null,null,null,null,null,null,""]
[null,null,null,null,null,null,""]
[null,null,null,null,null,null,""]
[null,null,null,null,null,null,""]
[null,null,null,null,null,null,""]
[null,null,null,null,null,null,""]
[null,null,null,null,null,null,""]
[null,null,null,null,null,null,""]
[null,null,null,null,null,null,""]
[null,null,null,null,null,null,""]
[null,null,null,null,null,null,""]
[null,null,null,null,null,null,""]
[null,null,null,null,null,null,""]
[null,null,null,null,null,null,""]
[null,null,null,null,null,null,""]
[null,null,null,null,null,null,""]
[null,null,null,null,null,null,""]
[null,null,null,null,null,null,""]
[null,null,null,null,null,null,""]
[null,null,null,null,null,null,""]
[null,null,null,null,null,null,""]
[null,null,null,null,null,null,""]
[null,null,null,null,null,null,""]
[null,null,null,null,null,null,""]
[null,null,null,null,null,null,""]
[null,null,null,null,null,null,""]
[null,null,null,null,null,null,""]
[null,null,null,null,null,null,""]
[null,null,null,null,null,null,""]
[null,null,null,null,null,null,""]
[null,null,null,null,null,null,""]
[null,null,null,null,null,null,""]
[null,null,null,null,null,null,""]
[null,null,null,null,null,null,""]
[null,null,null,null,null,null,""]
[null,null,null,null,null,null,""]
[null,null,null,null,null,null,""]
[null,null,null,null,null,null,""]
[null,null,null,null,null,null,""]
[null,null,null,null,null,null,""]
[null,null,null,null,null,null,""]
[null,null,null,null,null,null,""]
[null,null,null,null,null,null,""]
[null,null,null,null,null,null,""]
[null,null,null,null,null,null,""]
[null,null,null,null,null,null,""]
[null,null,null,null,null,null,""]
[null,null,null,null,null,null,""]
[null,null,null,null,null,null,""]
[null,null,null,null,null,null,""]
[null,null,null,null,null,null,""]
[null,null,null,null,null,null,""]
[null,null,null,null,null,null,""]
[null,null,null,null,null,null,""]
[null,null,null,null,null,null,""]
[null,null,null,null,null,null,""]
[null,null,null,null,null,null,""]
[null,null,null,null,null,null,""]
[null,null,null,null,null,null,""]
[null,null,null,null,null,null,""]
[null,null,null,null,null,null,""]
[null,null,null,null,null,null,""]
[null,null,null,null,null,null,""]
[null,null,null,null,null,null,""]
[null,null,null,null,null,null,""]
[null,null,null,null,null,null,""]
[null,null,null,null,null,null,""]
[null,null,null,null,null,null,""]
[null,null,null,null,null,null,""]
[null,null,null,null,null,null,""]
[null,null,null,null,null,null,""]
[null,null,null,null,null,null,""]
[null,null,null,null,null,null,""]
[null,null,null,null,null,null,""]
[null,null,null,null,null,null,""]
[null,null,null,null,null,null,""]
[null,null,null,null,null,null,""]
[null,null,null,null,null,null,""]
[null,null,null,null,null,null,""]
[null,null,null,null,null,null,""]
[null,null,null,null,null,null,""]
[null,null,null,null,null,null,""]
[null,null,null,null,null,null,""]
[null,null,null,null,null,null,""]
[null,null,null,null,null,null,""]
[null,null,null,null,null,null,""]
[null,null,null,null,null,null,""]
[null,null,null,null,null,null,""]
[null,null,null,null,null,null,""]
[null,null,null,null,null,null,""]
[null,null,null,null,null,null,""]
[null,null,null,null,null,null,""]
[null,null,null,null,null,null,""]
[null,null,null,null,null,null,""]
[null,null,null,null,null,null,""]
[null,null,null,null,null,null,""]
[null,null,null,null,null,null,""]
[null,null,null,null,null,null,""]
[null,null,null,null,null,null,""]
[null,null,null,null,null,null,""]
[null,null,null,null,null,null,""]
[null,null,null,null,null,null,""]
[null,null,null,null,null,null,""]
[null,null,null,null,null,null,""]
[null,null,null,null,null,null,""]
[null,null,null,null,null,null,""]
[null,null,null,null,null,null,""]
[null,null,null,null,null,null,""]
[null,null,null,null,null,null,""]
[null,null,null,null,null,null,""]
[null,null,null,null,null,null,""]
[null,null,null,null,null,null,""]
[null,null,null,null,null,null,""]
[null,null,null,null,null,null,""]
[null,null,null,null,null,null,""]
[null,null,null,null,null,null,""]
[null,null,null,null,null,null,""]
[null,null,null,null,null,null,""]
[null,null,null,null,null,null,""]
[null,null,null,null,null,null,""]
[null,null,null,null,null,null,""]
[null,null,null,null,null,null,""]
[null,null,null,null,null,null,""]
[null,null,null,null,null,null,""]
[null,null,null,null,null,null,""]
[null,null,null,null,null,null,""]
[null,null,null,null,null,null,""]
[null,null,null,null,null,null,""]
[null,null,null,null,null,null,""]
[null,null,null,null,null,null,""]
[null,null,null,null,null,null,""]
[null,null,null,null,null,null,""]
[null,null,null,null,null,null,""]
[null,null,null,null,null,null,""]
[null,null,null,null,null,null,""]
[null,null,null,null,null,null,""]
[null,null,null,null,null,null,""]
[null,null,null,null,null,null,""]
[null,null,null,null,null,null,""]
[null,null,null,null,null,null,""]
[null,null,null,null,null,null,""]
[null,null,null,null,null,null,""]
[null,null,null,null,null,null,""]
[null,null,null,null,null,null,""]
[null,null,null,null,null,null,""]
[null,null,null,null,null,null,""]
[null,null,null,null,null,null,""]
[null,null,null,null,null,null,""]
[null,null,null,null,null,null,""]
[null,null,null,null,null,null,""]
[null,null,null,null,null,null,""]
[null,null,null,null,null,null,""]
[null,null,null,null,null,null,""]
[null,null,null,null,null,null,""]
[null,null,null,null,null,null,""]
[null,null,null,null,null,null,""]
[null,null,null,null,null,null,""]
[null,null,null,null,null,null,""]
[null,null,null,null,null,null,""]
[null,null,null,null,null,null,""]
[null,null,null,null,null,null,""]
[null,null,null,null,null,null,""]
[null,null,null,null,null,null,""]
[null,null,null,null,null,null,""]
[null,null,null,null,null,null,""]
[null,null,null,null,null,null,""]
[null,null,null,null,null,null,""]
[null,null,null,null,null,null,""]
[null,null,null,null,null,null,""]
[null,null,null,null,null,null,""]
[null,null,null,null,null,null,""]
[null,null,null,null,null,null,""]
[null,null,null,null,null,null,""]
[null,null,null,null,null,null,""]
[null,null,null,null,null,null,""]
[null,null,null,null,null,null,""]
[null,null,null,null,null,null,""]
[null,null,null,null,null,null,""]
[null,null,null,null,null,null,""]
[null,null,null,null,null,null,""]
[null,null,null,null,null,null,""]
[null,null,null,null,null,null,""]
[null,null,null,null,null,null,""]
[null,null,null,null,null,null,""]
[null,null,null,null,null,null,""]
[null,null,null,null,null,null,""]
[null,null,null,null,null,null,""]
[null,null,null,null,null,null,""]
[null,null,null,null,null,null,""]
[null,null,null,null,null,null,""]
[null,null,null,null,null,null,""]
[null,null,null,null,null,null,""]
[null,null,null,null,null,null,""]
[null,null,null,null,null,null,""]
[null,null,null,null,null,null,""]
[null,null,null,null,null,null,""]
[null,null,null,null,null,null,""]
[null,null,null,null,null,null,""]
[null,null,null,null,null,null,""]
[null,null,null,null,null,null,""]
[null,null,null,null,null,null,""]
[null,null,null,null,null,null,""]
[null,null,null,null,null,null,""]
[null,null,null,null,null,null,""]
[null,null,null,null,null,null,""]
[null,null,null,null,null,null,""]
[null,null,null,null,null,null,""]
[null,null,null,null,null,null,""]
[null,null,null,null,null,null,""]
[null,null,null,null,null,null,""]
[null,null,null,null,null,null,""]
[null,null,null,null,null,null,""]
[null,null,null,null,null,null,""]
[null,null,null,null,null,null,""]
[null,null,null,null,null,null,""]
[null,null,null,null,null,null,""]
[null,null,null,null,null,null,""]
[null,null,null,null,null,null,""]
[null,null,null,null,null,null,""]
[null,null,null,null,null,null,""]
[null,null,null,null,null,null,""]
[null,null,null,null,null,null,""]
[null,null,null,null,null,null,""]
[null,null,null,null,null,null,""]
[null,null,null,null,null,null,""]
[null,null,null,null,null,null,""]
[null,null,null,null,null,null,""]
[null,null,null,null,null,null,""]
[null,null,null,null,null,null,""]
[null,null,null,null,null,null,""]
[null,null,null,null,null,null,""]
[null,null,null,null,null,null,""]
[null,null,null,null,null,null,""]
[null,null,null,null,null,null,""]
[null,null,null,null,null,null,""]
[null,null,null,null,null,null,""]
[null,null,null,null,null,null,""]
[null,null,null,null,null,null,""]
[null,null,null,null,null,null,""]
[null,null,null,null,null,null,""]
[null,null,null,null,null,null,""]
[null,null,null,null,null,null,""]
[null,null,null,null,null,null,""]
[null,null,null,null,null,null,""]

{"sheet":"E07","index":9,"n_rows":664,"n_cols":7,"rows_kept":664,"cut":false,"hidden":false,"merged":[[127,1,127,3],[128,2,128,3],[129,2,129,3],[130,2,130,3],[131,2,136,3],[118,2,123,3],[117,2,117,3],[116,2,116,3],[115,2,115,3],[114,1,114,3],[101,1,101,3],[102,2,102,3],[103,2,103,3],[104,2,104,3],[105,2,110,3],[90,2,95,3],[89,2,89,3],[88,2,88,3],[87,2,87,3],[86,1,86,3],[73,1,73,3],[74,2,74,3],[75,2,75,3],[76,2,76,3],[77,2,82,3],[46,2,46,3],[47,2,47,3],[48,2,48,3],[49,2,54,3],[62,2,67,3],[61,2,61,3],[60,2,60,3],[59,2,59,3],[58,1,58,3],[33,2,33,3],[32,2,32,3],[31,2,31,3],[30,1,30,3],[45,1,45,3],[34,2,39,3],[5,2,5,3],[4,1,4,3],[6,2,6,3],[7,2,7,3],[8,2,13,3],[21,2,26,3],[20,2,20,3],[19,2,19,3],[18,2,18,3],[17,1,17,3]]}
[]
[null,null,null,null,null,null,""]
[null,"7.1 - 지역사회 또는 민간조직",null,null,null,null,"7.1"]
[null,null,null,null,null,null,""]
[null,"7.1.1 - 도시 내 지역사회 또는 민간조직의 범위",null,null,null,null,"7.1.1"]
[null,"주제 / 현안","비고",null,null,null,""]
[null,null,null,null,null,null,""]
[null,"대답","증빙수단(설명과 증빙자료)",null,null,null,""]
[null,null,null,null,null,{"$f":"IF(E9=1,TRUE,FALSE)","v":false},""]
[null,null,null,null,null,{"$f":"IF(E9=2,TRUE,FALSE)","v":false},""]
[null,null,null,null,null,{"$f":"IF(E9=3,TRUE,FALSE)","v":false},""]
[null,null,null,null,null,{"$f":"IF(E9=4,TRUE,FALSE)","v":false},""]
[null,null,null,null,null,{"$f":"IF(E9=5,TRUE,FALSE)","v":false},""]
[null,null,null,null,null,{"$f":"IF(E9=6,TRUE,FALSE)","v":false},""]
[null,"최상의 복원력을 달성하기 위한 활동계획","담당부서","추진기간",null,null,""]
[null,null,null,null,null,null,""]
[null,null,null,null,null,null,""]
[null,"7.1.2 - 지역사회 네트워크의 효과성",null,null,null,null,"7.1.2"]
[null,"주제 / 현안","비고",null,null,null,""]
[null,null,null,null,null,null,""]
[null,"대답","증빙수단(설명과 증빙자료)",null,null,null,""]
[null,null,null,null,null,{"$f":"IF(E22=1,TRUE,FALSE)","v":false},""]
[null,null,null,null,null,{"$f":"IF(E22=2,TRUE,FALSE)","v":false},""]
[null,null,null,null,null,{"$f":"IF(E22=3,TRUE,FALSE)","v":false},""]
[null,null,null,null,null,{"$f":"IF(E22=4,TRUE,FALSE)","v":false},""]
[null,null,null,null,null,{"$f":"IF(E22=5,TRUE,FALSE)","v":false},""]
[null,null,null,null,null,{"$f":"IF(E22=6,TRUE,FALSE)","v":false},""]
[null,"최상의 복원력을 달성하기 위한 활동계획","담당부서","추진기간",null,null,""]
[null,null,null,null,null,null,""]
[null,null,null,null,null,null,""]
[null,"7.1.2.1 - 지역사회 네트워크의 효과성",null,null,null,null,"7.1.2.1"]
[null,"주제 / 현안","비고",null,null,null,""]
[null,null,null,null,null,null,""]
[null,"대답","증빙수단(설명과 증빙자료)",null,null,null,""]
[null,null,null,null,null,{"$f":"IF(E35=1,TRUE,FALSE)","v":false},""]
[null,null,null,null,null,{"$f":"IF(E35=2,TRUE,FALSE)","v":false},""]
[null,null,null,null,null,{"$f":"IF(E35=3,TRUE,FALSE)","v":false},""]
[null,null,null,null,null,{"$f":"IF(E35=4,TRUE,FALSE)","v":false},""]
[null,null,null,null,null,{"$f":"IF(E35=5,TRUE,FALSE)","v":false},""]
[null,null,null,null,null,{"$f":"IF(E35=6,TRUE,FALSE)","v":false},""]
[null,"최상의 복원력을 달성하기 위한 활동계획","담당부서","추진기간",null,null,""]
[null,null,null,null,null,null,""]
[null,null,null,null,null,null,""]
[null,"7.2 - 소셜 네트워크",null,null,null,null,"7.2"]
[null,null,null,null,null,null,""]
[null,"7.2.1 - 사회적 연결성 및 지역 응집력",null,null,null,null,"7.2.1"]
[null,"주제 / 현안","비고",null,null,null,""]
[null,null,null,null,null,null,""]
[null,"대답","증빙수단(설명과 증빙자료)",null,null,null,""]
[null,null,null,null,null,{"$f":"IF(E50=1,TRUE,FALSE)","v":false},""]
[null,null,null,null,null,{"$f":"IF(E50=2,TRUE,FALSE)","v":false},""]
[null,null,null,null,null,{"$f":"IF(E50=3,TRUE,FALSE)","v":false},""]
[null,null,null,null,null,{"$f":"IF(E50=4,TRUE,FALSE)","v":false},""]
[null,null,null,null,null,{"$f":"IF(E50=5,TRUE,FALSE)","v":false},""]
[null,null,null,null,null,{"$f":"IF(E50=6,TRUE,FALSE)","v":false},""]
[null,"최상의 복원력을 달성하기 위한 활동계획","담당부서","추진기간",null,null,""]
[null,null,null,null,null,null,""]
[null,null,null,null,null,null,""]
[null,"7.2.2 - 취약계층의 참여",null,null,null,null,"7.2.2"]
[null,"주제 / 현안","비고",null,null,null,""]
[null,null,null,null,null,null,""]
[null,"대답","증빙수단(설명과 증빙자료)",null,null,null,""]
[null,null,null,null,null,{"$f":"IF(E63=1,TRUE,FALSE)","v":false},""]
[null,null,null,null,null,{"$f":"IF(E63=2,TRUE,FALSE)","v":false},""]
[null,null,null,null,null,{"$f":"IF(E63=3,TRUE,FALSE)","v":false},""]
[null,null,null,null,null,{"$f":"IF(E63=4,TRUE,FALSE)","v":false},""]
[null,null,null,null,null,{"$f":"IF(E63=5,TRUE,FALSE)","v":false},""]
[null,null,null,null,null,{"$f":"IF(E63=6,TRUE,FALSE)","v":false},""]
[null,"최상의 복원력을 달성하기 위한 활동계획","담당부서","추진기간",null,null,""]
[null,null,null,null,null,null,""]
[null,null,null,null,null,null,""]
[null,"7.3 - 민간부문/사업주",null,null,null,null,"7.3"]
[null,null,null,null,null,null,""]
[null,"7.3.1 - 사업주가 근로자의 의사소통 채널로 역할을 하는 범위",null,null,null,null,"7.3.1"]
[null,"주제 / 현안","비고",null,null,null,""]
[null,null,null,null,null,null,""]
[null,"대답","증빙수단(설명과 증빙자료)",null,null,null,""]
[null,null,null,null,null,{"$f":"IF(E78=1,TRUE,FALSE)","v":false},""]
[null,null,null,null,null,{"$f":"IF(E78=2,TRUE,FALSE)","v":false},""]
[null,null,null,null,null,{"$f":"IF(E78=3,TRUE,FALSE)","v":false},""]
[null,null,null,null,null,{"$f":"IF(E78=4,TRUE,FALSE)","v":false},""]
[null,null,null,null,null,{"$f":"IF(E78=5,TRUE,FALSE)","v":false},""]
[null,null,null,null,null,{"$f":"IF(E78=6,TRUE,FALSE)","v":false},""]
[null,"최상의 복원력을 달성하기 위한 활동계획","담당부서","추진기간",null,null,""]
[null,null,null,null,null,null,""]
[null,null,null,null,null,null,""]
[null,"7.3.2 - 사업연속성 계획 (사업이 지속될 수 있도록 계획하는 것)",null,null,null,null,"7.3.2"]
[null,"주제 / 현안","비고",null,null,null,""]
[null,null,null,null,null,null,""]
[null,"대답","증빙수단(설명과 증빙자료)",null,null,null,""]
[null,null,null,null,null,{"$f":"IF(E91=1,TRUE,FALSE)","v":false},""]
[null,null,null,null,null,{"$f":"IF(E91=2,TRUE,FALSE)","v":false},""]
[null,null,null,null,null,{"$f":"IF(E91=3,TRUE,FALSE)","v":false},""]
[null,null,null,null,null,{"$f":"IF(E91=4,TRUE,FALSE)","v":false},""]
[null,null,null,null,null,{"$f":"IF(E91=5,TRUE,FALSE)","v":false},""]
[null,null,null,null,null,{"$f":"IF(E91=6,TRUE,FALSE)","v":false},""]
[null,"최상의 복원력을 달성하기 위한 활동계획","담당부서","추진기간",null,null,""]
[null,null,null,null,null,null,""]
[null,null,null,null,null,null,""]
[null,"7.4 - 시민 참여 기술",null,null,null,null,"7.4"]
[null,null,null,null,null,null,""]
[null,"7.4.1 - 참여의 빈도",null,null,null,null,"7.4.1"]
[null,"주제 / 현안","비고",null,null,null,""]
[null,null,null,null,null,null,""]
[null,"대답","증빙수단(설명과 증빙자료)",null,null,null,""]
[null,null,null,null,null,{"$f":"IF(E106=1,TRUE,FALSE)","v":false},""]
[null,null,null,null,null,{"$f":"IF(E106=2,TRUE,FALSE)","v":false},""]
[null,null,null,null,null,{"$f":"IF(E106=3,TRUE,FALSE)","v":false},""]
[null,null,null,null,null,{"$f":"IF(E106=4,TRUE,FALSE)","v":false},""]
[null,null,null,null,null,{"$f":"IF(E106=5,TRUE,FALSE)","v":false},""]
[null,null,null,null,null,{"$f":"IF(E106=6,TRUE,FALSE)","v":false},""]
[null,"최상의 복원력을 달성하기 위한 활동계획","담당부서","추진기간",null,null,""]
[null,null,null,null,null,null,""]
[null,null,null,null,null,null,""]
[null,"7.4.2 - 시민들이 재난 전후 정보를 주고 받을 수 있는 모바일 및 이메일 “참여 시스템”의 활용",null,null,null,null,"7.4.2"]
[null,"주제 / 현안","비고",null,null,null,""]
[null,null,null,null,null,null,""]
[null,"대답","증빙수단(설명과 증빙자료)",null,null,null,""]
[null,null,null,null,null,{"$f":"IF(E119=1,TRUE,FALSE)","v":false},""]
[null,null,null,null,null,{"$f":"IF(E119=2,TRUE,FALSE)","v":false},""]
[null,null,null,null,null,{"$f":"IF(E119=3,TRUE,FALSE)","v":false},""]
[null,null,null,null,null,{"$f":"IF(E119=4,TRUE,FALSE)","v":false},""]
[null,null,null,null,null,{"$f":"IF(E119=5,TRUE,FALSE)","v":false},""]
[null,null,null,null,null,{"$f":"IF(E119=6,TRUE,FALSE)","v":false},""]
[null,"최상의 복원력을 달성하기 위한 활동계획","담당부서","추진기간",null,null,""]
[null,null,null,null,null,null,""]
[null,null,null,null,null,null,""]
[null,"7.4.3 - 교육 효과성의 검증",null,null,null,null,"7.4.3"]
[null,"주제 / 현안","비고",null,null,null,""]
[null,null,null,null,null,null,""]
[null,"대답","증빙수단(설명과 증빙자료)",null,null,null,""]
[null,null,null,null,null,{"$f":"IF(E132=1,TRUE,FALSE)","v":false},""]
[null,null,null,null,null,{"$f":"IF(E132=2,TRUE,FALSE)","v":false},""]
[null,null,null,null,null,{"$f":"IF(E132=3,TRUE,FALSE)","v":false},""]
[null,null,null,null,null,{"$f":"IF(E132=4,TRUE,FALSE)","v":false},""]
[null,null,null,null,null,{"$f":"IF(E132=5,TRUE,FALSE)","v":false},""]
[null,null,null,null,null,{"$f":"IF(E132=6,TRUE,FALSE)","v":false},""]
[null,"최상의 복원력을 달성하기 위한 활동계획","담당부서","추진기간",null,null,""]
[null,null,null,null,null,null,""]
[null,null,null,null,null,null,""]
[null,null,null,null,null,null,""]
[null,null,null,null,null,null,""]
[null,null,null,null,null,null,""]
[null,null,null,null,null,null,""]
[null,null,null,null,null,null,""]
[null,null,null,null,null,null,""]
[null,null,null,null,null,null,""]
[null,null,null,null,null,null,""]
[null,null,null,null,null,null,""]
[null,null,null,null,null,null,""]
[null,null,null,null,null,null,""]
[null,null,null,null,null,null,""]
[null,null,null,null,null,null,""]
[null,null,null,null,null,null,""]
[null,null,null,null,null,null,""]
[null,null,null,null,null,null,""]
[null,null,null,null,null,null,""]
[null,null,null,null,null,null,""]
[null,null,null,null,null,null,""]
[null,null,null,null,null,null,""]
[null,null,null,null,null,null,""]
[null,null,null,null,null,null,""]
[null,null,null,null,null,null,""]
[null,null,null,null,null,null,""]
[null,null,null,null,null,null,""]
[null,null,null,null,null,null,""]
[null,null,null,null,null,null,""]
[null,null,null,null,null,null,""]
[null,null,null,null,null,null,""]
[null,null,null,null,null,null,""]
[null,null,null,null,null,null,""]
[null,null,null,null,null,null,""]
[null,null,null,null,null,null,""]
[null,null,null,null,null,null,""]
[null,null,null,null,null,null,""]
[null,null,null,null,null,null,""]
[null,null,null,null,null,null,""]
[null,null,null,null,null,null,""]
[null,null,null,null,null,null,""]
[null,null,null,null,null,null,""]
[null,null,null,null,null,null,""]
[null,null,null,null,null,null,""]
[null,null,null,null,null,null,""]
[null,null,null,null,null,null,""]
[null,null,null,null,null,null,""]
[null,null,null,null,null,null,""]
[null,null,null,null,null,null,""]
[null,null,null,null,null,null,""]
[null,null,null,null,null,null,""]
[null,null,null,null,null,null,""]
[null,null,null,null,null,null,""]
[null,null,null,null,null,null,""]
[null,null,null,null,null,null,""]
[null,null,null,null,null,null,""]
[null,null,null,null,null,null,""]
[null,null,null,null,null,null,""]
[null,null,null,null,null,null,""]
[null,null,null,null,null,null,""]
[null,null,null,null,null,null,""]
[null,null,null,null,null,null,""]
[null,null,null,null,null,null,""]
[null,null,null,null,null,null,""]
[null,null,null,null,null,null,""]
[null,null,null,null,null,null,""]
[null,null,null,null,null,null,""]
[null,null,null,null,null,null,""]
[null,null,null,null,null,null,""]
[null,null,null,null,null,null,""]
[null,null,null,null,null,null,""]
[null,null,null,null,null,null,""]
[null,null,null,null,null,null,""]
[null,null,null,null,null,null,""]
[null,null,null,null,null,null,""]
[null,null,null,null,null,null,""]
[null,null,null,null,null,null,""]
[null,null,null,null,null,null,""]
[null,null,null,null,null,null,""]
[null,null,null,null,null,null,""]
[null,null,null,null,null,null,""]
[null,null,null,null,null,null,""]
[null,null,null,null,null,null,""]
[null,null,null,null,null,null,""]
[null,null,null,null,null,null,""]
[null,null,null,null,null,null,""]
[null,null,null,null,null,null,""]
[null,null,null,null,null,null,""]
[null,null,null,null,null,null,""]
[null,null,null,null,null,null,""]
[null,null,null,null,null,null,""]
[null,null,null,null,null,null,""]
[null,null,null,null,null,null,""]
[null,null,null,null,null,null,""]
[null,null,null,null,null,null,""]
[null,null,null,null,null,null,""]
[null,null,null,null,null,null,""]
[null,null,null,null,null,null,""]
[null,null,null,null,null,null,""]
[null,null,null,null,null,null,""]
[null,null,null,null,null,null,""]
[null,null,null,null,null,null,""]
[null,null,null,null,null,null,""]
[null,null,null,null,null,null,""]
[null,null,null,null,null,null,""]
[null,null,null,null,null,null,""]
[null,null,null,null,null,null,""]
[null,null,null,null,null,null,""]
[null,null,null,null,null,null,""]
[null,null,null,null,null,null,""]
[null,null,null,null,null,null,""]
[null,null,null,null,null,null,""]
[null,null,null,null,null,null,""]
[null,null,null,null,null,null,""]
[null,null,null,null,null,null,""]
[null,null,null,null,null,null,""]
[null,null,null,null,null,null,""]
[null,null,null,null,null,null,""]
[null,null,null,null,null,null,""]
[null,null,null,null,null,null,""]
[null,null,null,null,null,null,""]
[null,null,null,null,null,null,""]
[null,null,null,null,null,null,""]
[null,null,null,null,null,null,""]
[null,null,null,null,null,null,""]
[null,null,null,null,null,null,""]
[null,null,null,null,null,null,""]
[null,null,null,null,null,null,""]
[null,null,null,null,null,null,""]
[null,null,null,null,null,null,""]
[null,null,null,null,null,null,""]
[null,null,null,null,null,null,""]
[null,null,null,null,null,null,""]
[null,null,null,null,null,null,""]
[null,null,null,null,null,null,""]
[null,null,null,null,null,null,""]
[null,null,null,null,null,null,""]
[null,null,null,null,null,null,""]
[null,null,null,null,null,null,""]
[null,null,null,null,null,null,""]
[null,null,null,null,null,null,""]
[null,null,null,null,null,null,""]
[null,null,null,null,null,null,""]
[null,null,null,null,null,null,""]
[null,null,null,null,null,null,""]
[null,null,null,null,null,null,""]
[null,null,null,null,null,null,""]
[null,null,null,null,null,null,""]
[null,null,null,null,null,null,""]
[null,null,null,null,null,null,""]
[null,null,null,null,null,null,""]
[null,null,null,null,null,null,""]
[null,null,null,null,null,null,""]
[null,null,null,null,null,null,""]
[null,null,null,null,null,null,""]
[null,null,null,null,null,null,""]
[null,null,null,null,null,null,""]
[null,null,null,null,null,null,""]
[null,null,null,null,null,null,""]
[null,null,null,null,null,null,""]
[null,null,null,null,null,null,""]
[null,null,null,null,null,null,""]
[null,null,null,null,null,null,""]
[null,null,null,null,null,null,""]
[null,null,null,null,null,null,""]
[null,null,null,null,null,null,""]
[null,null,null,null,null,null,""]
[null,null,null,null,null,null,""]
[null,null,null,null,null,null,""]
[null,null,null,null,null,null,""]
[null,null,null,null,null,null,""]
[null,null,null,null,null,null,""]
[null,null,null,null,null,null,""]
[null,null,null,null,null,null,""]
[null,null,null,null,null,null,""]
[null,null,null,null,null,null,""]
[null,null,null,null,null,null,""]
[null,null,null,null,null,null,""]
[null,null,null,null,null,null,""]
[null,null,null,null,null,null,""]
[null,null,null,null,null,null,""]
[null,null,null,null,null,null,""]
[null,null,null,null,null,null,""]
[null,null,null,null,null,null,""]
[null,null,null,null,null,null,""]
[null,null,null,null,null,null,""]
[null,null,null,null,null,null,""]
[null,null,null,null,null,null,""]
[null,null,null,null,null,null,""]
[null,null,null,null,null,null,""]
[null,null,null,null,null,null,""]
[null,null,null,null,null,null,""]
[null,null,null,null,null,null,""]
[null,null,null,null,null,null,""]
[null,null,null,null,null,null,""]
[null,null,null,null,null,null,""]
[null,null,null,null,null,null,""]
[null,null,null,null,null,null,""]
[null,null,null,null,null,null,""]
[null,null,null,null,null,null,""]
[null,null,null,null,null,null,""]
[null,null,null,null,null,null,""]
[null,null,null,null,null,null,""]
[null,null,null,null,null,null,""]
[null,null,null,null,null,null,""]
[null,null,null,null,null,null,""]
[null,null,null,null,null,null,""]
[null,null,null,null,null,null,""]
[null,null,null,null,null,null,""]
[null,null,null,null,null,null,""]
[null,null,null,null,null,null,""]
[null,null,null,null,null,null,""]
[null,null,null,null,null,null,""]
[null,null,null,null,null,null,""]
[null,null,null,null,null,null,""]
[null,null,null,null,null,null,""]
[null,null,null,null,null,null,""]
[null,null,null,null,null,null,""]
[null,null,null,null,null,null,""]
[null,null,null,null,null,null,""]
[null,null,null,null,null,null,""]
[null,null,null,null,null,null,""]
[null,null,null,null,null,null,""]
[null,null,null,null,null,null,""]
[null,null,null,null,null,null,""]
[null,null,null,null,null,null,""]
[null,null,null,null,null,null,""]
[null,null,null,null,null,null,""]
[null,null,null,null,null,null,""]
[null,null,null,null,null,null,""]
[null,null,null,null,null,null,""]
[null,null,null,null,null,null,""]
[null,null,null,null,null,null,""]
[null,null,null,null,null,null,""]
[null,null,null,null,null,null,""]
[null,null,null,null,null,null,""]
[null,null,null,null,null,null,""]
[null,null,null,null,null,null,""]
[null,null,null,null,null,null,""]
[null,null,null,null,null,null,""]
[null,null,null,null,null,null,""]
[null,null,null,null,null,null,""]
[null,null,null,null,null,null,""]
[null,null,null,null,null,null,""]
[null,null,null,null,null,null,""]
[null,null,null,null,null,null,""]
[null,null,null,null,null,null,""]
[null,null,null,null,null,null,""]
[null,null,null,null,null,null,""]
[null,null,null,null,null,null,""]
[null,null,null,null,null,null,""]
[null,null,null,null,null,null,""]
[null,null,null,null,null,null,""]
[null,null,null,null,null,null,""]
[null,null,null,null,null,null,""]
[null,null,null,null,null,null,""]
[null,null,null,null,null,null,""]
[null,null,null,null,null,null,""]
[null,null,null,null,null,null,""]
[null,null,null,null,null,null,""]
[null,null,null,null,null,null,""]
[null,null,null,null,null,null,""]
[null,null,null,null,null,null,""]
[null,null,null,null,null,null,""]
[null,null,null,null,null,null,""]
[null,null,null,null,null,null,""]
[null,null,null,null,null,null,""]
[null,null,null,null,null,null,""]
[null,null,null,null,null,null,""]
[null,null,null,null,null,null,""]
[null,null,null,null,null,null,""]
[null,null,null,null,null,null,""]
[null,null,null,null,null,null,""]
[null,null,null,null,null,null,""]
[null,null,null,null,null,null,""]
[null,null,null,null,null,null,""]
[null,null,null,null,null,null,""]
[null,null,null,null,null,null,""]
[null,null,null,null,null,null,""]
[null,null,null,null,null,null,""]
[null,null,null,null,null,null,""]
[null,null,null,null,null,null,""]
[null,null,null,null,null,null,""]
[null,null,null,null,null,null,""]
[null,null,null,null,null,null,""]
[null,null,null,null,null,null,""]
[null,null,null,null,null,null,""]
[null,null,null,null,null,null,""]
[null,null,null,null,null,null,""]
[null,null,null,null,null,null,""]
[null,null,null,null,null,null,""]
[null,null,null,null,null,null,""]
[null,null,null,null,null,null,""]
[null,null,null,null,null,null,""]
[null,null,null,null,null,null,""]
[null,null,null,null,null,null,""]
[null,null,null,null,null,null,""]
[null,null,null,null,null,null,""]
[null,null,null,null,null,null,""]
[null,null,null,null,null,null,""]
[null,null,null,null,null,null,""]
[null,null,null,null,null,null,""]
[null,null,null,null,null,null,""]
[null,null,null,null,null,null,""]
[null,null,null,null,null,null,""]
[null,null,null,null,null,null,""]
[null,null,null,null,null,null,""]
[null,null,null,null,null,null,""]
[null,null,null,null,null,null,""]
[null,null,null,null,null,null,""]
[null,null,null,null,null,null,""]
[null,null,null,null,null,null,""]
[null,null,null,null,null,null,""]
[null,null,null,null,null,null,""]
[null,null,null,null,null,null,""]
[null,null,null,null,null,null,""]
[null,null,null,null,null,null,""]
[null,null,null,null,null,null,""]
[null,null,null,null,null,null,""]
[null,null,null,null,null,null,""]
[null,null,null,null,null,null,""]
[null,null,null,null,null,null,""]
[null,null,null,null,null,null,""]
[null,null,null,null,null,null,""]
[null,null,null,null,null,null,""]
[null,null,null,null,null,null,""]
[null,null,null,null,null,null,""]
[null,null,null,null,null,null,""]
[null,null,null,null,null,null,""]
[null,null,null,null,null,null,""]
[null,null,null,null,null,null,""]
[null,null,null,null,null,null,""]
[null,null,null,null,null,null,""]
[null,null,null,null,null,null,""]
[null,null,null,null,null,null,""]
[null,null,null,null,null,null,""]
[null,null,null,null,null,null,""]
[null,null,null,null,null,null,""]
[null,null,null,null,null,null,""]
[null,null,null,null,null,null,""]
[null,null,null,null,null,null,""]
[null,null,null,null,null,null,""]
[null,null,null,null,null,null,""]
[null,null,null,null,null,null,""]
[null,null,null,null,null,null,""]
[null,null,null,null,null,null,""]
[null,null,null,null,null,null,""]
[null,null,null,null,null,null,""]
[null,null,null,null,null,null,""]
[null,null,null,null,null,null,""]
[null,null,null,null,null,null,""]
[null,null,null,null,null,null,""]
[null,null,null,null,null,null,""]
[null,null,null,null,null,null,""]
[null,null,null,null,null,null,""]
[null,null,null,null,null,null,""]
[null,null,null,null,null,null,""]
[null,null,null,null,null,null,""]
[null,null,null,null,null,null,""]
[null,null,null,null,null,null,""]
[null,null,null,null,null,null,""]
[null,null,null,null,null,null,""]
[null,null,null,null,null,null,""]
[null,null,null,null,null,null,""]
[null,null,null,null,null,null,""]
[null,null,null,null,null,null,""]
[null,null,null,null,null,null,""]
[null,null,null,null,null,null,""]
[null,null,null,null,null,null,""]
[null,null,null,null,null,null,""]
[null,null,null,null,null,null,""]
[null,null,null,null,null,null,""]
[null,null,null,null,null,null,""]
[null,null,null,null,null,null,""]
[null,null,null,null,null,null,""]
[null,null,null,null,null,null,""]
[null,null,null,null,null,null,""]
[null,null,null,null,null,null,""]
[null,null,null,null,null,null,""]
[null,null,null,null,null,null,""]
[null,null,null,null,null,null,""]
[null,null,null,null,null,null,""]
[null,null,null,null,null,null,""]
[null,null,null,null,null,null,""]
[null,null,null,null,null,null,""]
[null,null,null,null,null,null,""]
[null,null,null,null,null,null,""]
[null,null,null,null,null,null,""]
[null,null,null,null,null,null,""]
[null,null,null,null,null,null,""]
[null,null,null,null,null,null,""]
[null,null,null,null,null,null,""]
[null,null,null,null,null,null,""]
[null,null,null,null,null,null,""]
[null,null,null,null,null,null,""]
[null,null,null,null,null,null,""]
[null,null,null,null,null,null,""]
[null,null,null,null,null,null,""]
[null,null,null,null,null,null,""]
[null,null,null,null,null,null,""]
[null,null,null,null,null,null,""]
[null,null,null,null,null,null,""]
[null,null,null,null,null,null,""]
[null,null,null,null,null,null,""]
[null,null,null,null,null,null,""]
[null,null,null,null,null,null,""]
[null,null,null,null,null,null,""]
[null,null,null,null,null,null,""]
[null,null,null,null,null,null,""]
[null,null,null,null,null,null,""]
[null,null,null,null,null,null,""]
[null,null,null,null,null,null,""]
[null,null,null,null,null,null,""]
[null,null,null,null,null,null,""]
[null,null,null,null,null,null,""]
[null,null,null,null,null,null,""]
[null,null,null,null,null,null,""]
[null,null,null,null,null,null,""]
[null,null,null,null,null,null,""]
[null,null,null,null,null,null,""]
[null,null,null,null,null,null,""]
[null,null,null,null,null,null,""]
[null,null,null,null,null,null,""]
[null,null,null,null,null,null,""]
[null,null,null,null,null,null,""]
[null,null,null,null,null,null,""]
[null,null,null,null,null,null,""]
[null,null,null,null,null,null,""]
[null,null,null,null,null,null,""]
[null,null,null,null,null,null,""]
[null,null,null,null,null,null,""]
[null,null,null,null,null,null,""]
[null,null,null,null,null,null,""]
[null,null,null,null,null,null,""]
[null,null,null,null,null,null,""]
[null,null,null,null,null,null,""]
[null,null,null,null,null,null,""]
[null,null,null,null,null,null,""]
[null,null,null,null,null,null,""]
[null,null,null,null,null,null,""]
[null,null,null,null,null,null,""]
[null,null,null,null,null,null,""]
[null,null,null,null,null,null,""]
[null,null,null,null,null,null,""]
[null,null,null,null,null,null,""]
[null,null,null,null,null,null,""]
[null,null,null,null,null,null,""]
[null,null,null,null,null,null,""]
[null,null,null,null,null,null,""]
[null,null,null,null,null,null,""]
[null,null,null,null,null,null,""]
[null,null,null,null,null,null,""]
[null,null,null,null,null,null,""]
[null,null,null,null,null,null,""]
[null,null,null,null,null,null,""]
[null,null,null,null,null,null,""]
[null,null,null,null,null,null,""]
[null,null,null,null,null,null,""]
[null,null,null,null,null,null,""]
[null,null,null,null,null,null,""]
[null,null,null,null,null,null,""]
[null,null,null,null,null,null,""]
[null,null,null,null,null,null,""]
[null,null,null,null,null,null,""]
[null,null,null,null,null,null,""]
[null,null,null,null,null,null,""]
[null,null,null,null,null,null,""]
[null,null,null,null,null,null,""]
[null,null,null,null,null,null,""]
[null,null,null,null,null,null,""]
[null,null,null,null,null,null,""]
[null,null,null,null,null,null,""]
[null,null,null,null,null,null,""]
[null,null,null,null,null,null,""]
[null,null,null,null,null,null,""]
[null,null,null,null,null,null,""]
[null,null,null,null,null,null,""]
[null,null,null,null,null,null,""]
[null,null,null,null,null,null,""]
[null,null,null,null,null,null,""]
[null,null,null,null,null,null,""]
[null,null,null,null,null,null,""]
[null,null,null,null,null,null,""]
[null,null,null,null,null,null,""]
[null,null,null,null,null,null,""]
[null,null,null,null,null,null,""]
[null,null,null,null,null,null,""]
[null,null,null,null,null,null,""]
[null,null,null,null,null,null,""]
[null,null,null,null,null,null,""]
[null,null,null,null,null,null,""]
[null,null,null,null,null,null,""]
[null,null,null,null,null,null,""]
[null,null,null,null,null,null,""]
[null,null,null,null,null,null,""]
[null,null,null,null,null,null,""]
[null,null,null,null,null,null,""]
[null,null,null,null,null,null,""]
[null,null,null,null,null,null,""]
[null,null,null,null,null,null,""]
[null,null,null,null,null,null,""]
[null,null,null,null,null,null,""]
[null,null,null,null,null,null,""]
[null,null,null,null,null,null,""]
[null,null,null,null,null,null,""]
[null,null,null,null,null,null,""]
[null,null,null,null,null,null,""]
[null,null,null,null,null,null,""]
[null,null,null,null,null,null,""]
[null,null,null,null,null,null,""]
[null,null,null,null,null,null,""]
[null,null,null,null,null,null,""]
[null,null,null,null,null,null,""]
[null,null,null,null,null,null,""]
[null,null,null,null,null,null,""]
[null,null,null,null,null,null,""]
[null,null,null,null,null,null,""]
[null,null,null,null,null,null,""]
[null,null,null,null,null,null,""]
[null,null,null,null,null,null,""]
[null,null,null,null,null,null,""]
[null,null,null,null,null,null,""]
[null,null,null,null,null,null,""]
[null,null,null,null,null,null,""]
[null,null,null,null,null,null,""]
[null,null,null,null,null,null,""]

{"sheet":"E08","index":10,"n_rows":664,"n_cols":7,"rows_kept":664,"cut":false,"hidden":false,"merged":[[444,2,449,3],[443,2,443,3],[442,2,442,3],[441,2,441,3],[440,1,440,3],[431,2,436,3],[430,2,430,3],[429,2,429,3],[428,2,428,3],[427,1,427,3],[416,2,421,3],[415,2,415,3],[414,2,414,3],[413,2,413,3],[412,1,412,3],[397,1,397,3],[398,2,398,3],[399,2,399,3],[400,2,400,3],[401,2,406,3],[386,2,391,3],[385,2,385,3],[384,2,384,3],[383,2,383,3],[382,1,382,3],[373,2,378,3],[372,2,372,3],[371,2,371,3],[370,2,370,3],[369,1,369,3],[356,1,356,3],[357,2,357,3],[358,2,358,3],[359,2,359,3],[360,2,365,3],[341,1,341,3],[342,2,342,3],[343,2,343,3],[344,2,344,3],[345,2,350,3],[332,2,337,3],[331,2,331,3],[330,2,330,3],[329,2,329,3],[328,1,328,3],[319,2,324,3],[318,2,318,3],[317,2,317,3],[316,2,316,3],[315,1,315,3],[302,1,302,3],[303,2,303,3],[304,2,304,3],[305,2,305,3],[306,2,311,3],[291,2,296,3],[290,2,290,3],[289,2,289,3],[288,2,288,3],[287,1,287,3],[278,2,283,3],[277,2,277,3],[276,2,276,3],[275,2,275,3],[274,1,274,3],[261,1,261,3],[262,2,262,3],[263,2,263,3],[264,2,264,3],[265,2,270,3],[250,2,255,3],[249,2,249,3],[248,2,248,3],[247,2,247,3],[246,1,246,3],[237,2,242,3],[236,2,236,3],[235,2,235,3],[234,2,234,3],[224,2,229,3],[223,2,223,3],[222,2,222,3],[221,2,221,3],[211,2,216,3],[210,2,210,3],[209,2,209,3],[220,1,220,2],[233,1,233,2],[208,2,208,3],[198,2,203,3],[197,2,197,3],[196,2,196,3],[195,2,195,3],[185,2,190,3],[184,2,184,3],[194,1,194,2],[207,1,207,2],[156,2,156,3],[155,2,155,3],[154,2,154,3],[142,2,142,3],[143,2,143,3],[144,2,149,3],[141,2,141,3],[140,1,140,2],[153,1,153,2],[183,2,183,3],[182,2,182,3],[181,1,181,3],[168,1,168,3],[169,2,169,3],[170,2,170,3],[171,2,171,3],[172,2,177,3],[157,2,162,3],[128,2,128,3],[129,2,129,3],[130,2,130,3],[131,2,136,3],[115,2,115,3],[116,2,116,3],[117,2,117,3],[118,2,123,3],[114,1,114,2],[127,1,127,2],[60,2,60,3],[58,1,58,3],[103,2,108,3],[102,2,102,3],[101,2,101,3],[100,2,100,3],[99,1,99,3],[74,2,74,3],[75,2,75,3],[76,2,76,3],[77,2,82,3],[90,2,95,3],[89,2,89,3],[88,2,88,3],[87,2,87,3],[86,1,86,3],[73,1,73,3],[62,2,67,3],[61,2,61,3],[4,1,4,3],[5,2,5,3],[6,2,6,3],[7,2,7,3],[8,2,13,3],[21,2,26,3],[20,2,20,3],[19,2,19,3],[18,2,18,3],[17,1,17,3],[35,2,35,3],[46,2,46,3],[47,2,47,3],[48,2,48,3],[59,2,59,3],[32,1,32,3],[33,2,33,3],[34,2,34,3],[36,2,41,3],[49,2,54,3],[45,1,45,3]]}
[]
[null,null,null,null,null,null,""]
[null,"8.1 - 예방적 사회기반시설",null,null,null,null,"8.1"]
[null,null,null,null,null,null,""]
[null,"8.1.1 - 예방적 사회기반시설의 적 절성(생태계는 자연적인 완충효과를 제공할 수 있 음 – 필수사항5 참조)",null,null,null,null,"8.1.1"]
[null,"주제 / 현안","비고",null,null,null,""]
[null,null,null,null,null,null,""]
[null,"대답","증빙수단(설명과 증빙자료)",null,null,null,""]
[null,null,null,null,null,{"$f":"IF(E9=1,TRUE,FALSE)","v":false},""]
[null,null,null,null,null,{"$f":"IF(E9=2,TRUE,FALSE)","v":false},""]
[null,null,null,null,null,{"$f":"IF(E9=3,TRUE,FALSE)","v":false},""]
[null,null,null,null,null,{"$f":"IF(E9=4,TRUE,FALSE)","v":false},""]
[null,null,null,null,null,{"$f":"IF(E9=5,TRUE,FALSE)","v":false},""]
[null,null,null,null,null,{"$f":"IF(E9=6,TRUE,FALSE)","v":false},""]
[null,"최상의 복원력을 달성하기 위한 활동계획","담당부서","추진기간",null,null,""]
[null,null,null,null,null,null,""]
[null,null,null,null,null,null,""]
[null,"8.1.2 - 유지 보수의 효과",null,null,null,null,"8.1.2"]
[null,"주제 / 현안","비고",null,null,null,""]
[null,null,null,null,null,null,""]
[null,"대답","증빙수단(설명과 증빙자료)",null,null,null,""]
[null,null,null,null,null,{"$f":"IF(E22=1,TRUE,FALSE)","v":false},""]
[null,null,null,null,null,{"$f":"IF(E22=2,TRUE,FALSE)","v":false},""]
[null,null,null,null,null,{"$f":"IF(E22=3,TRUE,FALSE)","v":false},""]
[null,null,null,null,null,{"$f":"IF(E22=4,TRUE,FALSE)","v":false},""]
[null,null,null,null,null,{"$f":"IF(E22=5,TRUE,FALSE)","v":false},""]
[null,null,null,null,null,{"$f":"IF(E22=6,TRUE,FALSE)","v":false},""]
[null,"최상의 복원력을 달성하기 위한 활동계획","담당부서","추진기간",null,null,""]
[null,null,null,null,null,null,""]
[null,null,null,null,null,null,""]
[null,"8.2 - 수자원 위생",null,null,null,null,"8.2"]
[null,null,null,null,null,null,""]
[null,"8.2.1 - 손실 위험에 처한 사용자 서비스 기간",null,null,null,null,"8.2.1"]
[null,"주제 / 현안","비고",null,null,null,""]
[null,null,null,null,null,null,""]
[null,"대답","증빙수단(설명과 증빙자료)",null,null,null,""]
[null,null,null,null,null,{"$f":"IF(E37=1,TRUE,FALSE)","v":false},""]
[null,null,null,null,null,{"$f":"IF(E37=2,TRUE,FALSE)","v":false},""]
[null,null,null,null,null,{"$f":"IF(E37=3,TRUE,FALSE)","v":false},""]
[null,null,null,null,null,{"$f":"IF(E37=4,TRUE,FALSE)","v":false},""]
[null,null,null,null,null,{"$f":"IF(E37=5,TRUE,FALSE)","v":false},""]
[null,null,null,null,null,{"$f":"IF(E37=6,TRUE,FALSE)","v":false},""]
[null,"최상의 복원력을 달성하기 위한 활동계획","담당부서","추진기간",null,null,""]
[null,null,null,null,null,null,""]
[null,null,null,null,null,null,""]
[null,"8.2.2 - 수자원 또는 위생 시설의 장애로 손실 위험에 처할 수 있는 주요 자산 서비스 기간(예, 병원 또는 기타 중 요 자산에 대한 서비스)",null,null,null,null,"8.2.2"]
[null,"주제 / 현안","비고",null,null,null,""]
[null,null,null,null,null,null,""]
[null,"대답","증빙수단(설명과 증빙자료)",null,null,null,""]
[null,null,null,null,null,{"$f":"IF(E50=1,TRUE,FALSE)","v":false},""]
[null,null,null,null,null,{"$f":"IF(E50=2,TRUE,FALSE)","v":false},""]
[null,null,null,null,null,{"$f":"IF(E50=3,TRUE,FALSE)","v":false},""]
[null,null,null,null,null,{"$f":"IF(E50=4,TRUE,FALSE)","v":false},""]
[null,null,null,null,null,{"$f":"IF(E50=5,TRUE,FALSE)","v":false},""]
[null,null,null,null,null,{"$f":"IF(E50=6,TRUE,FALSE)","v":false},""]
[null,"최상의 복원력을 달성하기 위한 활동계획","담당부서","추진기간",null,null,""]
[null,null,null,null,null,null,""]
[null,null,null,null,null,null,""]
[null,"8.2.3 - 서비스 복구 비용",null,null,null,null,"8.2.3"]
[null,"주제 / 현안","비고",null,null,null,""]
[null,null,null,null,null,null,""]
[null,"대답","증빙수단(설명과 증빙자료)",null,null,null,""]
[null,null,null,null,null,{"$f":"IF(E63=1,TRUE,FALSE)","v":false},""]
[null,null,null,null,null,{"$f":"IF(E63=2,TRUE,FALSE)","v":false},""]
[null,null,null,null,null,{"$f":"IF(E63=3,TRUE,FALSE)","v":false},""]
[null,null,null,null,null,{"$f":"IF(E63=4,TRUE,FALSE)","v":false},""]
[null,null,null,null,null,{"$f":"IF(E63=5,TRUE,FALSE)","v":false},""]
[null,null,null,null,null,{"$f":"IF(E63=6,TRUE,FALSE)","v":false},""]
[null,"최상의 복원력을 달성하기 위한 활동계획","담당부서","추진기간",null,null,""]
[null,null,null,null,null,null,""]
[null,null,null,null,null,null,""]
[null,"8.3 - 에너지-전기 ",null,null,null,null,"8.3"]
[null,null,null,null,null,null,""]
[null,"8.3.1 - 손실 위험에 처한 사용자 서비스 기간",null,null,null,null,"8.3.1"]
[null,"주제 / 현안","비고",null,null,null,""]
[null,null,null,null,null,null,""]
[null,"대답","증빙수단(설명과 증빙자료)",null,null,null,""]
[null,null,null,null,null,{"$f":"IF(E78=1,TRUE,FALSE)","v":false},""]
[null,null,null,null,null,{"$f":"IF(E78=2,TRUE,FALSE)","v":false},""]
[null,null,null,null,null,{"$f":"IF(E78=3,TRUE,FALSE)","v":false},""]
[null,null,null,null,null,{"$f":"IF(E78=4,TRUE,FALSE)","v":false},""]
[null,null,null,null,null,{"$f":"IF(E78=5,TRUE,FALSE)","v":false},""]
[null,null,null,null,null,{"$f":"IF(E78=6,TRUE,FALSE)","v":false},""]
[null,"최상의 복원력을 달성하기 위한 활동계획","담당부서","추진기간",null,null,""]
[null,null,null,null,null,null,""]
[null,null,null,null,null,null,""]
[null,"8.3.2 - 에너지 공급 실패로 인한 손실 위험에 처한 주요 자산의 서비스 기간",null,null,null,null,"8.3.2"]
[null,"주제 / 현안","비고",null,null,null,""]
[null,null,null,null,null,null,""]
[null,"대답","증빙수단(설명과 증빙자료)",null,null,null,""]
[null,null,null,null,null,{"$f":"IF(E91=1,TRUE,FALSE)","v":false},""]
[null,null,null,null,null,{"$f":"IF(E91=2,TRUE,FALSE)","v":false},""]
[null,null,null,null,null,{"$f":"IF(E91=3,TRUE,FALSE)","v":false},""]
[null,null,null,null,null,{"$f":"IF(E91=4,TRUE,FALSE)","v":false},""]
[null,null,null,null,null,{"$f":"IF(E91=5,TRUE,FALSE)","v":false},""]
[null,null,null,null,null,{"$f":"IF(E91=6,TRUE,FALSE)","v":false},""]
[null,"최상의 복원력을 달성하기 위한 활동계획","담당부서","추진기간",null,null,""]
[null,null,null,null,null,null,""]
[null,null,null,null,null,null,""]
[null,"8.3.3 - 복구 비용",null,null,null,null,"8.3.3"]
[null,"주제 / 현안","비고",null,null,null,""]
[null,null,null,null,null,null,""]
[null,"대답","증빙수단(설명과 증빙자료)",null,null,null,""]
[null,null,null,null,null,{"$f":"IF(E104=1,TRUE,FALSE)","v":false},""]
[null,null,null,null,null,{"$f":"IF(E104=2,TRUE,FALSE)","v":false},""]
[null,null,null,null,null,{"$f":"IF(E104=3,TRUE,FALSE)","v":false},""]
[null,null,null,null,null,{"$f":"IF(E104=4,TRUE,FALSE)","v":false},""]
[null,null,null,null,null,{"$f":"IF(E104=5,TRUE,FALSE)","v":false},""]
[null,null,null,null,null,{"$f":"IF(E104=6,TRUE,FALSE)","v":false},""]
[null,"최상의 복원력을 달성하기 위한 활동계획","담당부서","추진기간",null,null,""]
[null,null,null,null,null,null,""]
[null,null,null,null,null,null,""]
[null,"8.4 - 에너지 – 가스",null,null,null,null,"8.4"]
[null,null,null,null,null,null,""]
[null,"8.4.1 - 가스시스템의 안전성 및 무결성(해당되는 경우)",null,null,null,null,"8.4.1"]
[null,"주제 / 현안","비고",null,null,null,""]
[null,null,null,null,null,null,""]
[null,"대답","증빙수단(설명과 증빙자료)",null,null,null,""]
[null,null,null,null,null,{"$f":"IF(E119=1,TRUE,FALSE)","v":false},""]
[null,null,null,null,null,{"$f":"IF(E119=2,TRUE,FALSE)","v":false},""]
[null,null,null,null,null,{"$f":"IF(E119=3,TRUE,FALSE)","v":false},""]
[null,null,null,null,null,{"$f":"IF(E119=4,TRUE,FALSE)","v":false},""]
[null,null,null,null,null,{"$f":"IF(E119=5,TRUE,FALSE)","v":false},""]
[null,null,null,null,null,{"$f":"IF(E119=6,TRUE,FALSE)","v":false},""]
[null,"최상의 복원력을 달성하기 위한 활동계획","담당부서","추진기간",null,null,""]
[null,null,null,null,null,null,""]
[null,null,null,null,null,null,""]
[null,"8.4.2 - 손실 위험에 처한 사용자 서비스 기간",null,null,null,null,"8.4.2"]
[null,"주제 / 현안","비고",null,null,null,""]
[null,null,null,null,null,null,""]
[null,"대답","증빙수단(설명과 증빙자료)",null,null,null,""]
[null,null,null,null,null,{"$f":"IF(E132=1,TRUE,FALSE)","v":false},""]
[null,null,null,null,null,{"$f":"IF(E132=2,TRUE,FALSE)","v":false},""]
[null,null,null,null,null,{"$f":"IF(E132=3,TRUE,FALSE)","v":false},""]
[null,null,null,null,null,{"$f":"IF(E132=4,TRUE,FALSE)","v":false},""]
[null,null,null,null,null,{"$f":"IF(E132=5,TRUE,FALSE)","v":false},""]
[null,null,null,null,null,{"$f":"IF(E132=6,TRUE,FALSE)","v":false},""]
[null,"최상의 복원력을 달성하기 위한 활동계획","담당부서","추진기간",null,null,""]
[null,null,null,null,null,null,""]
[null,null,null,null,null,null,""]
[null,"8.4.3 - 가스 공급 실패로 인한 손실위험에 처한 주요 자산 서비스 기간",null,null,null,null,"8.4.3"]
[null,"주제 / 현안","비고",null,null,null,""]
[null,null,null,null,null,null,""]
[null,"대답","증빙수단(설명과 증빙자료)",null,null,null,""]
[null,null,null,null,null,{"$f":"IF(E145=1,TRUE,FALSE)","v":false},""]
[null,null,null,null,null,{"$f":"IF(E145=2,TRUE,FALSE)","v":false},""]
[null,null,null,null,null,{"$f":"IF(E145=3,TRUE,FALSE)","v":false},""]
[null,null,null,null,null,{"$f":"IF(E145=4,TRUE,FALSE)","v":false},""]
[null,null,null,null,null,{"$f":"IF(E145=5,TRUE,FALSE)","v":false},""]
[null,null,null,null,null,{"$f":"IF(E145=6,TRUE,FALSE)","v":false},""]
[null,"최상의 복원력을 달성하기 위한 활동계획","담당부서","추진기간",null,null,""]
[null,null,null,null,null,null,""]
[null,null,null,null,null,null,""]
[null,"8.4.4 - 서비스 복구 비용",null,null,null,null,"8.4.4"]
[null,"주제 / 현안","비고",null,null,null,""]
[null,null,null,null,null,null,""]
[null,"대답","증빙수단(설명과 증빙자료)",null,null,null,""]
[null,null,null,null,null,{"$f":"IF(E158=1,TRUE,FALSE)","v":false},""]
[null,null,null,null,null,{"$f":"IF(E158=2,TRUE,FALSE)","v":false},""]
[null,null,null,null,null,{"$f":"IF(E158=3,TRUE,FALSE)","v":false},""]
[null,null,null,null,null,{"$f":"IF(E158=4,TRUE,FALSE)","v":false},""]
[null,null,null,null,null,{"$f":"IF(E158=5,TRUE,FALSE)","v":false},""]
[null,null,null,null,null,{"$f":"IF(E158=6,TRUE,FALSE)","v":false},""]
[null,"최상의 복원력을 달성하기 위한 활동계획","담당부서","추진기간",null,null,""]
[null,null,null,null,null,null,""]
[null,null,null,null,null,null,""]
[null,"8.5 - 교통",null,null,null,null,"8.5"]
[null,null,null,null,null,null,""]
[null,"8.5.1 - 도로 – 손실 위험에 처한 도로 시스템으로 부터의 서비스",null,null,null,null,"8.5.1"]
[null,"주제 / 현안","비고",null,null,null,""]
[null,null,null,null,null,null,""]
[null,"대답","증빙수단(설명과 증빙자료)",null,null,null,""]
[null,null,null,null,null,{"$f":"IF(E173=1,TRUE,FALSE)","v":false},""]
[null,null,null,null,null,{"$f":"IF(E173=2,TRUE,FALSE)","v":false},""]
[null,null,null,null,null,{"$f":"IF(E173=3,TRUE,FALSE)","v":false},""]
[null,null,null,null,null,{"$f":"IF(E173=4,TRUE,FALSE)","v":false},""]
[null,null,null,null,null,{"$f":"IF(E173=5,TRUE,FALSE)","v":false},""]
[null,null,null,null,null,{"$f":"IF(E173=6,TRUE,FALSE)","v":false},""]
[null,"최상의 복원력을 달성하기 위한 활동계획","담당부서","추진기간",null,null,""]
[null,null,null,null,null,null,""]
[null,null,null,null,null,null,""]
[null,"8.5.2 - 도로 – 주요 진입 및 대피 경로의 잔존",null,null,null,null,"8.5.2"]
[null,"주제 / 현안","비고",null,null,null,""]
[null,null,null,null,null,null,""]
[null,"대답","증빙수단(설명과 증빙자료)",null,null,null,""]
[null,null,null,null,null,{"$f":"IF(E186=1,TRUE,FALSE)","v":false},""]
[null,null,null,null,null,{"$f":"IF(E186=2,TRUE,FALSE)","v":false},""]
[null,null,null,null,null,{"$f":"IF(E186=3,TRUE,FALSE)","v":false},""]
[null,null,null,null,null,{"$f":"IF(E186=4,TRUE,FALSE)","v":false},""]
[null,null,null,null,null,{"$f":"IF(E186=5,TRUE,FALSE)","v":false},""]
[null,null,null,null,null,{"$f":"IF(E186=6,TRUE,FALSE)","v":false},""]
[null,"최상의 복원력을 달성하기 위한 활동계획","담당부서","추진기간",null,null,""]
[null,null,null,null,null,null,""]
[null,null,null,null,null,null,""]
[null,"8.5.3 - 철도/지하철 (해당되는 경우) – 손실위험에 처한 철도 시스템으로부터의 서비스",null,null,null,null,"8.5.3"]
[null,"주제 / 현안","비고",null,null,null,""]
[null,null,null,null,null,null,""]
[null,"대답","증빙수단(설명과 증빙자료)",null,null,null,""]
[null,null,null,null,null,{"$f":"IF(E199=1,TRUE,FALSE)","v":false},""]
[null,null,null,null,null,{"$f":"IF(E199=2,TRUE,FALSE)","v":false},""]
[null,null,null,null,null,{"$f":"IF(E199=3,TRUE,FALSE)","v":false},""]
[null,null,null,null,null,{"$f":"IF(E199=4,TRUE,FALSE)","v":false},""]
[null,null,null,null,null,{"$f":"IF(E199=5,TRUE,FALSE)","v":false},""]
[null,null,null,null,null,{"$f":"IF(E199=6,TRUE,FALSE)","v":false},""]
[null,"최상의 복원력을 달성하기 위한 활동계획","담당부서","추진기간",null,null,""]
[null,null,null,null,null,null,""]
[null,null,null,null,null,null,""]
[null,"8.5.4 - 공항(해당되는 경우)",null,null,null,null,"8.5.4"]
[null,"주제 / 현안","비고",null,null,null,""]
[null,null,null,null,null,null,""]
[null,"대답","증빙수단(설명과 증빙자료)",null,null,null,""]
[null,null,null,null,null,{"$f":"IF(E212=1,TRUE,FALSE)","v":false},""]
[null,null,null,null,null,{"$f":"IF(E212=2,TRUE,FALSE)","v":false},""]
[null,null,null,null,null,{"$f":"IF(E212=3,TRUE,FALSE)","v":false},""]
[null,null,null,null,null,{"$f":"IF(E212=4,TRUE,FALSE)","v":false},""]
[null,null,null,null,null,{"$f":"IF(E212=5,TRUE,FALSE)","v":false},""]
[null,null,null,null,null,{"$f":"IF(E212=6,TRUE,FALSE)","v":false},""]
[null,"최상의 복원력을 달성하기 위한 활동계획","담당부서","추진기간",null,null,""]
[null,null,null,null,null,null,""]
[null,null,null,null,null,null,""]
[null,"8.5.5 - 강/항구(해당되는 경우)",null,null,null,null,"8.5.5"]
[null,"주제 / 현안","비고",null,null,null,""]
[null,null,null,null,null,null,""]
[null,"대답","증빙수단(설명과 증빙자료)",null,null,null,""]
[null,null,null,null,null,{"$f":"IF(E225=1,TRUE,FALSE)","v":false},""]
[null,null,null,null,null,{"$f":"IF(E225=2,TRUE,FALSE)","v":false},""]
[null,null,null,null,null,{"$f":"IF(E225=3,TRUE,FALSE)","v":false},""]
[null,null,null,null,null,{"$f":"IF(E225=4,TRUE,FALSE)","v":false},""]
[null,null,null,null,null,{"$f":"IF(E225=5,TRUE,FALSE)","v":false},""]
[null,null,null,null,null,{"$f":"IF(E225=6,TRUE,FALSE)","v":false},""]
[null,"최상의 복원력을 달성하기 위한 활동계획","담당부서","추진기간",null,null,""]
[null,null,null,null,null,null,""]
[null,null,null,null,null,null,""]
[null,"8.5.6 - 기타 대중 교통 (버스 및 택시 등)",null,null,null,null,"8.5.6"]
[null,"주제 / 현안","비고",null,null,null,""]
[null,null,null,null,null,null,""]
[null,"대답","증빙수단(설명과 증빙자료)",null,null,null,""]
[null,null,null,null,null,{"$f":"IF(E238=1,TRUE,FALSE)","v":false},""]
[null,null,null,null,null,{"$f":"IF(E238=2,TRUE,FALSE)","v":false},""]
[null,null,null,null,null,{"$f":"IF(E238=3,TRUE,FALSE)","v":false},""]
[null,null,null,null,null,{"$f":"IF(E238=4,TRUE,FALSE)","v":false},""]
[null,null,null,null,null,{"$f":"IF(E238=5,TRUE,FALSE)","v":false},""]
[null,null,null,null,null,{"$f":"IF(E238=6,TRUE,FALSE)","v":false},""]
[null,"최상의 복원력을 달성하기 위한 활동계획","담당부서","추진기간",null,null,""]
[null,null,null,null,null,null,""]
[null,null,null,null,null,null,""]
[null,"8.5.7 - 교통관련 서비스 복구 비용",null,null,null,null,"8.5.7"]
[null,"주제 / 현안","비고",null,null,null,""]
[null,null,null,null,null,null,""]
[null,"대답","증빙수단(설명과 증빙자료)",null,null,null,""]
[null,null,null,null,null,{"$f":"IF(E251=1,TRUE,FALSE)","v":false},""]
[null,null,null,null,null,{"$f":"IF(E251=2,TRUE,FALSE)","v":false},""]
[null,null,null,null,null,{"$f":"IF(E251=3,TRUE,FALSE)","v":false},""]
[null,null,null,null,null,{"$f":"IF(E251=4,TRUE,FALSE)","v":false},""]
[null,null,null,null,null,{"$f":"IF(E251=5,TRUE,FALSE)","v":false},""]
[null,null,null,null,null,{"$f":"IF(E251=6,TRUE,FALSE)","v":false},""]
[null,"최상의 복원력을 달성하기 위한 활동계획","담당부서","추진기간",null,null,""]
[null,null,null,null,null,null,""]
[null,null,null,null,null,null,""]
[null,"8.6 - 통신",null,null,null,null,"8.6"]
[null,null,null,null,null,null,""]
[null,"8.6.1 - 손실 위험에 처한 서비스 기간",null,null,null,null,"8.6.1"]
[null,"주제 / 현안","비고",null,null,null,""]
[null,null,null,null,null,null,""]
[null,"대답","증빙수단(설명과 증빙자료)",null,null,null,""]
[null,null,null,null,null,{"$f":"IF(E266=1,TRUE,FALSE)","v":false},""]
[null,null,null,null,null,{"$f":"IF(E266=2,TRUE,FALSE)","v":false},""]
[null,null,null,null,null,{"$f":"IF(E266=3,TRUE,FALSE)","v":false},""]
[null,null,null,null,null,{"$f":"IF(E266=4,TRUE,FALSE)","v":false},""]
[null,null,null,null,null,{"$f":"IF(E266=5,TRUE,FALSE)","v":false},""]
[null,null,null,null,null,{"$f":"IF(E266=6,TRUE,FALSE)","v":false},""]
[null,"최상의 복원력을 달성하기 위한 활동계획","담당부서","추진기간",null,null,""]
[null,null,null,null,null,null,""]
[null,null,null,null,null,null,""]
[null,"8.6.2 - 도로 – 통신 실패로 인해 손실 위험에 처한 지정된 주요 자산 서비스 기간",null,null,null,null,"8.6.2"]
[null,"주제 / 현안","비고",null,null,null,""]
[null,null,null,null,null,null,""]
[null,"대답","증빙수단(설명과 증빙자료)",null,null,null,""]
[null,null,null,null,null,{"$f":"IF(E279=1,TRUE,FALSE)","v":false},""]
[null,null,null,null,null,{"$f":"IF(E279=2,TRUE,FALSE)","v":false},""]
[null,null,null,null,null,{"$f":"IF(E279=3,TRUE,FALSE)","v":false},""]
[null,null,null,null,null,{"$f":"IF(E279=4,TRUE,FALSE)","v":false},""]
[null,null,null,null,null,{"$f":"IF(E279=5,TRUE,FALSE)","v":false},""]
[null,null,null,null,null,{"$f":"IF(E279=6,TRUE,FALSE)","v":false},""]
[null,"최상의 복원력을 달성하기 위한 활동계획","담당부서","추진기간",null,null,""]
[null,null,null,null,null,null,""]
[null,null,null,null,null,null,""]
[null,"8.6.3 - 복구 비용",null,null,null,null,"8.6.3"]
[null,"주제 / 현안","비고",null,null,null,""]
[null,null,null,null,null,null,""]
[null,"대답","증빙수단(설명과 증빙자료)",null,null,null,""]
[null,null,null,null,null,{"$f":"IF(E292=1,TRUE,FALSE)","v":false},""]
[null,null,null,null,null,{"$f":"IF(E292=2,TRUE,FALSE)","v":false},""]
[null,null,null,null,null,{"$f":"IF(E292=3,TRUE,FALSE)","v":false},""]
[null,null,null,null,null,{"$f":"IF(E292=4,TRUE,FALSE)","v":false},""]
[null,null,null,null,null,{"$f":"IF(E292=5,TRUE,FALSE)","v":false},""]
[null,null,null,null,null,{"$f":"IF(E292=6,TRUE,FALSE)","v":false},""]
[null,"최상의 복원력을 달성하기 위한 활동계획","담당부서","추진기간",null,null,""]
[null,null,null,null,null,null,""]
[null,null,null,null,null,null,""]
[null,"8.7 - 보건",null,null,null,null,"8.7"]
[null,null,null,null,null,null,""]
[null,"8.7.1 - 보건 및 비상 시설의 구조적 안전 및 재난 복원력 (인력 파견 / 최초 대응 - 필 수사항9 참조)",null,null,null,null,"8.7.1"]
[null,"주제 / 현안","비고",null,null,null,""]
[null,null,null,null,null,null,""]
[null,"대답","증빙수단(설명과 증빙자료)",null,null,null,""]
[null,null,null,null,null,{"$f":"IF(E307=1,TRUE,FALSE)","v":false},""]
[null,null,null,null,null,{"$f":"IF(E307=2,TRUE,FALSE)","v":false},""]
[null,null,null,null,null,{"$f":"IF(E307=3,TRUE,FALSE)","v":false},""]
[null,null,null,null,null,{"$f":"IF(E307=4,TRUE,FALSE)","v":false},""]
[null,null,null,null,null,{"$f":"IF(E307=5,TRUE,FALSE)","v":false},""]
[null,null,null,null,null,{"$f":"IF(E307=6,TRUE,FALSE)","v":false},""]
[null,"최상의 복원력을 달성하기 위한 활동계획","담당부서","추진기간",null,null,""]
[null,null,null,null,null,null,""]
[null,null,null,null,null,null,""]
[null,"8.7.1.1 - 보건 및 비상 시설의 구조적 안전 및 재난 복원력 (인력 파견 / 최초 대응 - 필 수사항9 참조)",null,null,null,null,"8.7.1.1"]
[null,"주제 / 현안","비고",null,null,null,""]
[null,null,null,null,null,null,""]
[null,"대답","증빙수단(설명과 증빙자료)",null,null,null,""]
[null,null,null,null,null,{"$f":"IF(E320=1,TRUE,FALSE)","v":false},""]
[null,null,null,null,null,{"$f":"IF(E320=2,TRUE,FALSE)","v":false},""]
[null,null,null,null,null,{"$f":"IF(E320=3,TRUE,FALSE)","v":false},""]
[null,null,null,null,null,{"$f":"IF(E320=4,TRUE,FALSE)","v":false},""]
[null,null,null,null,null,{"$f":"IF(E320=5,TRUE,FALSE)","v":false},""]
[null,null,null,null,null,{"$f":"IF(E320=6,TRUE,FALSE)","v":false},""]
[null,"최상의 복원력을 달성하기 위한 활동계획","담당부서","추진기간",null,null,""]
[null,null,null,null,null,null,""]
[null,null,null,null,null,null,""]
[null,"8.7.2 - 보건 기록 및 자료",null,null,null,null,"8.7.2"]
[null,"주제 / 현안","비고",null,null,null,""]
[null,null,null,null,null,null,""]
[null,"대답","증빙수단(설명과 증빙자료)",null,null,null,""]
[null,null,null,null,null,{"$f":"IF(E333=1,TRUE,FALSE)","v":false},""]
[null,null,null,null,null,{"$f":"IF(E333=2,TRUE,FALSE)","v":false},""]
[null,null,null,null,null,{"$f":"IF(E333=3,TRUE,FALSE)","v":false},""]
[null,null,null,null,null,{"$f":"IF(E333=4,TRUE,FALSE)","v":false},""]
[null,null,null,null,null,{"$f":"IF(E333=5,TRUE,FALSE)","v":false},""]
[null,null,null,null,null,{"$f":"IF(E333=6,TRUE,FALSE)","v":false},""]
[null,"최상의 복원력을 달성하기 위한 활동계획","담당부서","추진기간",null,null,""]
[null,null,null,null,null,null,""]
[null,null,null,null,null,null,""]
[null,"8.7.3 - 응급실 수요를 위한 시설 및 긴급 의료용품을 포함한 응급 의료 이용가능성",null,null,null,null,"8.7.3"]
[null,"주제 / 현안","비고",null,null,null,""]
[null,null,null,null,null,null,""]
[null,"대답","증빙수단(설명과 증빙자료)",null,null,null,""]
[null,null,null,null,null,{"$f":"IF(E346=1,TRUE,FALSE)","v":false},""]
[null,null,null,null,null,{"$f":"IF(E346=2,TRUE,FALSE)","v":false},""]
[null,null,null,null,null,{"$f":"IF(E346=3,TRUE,FALSE)","v":false},""]
[null,null,null,null,null,{"$f":"IF(E346=4,TRUE,FALSE)","v":false},""]
[null,null,null,null,null,{"$f":"IF(E346=5,TRUE,FALSE)","v":false},""]
[null,null,null,null,null,{"$f":"IF(E346=6,TRUE,FALSE)","v":false},""]
[null,"최상의 복원력을 달성하기 위한 활동계획","담당부서","추진기간",null,null,""]
[null,null,null,null,null,null,""]
[null,null,null,null,null,null,""]
[null,"8.8 - 교육",null,null,null,null,"8.8"]
[null,null,null,null,null,null,""]
[null,"8.8.1 - 교육시설의 구조적 안전성",null,null,null,null,"8.8.1"]
[null,"주제 / 현안","비고",null,null,null,""]
[null,null,null,null,null,null,""]
[null,"대답","증빙수단(설명과 증빙자료)",null,null,null,""]
[null,null,null,null,null,{"$f":"IF(E361=1,TRUE,FALSE)","v":false},""]
[null,null,null,null,null,{"$f":"IF(E361=2,TRUE,FALSE)","v":false},""]
[null,null,null,null,null,{"$f":"IF(E361=3,TRUE,FALSE)","v":false},""]
[null,null,null,null,null,{"$f":"IF(E361=4,TRUE,FALSE)","v":false},""]
[null,null,null,null,null,{"$f":"IF(E361=5,TRUE,FALSE)","v":false},""]
[null,null,null,null,null,{"$f":"IF(E361=6,TRUE,FALSE)","v":false},""]
[null,"최상의 복원력을 달성하기 위한 활동계획","담당부서","추진기간",null,null,""]
[null,null,null,null,null,null,""]
[null,null,null,null,null,null,""]
[null,"8.8.2 - 수업 손실시간",null,null,null,null,"8.8.2"]
[null,"주제 / 현안","비고",null,null,null,""]
[null,null,null,null,null,null,""]
[null,"대답","증빙수단(설명과 증빙자료)",null,null,null,""]
[null,null,null,null,null,{"$f":"IF(E374=1,TRUE,FALSE)","v":false},""]
[null,null,null,null,null,{"$f":"IF(E374=2,TRUE,FALSE)","v":false},""]
[null,null,null,null,null,{"$f":"IF(E374=3,TRUE,FALSE)","v":false},""]
[null,null,null,null,null,{"$f":"IF(E374=4,TRUE,FALSE)","v":false},""]
[null,null,null,null,null,{"$f":"IF(E374=5,TRUE,FALSE)","v":false},""]
[null,null,null,null,null,{"$f":"IF(E374=6,TRUE,FALSE)","v":false},""]
[null,"최상의 복원력을 달성하기 위한 활동계획","담당부서","추진기간",null,null,""]
[null,null,null,null,null,null,""]
[null,null,null,null,null,null,""]
[null,"8.8.3 - 교육 자료",null,null,null,null,"8.8.3"]
[null,"주제 / 현안","비고",null,null,null,""]
[null,null,null,null,null,null,""]
[null,"대답","증빙수단(설명과 증빙자료)",null,null,null,""]
[null,null,null,null,null,{"$f":"IF(E387=1,TRUE,FALSE)","v":false},""]
[null,null,null,null,null,{"$f":"IF(E387=2,TRUE,FALSE)","v":false},""]
[null,null,null,null,null,{"$f":"IF(E387=3,TRUE,FALSE)","v":false},""]
[null,null,null,null,null,{"$f":"IF(E387=4,TRUE,FALSE)","v":false},""]
[null,null,null,null,null,{"$f":"IF(E387=5,TRUE,FALSE)","v":false},""]
[null,null,null,null,null,{"$f":"IF(E387=6,TRUE,FALSE)","v":false},""]
[null,"최상의 복원력을 달성하기 위한 활동계획","담당부서","추진기간",null,null,""]
[null,null,null,null,null,null,""]
[null,null,null,null,null,null,""]
[null,"8.9 - 교도소 (법률, 명령 및 최초 대응 등은 필수사항9에서 다룸)",null,null,null,null,"8.9"]
[null,null,null,null,null,null,""]
[null,"8.9.1 - 교도소 시스템의 재난 복원력",null,null,null,null,"8.9.1"]
[null,"주제 / 현안","비고",null,null,null,""]
[null,null,null,null,null,null,""]
[null,"대답","증빙수단(설명과 증빙자료)",null,null,null,""]
[null,null,null,null,null,{"$f":"IF(E402=1,TRUE,FALSE)","v":false},""]
[null,null,null,null,null,{"$f":"IF(E402=2,TRUE,FALSE)","v":false},""]
[null,null,null,null,null,{"$f":"IF(E402=3,TRUE,FALSE)","v":false},""]
[null,null,null,null,null,{"$f":"IF(E402=4,TRUE,FALSE)","v":false},""]
[null,null,null,null,null,{"$f":"IF(E402=5,TRUE,FALSE)","v":false},""]
[null,null,null,null,null,{"$f":"IF(E402=6,TRUE,FALSE)","v":false},""]
[null,"최상의 복원력을 달성하기 위한 활동계획","담당부서","추진기간",null,null,""]
[null,null,null,null,null,null,""]
[null,null,null,null,null,null,""]
[null,"8.10 - 행정 운영",null,null,null,null,"8.10"]
[null,null,null,null,null,null,""]
[null,"8.10.1 - 모든 중요한 행정 기능의 연속성에 대한 안정성",null,null,null,null,"8.10.1"]
[null,"주제 / 현안","비고",null,null,null,""]
[null,null,null,null,null,null,""]
[null,"대답","증빙수단(설명과 증빙자료)",null,null,null,""]
[null,null,null,null,null,{"$f":"IF(E417=1,TRUE,FALSE)","v":false},""]
[null,null,null,null,null,{"$f":"IF(E417=2,TRUE,FALSE)","v":false},""]
[null,null,null,null,null,{"$f":"IF(E417=3,TRUE,FALSE)","v":false},""]
[null,null,null,null,null,{"$f":"IF(E417=4,TRUE,FALSE)","v":false},""]
[null,null,null,null,null,{"$f":"IF(E417=5,TRUE,FALSE)","v":false},""]
[null,null,null,null,null,{"$f":"IF(E417=6,TRUE,FALSE)","v":false},""]
[null,"최상의 복원력을 달성하기 위한 활동계획","담당부서","추진기간",null,null,""]
[null,null,null,null,null,null,""]
[null,null,null,null,null,null,""]
[null,"8.11 - 컴퓨터 시스템 및 데이터",null,null,null,null,"8.11"]
[null,null,null,null,null,null,""]
[null,"8.11.1 - 정부기능의 연속성에 필수 적인 컴퓨터 시스템 및 데 이터에 대한 안정성",null,null,null,null,"8.11.1"]
[null,"주제 / 현안","비고",null,null,null,""]
[null,null,null,null,null,null,""]
[null,"대답","증빙수단(설명과 증빙자료)",null,null,null,""]
[null,null,null,null,null,{"$f":"IF(E432=1,TRUE,FALSE)","v":false},""]
[null,null,null,null,null,{"$f":"IF(E432=2,TRUE,FALSE)","v":false},""]
[null,null,null,null,null,{"$f":"IF(E432=3,TRUE,FALSE)","v":false},""]
[null,null,null,null,null,{"$f":"IF(E432=4,TRUE,FALSE)","v":false},""]
[null,null,null,null,null,{"$f":"IF(E432=5,TRUE,FALSE)","v":false},""]
[null,null,null,null,null,{"$f":"IF(E432=6,TRUE,FALSE)","v":false},""]
[null,"최상의 복원력을 달성하기 위한 활동계획","담당부서","추진기간",null,null,""]
[null,null,null,null,null,null,""]
[null,null,null,null,null,null,""]
[null,"8.11.2 - 위에 언급된 사회기반시설 에 중요한 컴퓨터 시스템 및 데이터의 연속성에 대 한 안정성",null,null,null,null,"8.11.2"]
[null,"주제 / 현안","비고",null,null,null,""]
[null,null,null,null,null,null,""]
[null,"대답","증빙수단(설명과 증빙자료)",null,null,null,""]
[null,null,null,null,null,{"$f":"IF(E445=1,TRUE,FALSE)","v":false},""]
[null,null,null,null,null,{"$f":"IF(E445=2,TRUE,FALSE)","v":false},""]
[null,null,null,null,null,{"$f":"IF(E445=3,TRUE,FALSE)","v":false},""]
[null,null,null,null,null,{"$f":"IF(E445=4,TRUE,FALSE)","v":false},""]
[null,null,null,null,null,{"$f":"IF(E445=5,TRUE,FALSE)","v":false},""]
[null,null,null,null,null,{"$f":"IF(E445=6,TRUE,FALSE)","v":false},""]
[null,"최상의 복원력을 달성하기 위한 활동계획","담당부서","추진기간",null,null,""]
[null,null,null,null,null,null,""]
[null,null,null,null,null,null,""]
[null,null,null,null,null,null,""]
[null,null,null,null,null,null,""]
[null,null,null,null,null,null,""]
[null,null,null,null,null,null,""]
[null,null,null,null,null,null,""]
[null,null,null,null,null,null,""]
[null,null,null,null,null,null,""]
[null,null,null,null,null,null,""]
[null,null,null,null,null,null,""]
[null,null,null,null,null,null,""]
[null,null,null,null,null,null,""]
[null,null,null,null,null,null,""]
[null,null,null,null,null,null,""]
[null,null,null,null,null,null,""]
[null,null,null,null,null,null,""]
[null,null,null,null,null,null,""]
[null,null,null,null,null,null,""]
[null,null,null,null,null,null,""]
[null,null,null,null,null,null,""]
[null,null,null,null,null,null,""]
[null,null,null,null,null,null,""]
[null,null,null,null,null,null,""]
[null,null,null,null,null,null,""]
[null,null,null,null,null,null,""]
[null,null,null,null,null,null,""]
[null,null,null,null,null,null,""]
[null,null,null,null,null,null,""]
[null,null,null,null,null,null,""]
[null,null,null,null,null,null,""]
[null,null,null,null,null,null,""]
[null,null,null,null,null,null,""]
[null,null,null,null,null,null,""]
[null,null,null,null,null,null,""]
[null,null,null,null,null,null,""]
[null,null,null,null,null,null,""]
[null,null,null,null,null,null,""]
[null,null,null,null,null,null,""]
[null,null,null,null,null,null,""]
[null,null,null,null,null,null,""]
[null,null,null,null,null,null,""]
[null,null,null,null,null,null,""]
[null,null,null,null,null,null,""]
[null,null,null,null,null,null,""]
[null,null,null,null,null,null,""]
[null,null,null,null,null,null,""]
[null,null,null,null,null,null,""]
[null,null,null,null,null,null,""]
[null,null,null,null,null,null,""]
[null,null,null,null,null,null,""]
[null,null,null,null,null,null,""]
[null,null,null,null,null,null,""]
[null,null,null,null,null,null,""]
[null,null,null,null,null,null,""]
[null,null,null,null,null,null,""]
[null,null,null,null,null,null,""]
[null,null,null,null,null,null,""]
[null,null,null,null,null,null,""]
[null,null,null,null,null,null,""]
[null,null,null,null,null,null,""]
[null,null,null,null,null,null,""]
[null,null,null,null,null,null,""]
[null,null,null,null,null,null,""]
[null,null,null,null,null,null,""]
[null,null,null,null,null,null,""]
[null,null,null,null,null,null,""]
[null,null,null,null,null,null,""]
[null,null,null,null,null,null,""]
[null,null,null,null,null,null,""]
[null,null,null,null,null,null,""]
[null,null,null,null,null,null,""]
[null,null,null,null,null,null,""]
[null,null,null,null,null,null,""]
[null,null,null,null,null,null,""]
[null,null,null,null,null,null,""]
[null,null,null,null,null,null,""]
[null,null,null,null,null,null,""]
[null,null,null,null,null,null,""]
[null,null,null,null,null,null,""]
[null,null,null,null,null,null,""]
[null,null,null,null,null,null,""]
[null,null,null,null,null,null,""]
[null,null,null,null,null,null,""]
[null,null,null,null,null,null,""]
[null,null,null,null,null,null,""]
[null,null,null,null,null,null,""]
[null,null,null,null,null,null,""]
[null,null,null,null,null,null,""]
[null,null,null,null,null,null,""]
[null,null,null,null,null,null,""]
[null,null,null,null,null,null,""]
[null,null,null,null,null,null,""]
[null,null,null,null,null,null,""]
[null,null,null,null,null,null,""]
[null,null,null,null,null,null,""]
[null,null,null,null,null,null,""]
[null,null,null,null,null,null,""]
[null,null,null,null,null,null,""]
[null,null,null,null,null,null,""]
[null,null,null,null,null,null,""]
[null,null,null,null,null,null,""]
[null,null,null,null,null,null,""]
[null,null,null,null,null,null,""]
[null,null,null,null,null,null,""]
[null,null,null,null,null,null,""]
[null,null,null,null,null,null,""]
[null,null,null,null,null,null,""]
[null,null,null,null,null,null,""]
[null,null,null,null,null,null,""]
[null,null,null,null,null,null,""]
[null,null,null,null,null,null,""]
[null,null,null,null,null,null,""]
[null,null,null,null,null,null,""]
[null,null,null,null,null,null,""]
[null,null,null,null,null,null,""]
[null,null,null,null,null,null,""]
[null,null,null,null,null,null,""]
[null,null,null,null,null,null,""]
[null,null,null,null,null,null,""]
[null,null,null,null,null,null,""]
[null,null,null,null,null,null,""]
[null,null,null,null,null,null,""]
[null,null,null,null,null,null,""]
[null,null,null,null,null,null,""]
[null,null,null,null,null,null,""]
[null,null,null,null,null,null,""]
[null,null,null,null,null,null,""]
[null,null,null,null,null,null,""]
[null,null,null,null,null,null,""]
[null,null,null,null,null,null,""]
[null,null,null,null,null,null,""]
[null,null,null,null,null,null,""]
[null,null,null,null,null,null,""]
[null,null,null,null,null,null,""]
[null,null,null,null,null,null,""]
[null,null,null,null,null,null,""]
[null,null,null,null,null,null,""]
[null,null,null,null,null,null,""]
[null,null,null,null,null,null,""]
[null,null,null,null,null,null,""]
[null,null,null,null,null,null,""]
[null,null,null,null,null,null,""]
[null,null,null,null,null,null,""]
[null,null,null,null,null,null,""]
[null,null,null,null,null,null,""]
[null,null,null,null,null,null,""]
[null,null,null,null,null,null,""]
[null,null,null,null,null,null,""]
[null,null,null,null,null,null,""]
[null,null,null,null,null,null,""]
[null,null,null,null,null,null,""]
[null,null,null,null,null,null,""]
[null,null,null,null,null,null,""]
[null,null,null,null,null,null,""]
[null,null,null,null,null,null,""]
[null,null,null,null,null,null,""]
[null,null,null,null,null,null,""]
[null,null,null,null,null,null,""]
[null,null,null,null,null,null,""]
[null,null,null,null,null,null,""]
[null,null,null,null,null,null,""]
[null,null,null,null,null,null,""]
[null,null,null,null,null,null,""]
[null,null,null,null,null,null,""]
[null,null,null,null,null,null,""]
[null,null,null,null,null,null,""]
[null,null,null,null,null,null,""]
[null,null,null,null,null,null,""]
[null,null,null,null,null,null,""]
[null,null,null,null,null,null,""]
[null,null,null,null,null,null,""]
[null,null,null,null,null,null,""]
[null,null,null,null,null,null,""]
[null,null,null,null,null,null,""]
[null,null,null,null,null,null,""]
[null,null,null,null,null,null,""]
[null,null,null,null,null,null,""]
[null,null,null,null,null,null,""]
[null,null,null,null,null,null,""]
[null,null,null,null,null,null,""]
[null,null,null,null,null,null,""]
[null,null,null,null,null,null,""]
[null,null,null,null,null,null,""]
[null,null,null,null,null,null,""]
[null,null,null,null,null,null,""]
[null,null,null,null,null,null,""]
[null,null,null,null,null,null,""]
[null,null,null,null,null,null,""]
[null,null,null,null,null,null,""]
[null,null,null,null,null,null,""]
[null,null,null,null,null,null,""]
[null,null,null,null,null,null,""]
[null,null,null,null,null,null,""]
[null,null,null,null,null,null,""]
[null,null,null,null,null,null,""]
[null,null,null,null,null,null,""]
[null,null,null,null,null,null,""]
[null,null,null,null,null,null,""]
[null,null,null,null,null,null,""]
[null,null,null,null,null,null,""]
[null,null,null,null,null,null,""]
[null,null,null,null,null,null,""]
[null,null,null,null,null,null,""]
[null,null,null,null,null,null,""]
[null,null,null,null,null,null,""]
[null,null,null,null,null,null,""]
[null,null,null,null,null,null,""]
[null,null,null,null,null,null,""]
[null,null,null,null,null,null,""]
[null,null,null,null,null,null,""]
[null,null,null,null,null,null,""]
[null,null,null,null,null,null,""]

{"sheet":"E09","index":11,"n_rows":237,"n_cols":7,"rows_kept":237,"cut":false,"hidden":false,"merged":[[228,2,233,3],[227,2,227,3],[226,2,226,3],[225,2,225,3],[224,1,224,3],[211,1,211,3],[212,2,212,3],[213,2,213,3],[214,2,214,3],[215,2,220,3],[200,2,205,3],[199,2,199,3],[198,2,198,3],[197,2,197,3],[196,1,196,3],[187,2,192,3],[186,2,186,3],[185,2,185,3],[184,2,184,3],[183,1,183,3],[170,1,170,3],[171,2,171,3],[172,2,172,3],[173,2,173,3],[174,2,179,3],[159,2,164,3],[158,2,158,3],[157,2,157,3],[156,2,156,3],[155,1,155,3],[142,1,142,3],[143,2,143,3],[144,2,144,3],[145,2,145,3],[146,2,151,3],[133,2,138,3],[132,2,132,3],[131,2,131,3],[130,2,130,3],[129,1,129,3],[120,2,125,3],[119,2,119,3],[118,2,118,3],[117,2,117,3],[116,1,116,3],[103,1,103,3],[104,2,104,3],[105,2,105,3],[106,2,106,3],[107,2,112,3],[76,2,76,3],[77,2,77,3],[78,2,78,3],[79,2,84,3],[92,2,97,3],[91,2,91,3],[90,2,90,3],[89,2,89,3],[88,1,88,3],[75,1,75,3],[33,2,33,3],[34,2,34,3],[51,2,56,3],[36,2,41,3],[35,2,35,3],[64,2,69,3],[63,2,63,3],[62,2,62,3],[61,2,61,3],[60,1,60,3],[32,1,32,3],[47,1,47,3],[48,2,48,3],[49,2,49,3],[50,2,50,3],[17,1,17,3],[18,2,18,3],[19,2,19,3],[20,2,20,3],[21,2,26,3],[4,1,4,3],[5,2,5,3],[6,2,6,3],[7,2,7,3],[8,2,13,3]]}
[]
[null,null,null,null,null,null,""]
[null,"9.1 - 조기경보",null,null,null,null,"9.1"]
[null,null,null,null,null,null,""]
[null,"9.1.1 - 조기 경보 시스템의 존재와 효과",null,null,null,null,"9.1.1"]
[null,"주제 / 현안","비고",null,null,null,""]
[null,null,null,null,null,null,""]
[null,"대답","증빙수단(설명과 증빙자료)",null,null,null,""]
[null,null,null,null,null,{"$f":"IF(E9=1,TRUE,FALSE)","v":false},""]
[null,null,null,null,null,{"$f":"IF(E9=2,TRUE,FALSE)","v":false},""]
[null,null,null,null,null,{"$f":"IF(E9=3,TRUE,FALSE)","v":false},""]
[null,null,null,null,null,{"$f":"IF(E9=4,TRUE,FALSE)","v":false},""]
[null,null,null,null,null,{"$f":"IF(E9=5,TRUE,FALSE)","v":false},""]
[null,null,null,null,null,{"$f":"IF(E9=6,TRUE,FALSE)","v":false},""]
[null,"최상의 복원력을 달성하기 위한 활동계획","담당부서","추진기간",null,null,""]
[null,null,null,null,null,null,""]
[null,null,null,null,null,null,""]
[null,"9.1.1.1 - 경보 도달 범위",null,null,null,null,"9.1.1.1"]
[null,"주제 / 현안","비고",null,null,null,""]
[null,null,null,null,null,null,""]
[null,"대답","증빙수단(설명과 증빙자료)",null,null,null,""]
[null,null,null,null,null,{"$f":"IF(E22=1,TRUE,FALSE)","v":false},""]
[null,null,null,null,null,{"$f":"IF(E22=2,TRUE,FALSE)","v":false},""]
[null,null,null,null,null,{"$f":"IF(E22=3,TRUE,FALSE)","v":false},""]
[null,null,null,null,null,{"$f":"IF(E22=4,TRUE,FALSE)","v":false},""]
[null,null,null,null,null,{"$f":"IF(E22=5,TRUE,FALSE)","v":false},""]
[null,null,null,null,null,{"$f":"IF(E22=6,TRUE,FALSE)","v":false},""]
[null,"최상의 복원력을 달성하기 위한 활동계획","담당부서","추진기간",null,null,""]
[null,null,null,null,null,null,""]
[null,null,null,null,null,null,""]
[null,"9.2 - 재난 대응 계획",null,null,null,null,"9.2"]
[null,null,null,null,null,null,""]
[null,"9.2.1 - 전문가 및 지역사회 단체 를 통합시키는 비상 대응 계획의 존재(사후 대응 – 필수사항10 참조)",null,null,null,null,"9.2.1"]
[null,"주제 / 현안","비고",null,null,null,""]
[null,null,null,null,null,null,""]
[null,"대답","증빙수단(설명과 증빙자료)",null,null,null,""]
[null,null,null,null,null,{"$f":"IF(E37=1,TRUE,FALSE)","v":false},""]
[null,null,null,null,null,{"$f":"IF(E37=2,TRUE,FALSE)","v":false},""]
[null,null,null,null,null,{"$f":"IF(E37=3,TRUE,FALSE)","v":false},""]
[null,null,null,null,null,{"$f":"IF(E37=4,TRUE,FALSE)","v":false},""]
[null,null,null,null,null,{"$f":"IF(E37=5,TRUE,FALSE)","v":false},""]
[null,null,null,null,null,{"$f":"IF(E37=6,TRUE,FALSE)","v":false},""]
[null,"최상의 복원력을 달성하기 위한 활동계획","담당부서","추진기간",null,null,""]
[null,null,null,null,null,null,""]
[null,null,null,null,null,null,""]
[null,"9.3 - 인력 파견 / 대응 인력",null,null,null,null,"9.3"]
[null,null,null,null,null,null,""]
[null,"9.3.1 -  경찰의 최초 대응 의무 지원을 위한 “급증” 용량",null,null,null,null,"9.3.1"]
[null,"주제 / 현안","비고",null,null,null,""]
[null,null,null,null,null,null,""]
[null,"대답","증빙수단(설명과 증빙자료)",null,null,null,""]
[null,null,null,null,null,{"$f":"IF(E52=1,TRUE,FALSE)","v":false},""]
[null,null,null,null,null,{"$f":"IF(E52=2,TRUE,FALSE)","v":false},""]
[null,null,null,null,null,{"$f":"IF(E52=3,TRUE,FALSE)","v":false},""]
[null,null,null,null,null,{"$f":"IF(E52=4,TRUE,FALSE)","v":false},""]
[null,null,null,null,null,{"$f":"IF(E52=5,TRUE,FALSE)","v":false},""]
[null,null,null,null,null,{"$f":"IF(E52=6,TRUE,FALSE)","v":false},""]
[null,"최상의 복원력을 달성하기 위한 활동계획","담당부서","추진기간",null,null,""]
[null,null,null,null,null,null,""]
[null,null,null,null,null,null,""]
[null,"9.3.2 - 최초 대응, 기타 인력 수요 및 가용성에 대한 정의",null,null,null,null,"9.3.2"]
[null,"주제 / 현안","비고",null,null,null,""]
[null,null,null,null,null,null,""]
[null,"대답","증빙수단(설명과 증빙자료)",null,null,null,""]
[null,null,null,null,null,{"$f":"IF(E65=1,TRUE,FALSE)","v":false},""]
[null,null,null,null,null,{"$f":"IF(E65=2,TRUE,FALSE)","v":false},""]
[null,null,null,null,null,{"$f":"IF(E65=3,TRUE,FALSE)","v":false},""]
[null,null,null,null,null,{"$f":"IF(E65=4,TRUE,FALSE)","v":false},""]
[null,null,null,null,null,{"$f":"IF(E65=5,TRUE,FALSE)","v":false},""]
[null,null,null,null,null,{"$f":"IF(E65=6,TRUE,FALSE)","v":false},""]
[null,"최상의 복원력을 달성하기 위한 활동계획","담당부서","추진기간",null,null,""]
[null,null,null,null,null,null,""]
[null,null,null,null,null,null,""]
[null,"9.4 - 장비 및 구호품 공급 수요",null,null,null,null,"9.4"]
[null,null,null,null,null,null,""]
[null,"9.4.1 - 장비, 구호품 수요 파악 및 가용성에 대한 정의",null,null,null,null,"9.4.1"]
[null,"주제 / 현안","비고",null,null,null,""]
[null,null,null,null,null,null,""]
[null,"대답","증빙수단(설명과 증빙자료)",null,null,null,""]
[null,null,null,null,null,{"$f":"IF(E80=1,TRUE,FALSE)","v":false},""]
[null,null,null,null,null,{"$f":"IF(E80=2,TRUE,FALSE)","v":false},""]
[null,null,null,null,null,{"$f":"IF(E80=3,TRUE,FALSE)","v":false},""]
[null,null,null,null,null,{"$f":"IF(E80=4,TRUE,FALSE)","v":false},""]
[null,null,null,null,null,{"$f":"IF(E80=5,TRUE,FALSE)","v":false},""]
[null,null,null,null,null,{"$f":"IF(E80=6,TRUE,FALSE)","v":false},""]
[null,"최상의 복원력을 달성하기 위한 활동계획","담당부서","추진기간",null,null,""]
[null,null,null,null,null,null,""]
[null,null,null,null,null,null,""]
[null,"9.4.1.1 - 필요한 수요 대비 사용 가 능한 장비의 부족",null,null,null,null,"9.4.1.1"]
[null,"주제 / 현안","비고",null,null,null,""]
[null,null,null,null,null,null,""]
[null,"대답","증빙수단(설명과 증빙자료)",null,null,null,""]
[null,null,null,null,null,{"$f":"IF(E93=1,TRUE,FALSE)","v":false},""]
[null,null,null,null,null,{"$f":"IF(E93=2,TRUE,FALSE)","v":false},""]
[null,null,null,null,null,{"$f":"IF(E93=3,TRUE,FALSE)","v":false},""]
[null,null,null,null,null,{"$f":"IF(E93=4,TRUE,FALSE)","v":false},""]
[null,null,null,null,null,{"$f":"IF(E93=5,TRUE,FALSE)","v":false},""]
[null,null,null,null,null,{"$f":"IF(E93=6,TRUE,FALSE)","v":false},""]
[null,"최상의 복원력을 달성하기 위한 활동계획","담당부서","추진기간",null,null,""]
[null,null,null,null,null,null,""]
[null,null,null,null,null,null,""]
[null,"9.5 - 음식, 쉼터, 주식 및 연료 공급",null,null,null,null,"9.5"]
[null,null,null,null,null,null,""]
[null,"9.5.1 - 식량 공급 능력",null,null,null,null,"9.5.1"]
[null,"주제 / 현안","비고",null,null,null,""]
[null,null,null,null,null,null,""]
[null,"대답","증빙수단(설명과 증빙자료)",null,null,null,""]
[null,null,null,null,null,{"$f":"IF(E108=1,TRUE,FALSE)","v":false},""]
[null,null,null,null,null,{"$f":"IF(E108=2,TRUE,FALSE)","v":false},""]
[null,null,null,null,null,{"$f":"IF(E108=3,TRUE,FALSE)","v":false},""]
[null,null,null,null,null,{"$f":"IF(E108=4,TRUE,FALSE)","v":false},""]
[null,null,null,null,null,{"$f":"IF(E108=5,TRUE,FALSE)","v":false},""]
[null,null,null,null,null,{"$f":"IF(E108=6,TRUE,FALSE)","v":false},""]
[null,"최상의 복원력을 달성하기 위한 활동계획","담당부서","추진기간",null,null,""]
[null,null,null,null,null,null,""]
[null,null,null,null,null,null,""]
[null,"9.5.2 - 피난처/안전한 장소에 대 한 공급 능력",null,null,null,null,"9.5.2"]
[null,"주제 / 현안","비고",null,null,null,""]
[null,null,null,null,null,null,""]
[null,"대답","증빙수단(설명과 증빙자료)",null,null,null,""]
[null,null,null,null,null,{"$f":"IF(E121=1,TRUE,FALSE)","v":false},""]
[null,null,null,null,null,{"$f":"IF(E121=2,TRUE,FALSE)","v":false},""]
[null,null,null,null,null,{"$f":"IF(E121=3,TRUE,FALSE)","v":false},""]
[null,null,null,null,null,{"$f":"IF(E121=4,TRUE,FALSE)","v":false},""]
[null,null,null,null,null,{"$f":"IF(E121=5,TRUE,FALSE)","v":false},""]
[null,null,null,null,null,{"$f":"IF(E121=6,TRUE,FALSE)","v":false},""]
[null,"최상의 복원력을 달성하기 위한 활동계획","담당부서","추진기간",null,null,""]
[null,null,null,null,null,null,""]
[null,null,null,null,null,null,""]
[null,"9.5.2.1 - 피난처/안전한 장소에 대 한 공급 능력",null,null,null,null,"9.5.2.1"]
[null,"주제 / 현안","비고",null,null,null,""]
[null,null,null,null,null,null,""]
[null,"대답","증빙수단(설명과 증빙자료)",null,null,null,""]
[null,null,null,null,null,{"$f":"IF(E134=1,TRUE,FALSE)","v":false},""]
[null,null,null,null,null,{"$f":"IF(E134=2,TRUE,FALSE)","v":false},""]
[null,null,null,null,null,{"$f":"IF(E134=3,TRUE,FALSE)","v":false},""]
[null,null,null,null,null,{"$f":"IF(E134=4,TRUE,FALSE)","v":false},""]
[null,null,null,null,null,{"$f":"IF(E134=5,TRUE,FALSE)","v":false},""]
[null,null,null,null,null,{"$f":"IF(E134=6,TRUE,FALSE)","v":false},""]
[null,"최상의 복원력을 달성하기 위한 활동계획","담당부서","추진기간",null,null,""]
[null,null,null,null,null,null,""]
[null,null,null,null,null,null,""]
[null,"9.5.3 - 필수품 수요에 대한 공급 능력",null,null,null,null,"9.5.3"]
[null,"주제 / 현안","비고",null,null,null,""]
[null,null,null,null,null,null,""]
[null,"대답","증빙수단(설명과 증빙자료)",null,null,null,""]
[null,null,null,null,null,{"$f":"IF(E147=1,TRUE,FALSE)","v":false},""]
[null,null,null,null,null,{"$f":"IF(E147=2,TRUE,FALSE)","v":false},""]
[null,null,null,null,null,{"$f":"IF(E147=3,TRUE,FALSE)","v":false},""]
[null,null,null,null,null,{"$f":"IF(E147=4,TRUE,FALSE)","v":false},""]
[null,null,null,null,null,{"$f":"IF(E147=5,TRUE,FALSE)","v":false},""]
[null,null,null,null,null,{"$f":"IF(E147=6,TRUE,FALSE)","v":false},""]
[null,"최상의 복원력을 달성하기 위한 활동계획","담당부서","추진기간",null,null,""]
[null,null,null,null,null,null,""]
[null,null,null,null,null,null,""]
[null,"9.5.4 - 연료 공급 능력",null,null,null,null,"9.5.4"]
[null,"주제 / 현안","비고",null,null,null,""]
[null,null,null,null,null,null,""]
[null,"대답","증빙수단(설명과 증빙자료)",null,null,null,""]
[null,null,null,null,null,{"$f":"IF(E160=1,TRUE,FALSE)","v":false},""]
[null,null,null,null,null,{"$f":"IF(E160=2,TRUE,FALSE)","v":false},""]
[null,null,null,null,null,{"$f":"IF(E160=3,TRUE,FALSE)","v":false},""]
[null,null,null,null,null,{"$f":"IF(E160=4,TRUE,FALSE)","v":false},""]
[null,null,null,null,null,{"$f":"IF(E160=5,TRUE,FALSE)","v":false},""]
[null,null,null,null,null,{"$f":"IF(E160=6,TRUE,FALSE)","v":false},""]
[null,"최상의 복원력을 달성하기 위한 활동계획","담당부서","추진기간",null,null,""]
[null,null,null,null,null,null,""]
[null,null,null,null,null,null,""]
[null,"9.6 - 상호 운용성 및 기구 간 작업",null,null,null,null,"9.6"]
[null,null,null,null,null,null,""]
[null,"9.6.1 - 인근 도시/시도/정부기관과 주요 시스템/절차에 대한 상호 운용성",null,null,null,null,"9.6.1"]
[null,"주제 / 현안","비고",null,null,null,""]
[null,null,null,null,null,null,""]
[null,"대답","증빙수단(설명과 증빙자료)",null,null,null,""]
[null,null,null,null,null,{"$f":"IF(E175=1,TRUE,FALSE)","v":false},""]
[null,null,null,null,null,{"$f":"IF(E175=2,TRUE,FALSE)","v":false},""]
[null,null,null,null,null,{"$f":"IF(E175=3,TRUE,FALSE)","v":false},""]
[null,null,null,null,null,{"$f":"IF(E175=4,TRUE,FALSE)","v":false},""]
[null,null,null,null,null,{"$f":"IF(E175=5,TRUE,FALSE)","v":false},""]
[null,null,null,null,null,{"$f":"IF(E175=6,TRUE,FALSE)","v":false},""]
[null,"최상의 복원력을 달성하기 위한 활동계획","담당부서","추진기간",null,null,""]
[null,null,null,null,null,null,""]
[null,null,null,null,null,null,""]
[null,"9.6.2 - 긴급 운영 센터",null,null,null,null,"9.6.2"]
[null,"주제 / 현안","비고",null,null,null,""]
[null,null,null,null,null,null,""]
[null,"대답","증빙수단(설명과 증빙자료)",null,null,null,""]
[null,null,null,null,null,{"$f":"IF(E188=1,TRUE,FALSE)","v":false},""]
[null,null,null,null,null,{"$f":"IF(E188=2,TRUE,FALSE)","v":false},""]
[null,null,null,null,null,{"$f":"IF(E188=3,TRUE,FALSE)","v":false},""]
[null,null,null,null,null,{"$f":"IF(E188=4,TRUE,FALSE)","v":false},""]
[null,null,null,null,null,{"$f":"IF(E188=5,TRUE,FALSE)","v":false},""]
[null,null,null,null,null,{"$f":"IF(E188=6,TRUE,FALSE)","v":false},""]
[null,"최상의 복원력을 달성하기 위한 활동계획","담당부서","추진기간",null,null,""]
[null,null,null,null,null,null,""]
[null,null,null,null,null,null,""]
[null,"9.6.3 - 재난 이후 복구의 조정",null,null,null,null,"9.6.3"]
[null,"주제 / 현안","비고",null,null,null,""]
[null,null,null,null,null,null,""]
[null,"대답","증빙수단(설명과 증빙자료)",null,null,null,""]
[null,null,null,null,null,{"$f":"IF(E201=1,TRUE,FALSE)","v":false},""]
[null,null,null,null,null,{"$f":"IF(E201=2,TRUE,FALSE)","v":false},""]
[null,null,null,null,null,{"$f":"IF(E201=3,TRUE,FALSE)","v":false},""]
[null,null,null,null,null,{"$f":"IF(E201=4,TRUE,FALSE)","v":false},""]
[null,null,null,null,null,{"$f":"IF(E201=5,TRUE,FALSE)","v":false},""]
[null,null,null,null,null,{"$f":"IF(E201=6,TRUE,FALSE)","v":false},""]
[null,"최상의 복원력을 달성하기 위한 활동계획","담당부서","추진기간",null,null,""]
[null,null,null,null,null,null,""]
[null,null,null,null,null,null,""]
[null,"9.7 - 반복 연습",null,null,null,null,"9.7"]
[null,null,null,null,null,null,""]
[null,"9.7.1 - 연습 및 리허설 – 일반인 및 전문가 모두 참여",null,null,null,null,"9.7.1"]
[null,"주제 / 현안","비고",null,null,null,""]
[null,null,null,null,null,null,""]
[null,"대답","증빙수단(설명과 증빙자료)",null,null,null,""]
[null,null,null,null,null,{"$f":"IF(E216=1,TRUE,FALSE)","v":false},""]
[null,null,null,null,null,{"$f":"IF(E216=2,TRUE,FALSE)","v":false},""]
[null,null,null,null,null,{"$f":"IF(E216=3,TRUE,FALSE)","v":false},""]
[null,null,null,null,null,{"$f":"IF(E216=4,TRUE,FALSE)","v":false},""]
[null,null,null,null,null,{"$f":"IF(E216=5,TRUE,FALSE)","v":false},""]
[null,null,null,null,null,{"$f":"IF(E216=6,TRUE,FALSE)","v":false},""]
[null,"최상의 복원력을 달성하기 위한 활동계획","담당부서","추진기간",null,null,""]
[null,null,null,null,null,null,""]
[null,null,null,null,null,null,""]
[null,"9.7.2 - 반복 연습 및 훈련의 효과",null,null,null,null,"9.7.2"]
[null,"주제 / 현안","비고",null,null,null,""]
[null,null,null,null,null,null,""]
[null,"대답","증빙수단(설명과 증빙자료)",null,null,null,""]
[null,null,null,null,null,{"$f":"IF(E229=1,TRUE,FALSE)","v":false},""]
[null,null,null,null,null,{"$f":"IF(E229=2,TRUE,FALSE)","v":false},""]
[null,null,null,null,null,{"$f":"IF(E229=3,TRUE,FALSE)","v":false},""]
[null,null,null,null,null,{"$f":"IF(E229=4,TRUE,FALSE)","v":false},""]
[null,null,null,null,null,{"$f":"IF(E229=5,TRUE,FALSE)","v":false},""]
[null,null,null,null,null,{"$f":"IF(E229=6,TRUE,FALSE)","v":false},""]
[null,"최상의 복원력을 달성하기 위한 활동계획","담당부서","추진기간",null,null,""]
[null,null,null,null,null,null,""]
[null,null,null,null,null,null,""]

{"sheet":"E10","index":12,"n_rows":664,"n_cols":7,"rows_kept":664,"cut":false,"hidden":false,"merged":[[45,1,45,3],[46,2,46,3],[47,2,47,3],[48,2,48,3],[49,2,54,3],[30,1,30,3],[31,2,31,3],[32,2,32,3],[33,2,33,3],[34,2,39,3],[21,2,26,3],[20,2,20,3],[19,2,19,3],[18,2,18,3],[17,1,17,3],[5,2,5,3],[4,1,4,3],[6,2,6,3],[7,2,7,3],[8,2,13,3]]}
[]
[null,null,null,null,null,null,""]
[null,"10.1 - 재난 이후 복구 계획 – 재난 이전",null,null,null,null,"10.1"]
[null,null,null,null,null,null,""]
[null,"10.1.1 - 재난 이후 복구 및 경제 재가동 계획",null,null,null,null,"10.1.1"]
[null,"주제 / 현안","비고",null,null,null,""]
[null,null,null,null,null,null,""]
[null,"대답","증빙수단(설명과 증빙자료)",null,null,null,""]
[null,null,null,null,0,{"$f":"IF(E9=1,TRUE,FALSE)","v":false},""]
[null,null,null,null,null,{"$f":"IF(E9=2,TRUE,FALSE)","v":false},""]
[null,null,null,null,null,{"$f":"IF(E9=3,TRUE,FALSE)","v":false},""]
[null,null,null,null,null,{"$f":"IF(E9=4,TRUE,FALSE)","v":false},""]
[null,null,null,null,null,{"$f":"IF(E9=5,TRUE,FALSE)","v":false},""]
[null,null,null,null,null,{"$f":"IF(E9=6,TRUE,FALSE)","v":false},""]
[null,"최상의 복원력을 달성하기 위한 활동계획","담당부서","추진기간",null,null,""]
[null,null,null,null,null,null,""]
[null,null,null,null,null,null,""]
[null,"10.1.2 - ‘사고 복구 및 재가동’ 계획에 대한 이해관계자의 협의 범위",null,null,null,null,"10.1.2"]
[null,"주제 / 현안","비고",null,null,null,""]
[null,null,null,null,null,null,""]
[null,"대답","증빙수단(설명과 증빙자료)",null,null,null,""]
[null,null,null,null,null,{"$f":"IF(E22=1,TRUE,FALSE)","v":false},""]
[null,null,null,null,null,{"$f":"IF(E22=2,TRUE,FALSE)","v":false},""]
[null,null,null,null,null,{"$f":"IF(E22=3,TRUE,FALSE)","v":false},""]
[null,null,null,null,null,{"$f":"IF(E22=4,TRUE,FALSE)","v":false},""]
[null,null,null,null,null,{"$f":"IF(E22=5,TRUE,FALSE)","v":false},""]
[null,null,null,null,null,{"$f":"IF(E22=6,TRUE,FALSE)","v":false},""]
[null,"최상의 복원력을 달성하기 위한 활동계획","담당부서","추진기간",null,null,""]
[null,null,null,null,null,null,""]
[null,null,null,null,null,null,""]
[null,"10.1.3 - 유입되는 원조 및 자금지출 처리를 위한 재정 협약",null,null,null,null,"10.1.3"]
[null,"주제 / 현안","비고",null,null,null,""]
[null,null,null,null,null,null,""]
[null,"대답","증빙수단(설명과 증빙자료)",null,null,null,""]
[null,null,null,null,null,{"$f":"IF(E35=1,TRUE,FALSE)","v":false},""]
[null,null,null,null,null,{"$f":"IF(E35=2,TRUE,FALSE)","v":false},""]
[null,null,null,null,null,{"$f":"IF(E35=3,TRUE,FALSE)","v":false},""]
[null,null,null,null,null,{"$f":"IF(E35=4,TRUE,FALSE)","v":false},""]
[null,null,null,null,null,{"$f":"IF(E35=5,TRUE,FALSE)","v":false},""]
[null,null,null,null,null,{"$f":"IF(E35=6,TRUE,FALSE)","v":false},""]
[null,"최상의 복원력을 달성하기 위한 활동계획","담당부서","추진기간",null,null,""]
[null,null,null,null,null,null,""]
[null,null,null,null,null,null,""]
[null,"10.2 - Lessons learnt / learning loops",null,null,null,null,"10.2"]
[null,null,null,null,null,null,""]
[null,"10.2.1 - 교육된 학습 / 순환 학습",null,null,null,null,"10.2.1"]
[null,"주제 / 현안","비고",null,null,null,""]
[null,null,null,null,null,null,""]
[null,"대답","증빙수단(설명과 증빙자료)",null,null,null,""]
[null,null,null,null,null,{"$f":"IF(E50=1,TRUE,FALSE)","v":false},""]
[null,null,null,null,null,{"$f":"IF(E50=2,TRUE,FALSE)","v":false},""]
[null,null,null,null,null,{"$f":"IF(E50=3,TRUE,FALSE)","v":false},""]
[null,null,null,null,null,{"$f":"IF(E50=4,TRUE,FALSE)","v":false},""]
[null,null,null,null,null,{"$f":"IF(E50=5,TRUE,FALSE)","v":false},""]
[null,null,null,null,null,{"$f":"IF(E50=6,TRUE,FALSE)","v":false},""]
[null,"최상의 복원력을 달성하기 위한 활동계획","담당부서","추진기간",null,null,""]
[null,null,null,null,null,null,""]
[null,null,null,null,null,null,""]
[null,null,null,null,null,null,""]
[null,null,null,null,null,null,""]
[null,null,null,null,null,null,""]
[null,null,null,null,null,null,""]
[null,null,null,null,null,null,""]
[null,null,null,null,null,null,""]
[null,null,null,null,null,null,""]
[null,null,null,null,null,null,""]
[null,null,null,null,null,null,""]
[null,null,null,null,null,null,""]
[null,null,null,null,null,null,""]
[null,null,null,null,null,null,""]
[null,null,null,null,null,null,""]
[null,null,null,null,null,null,""]
[null,null,null,null,null,null,""]
[null,null,null,null,null,null,""]
[null,null,null,null,null,null,""]
[null,null,null,null,null,null,""]
[null,null,null,null,null,null,""]
[null,null,null,null,null,null,""]
[null,null,null,null,null,null,""]
[null,null,null,null,null,null,""]
[null,null,null,null,null,null,""]
[null,null,null,null,null,null,""]
[null,null,null,null,null,null,""]
[null,null,null,null,null,null,""]
[null,null,null,null,null,null,""]
[null,null,null,null,null,null,""]
[null,null,null,null,null,null,""]
[null,null,null,null,null,null,""]
[null,null,null,null,null,null,""]
[null,null,null,null,null,null,""]
[null,null,null,null,null,null,""]
[null,null,null,null,null,null,""]
[null,null,null,null,null,null,""]
[null,null,null,null,null,null,""]
[null,null,null,null,null,null,""]
[null,null,null,null,null,null,""]
[null,null,null,null,null,null,""]
[null,null,null,null,null,null,""]
[null,null,null,null,null,null,""]
[null,null,null,null,null,null,""]
[null,null,null,null,null,null,""]
[null,null,null,null,null,null,""]
[null,null,null,null,null,null,""]
[null,null,null,null,null,null,""]
[null,null,null,null,null,null,""]
[null,null,null,null,null,null,""]
[null,null,null,null,null,null,""]
[null,null,null,null,null,null,""]
[null,null,null,null,null,null,""]
[null,null,null,null,null,null,""]
[null,null,null,null,null,null,""]
[null,null,null,null,null,null,""]
[null,null,null,null,null,null,""]
[null,null,null,null,null,null,""]
[null,null,null,null,null,null,""]
[null,null,null,null,null,null,""]
[null,null,null,null,null,null,""]
[null,null,null,null,null,null,""]
[null,null,null,null,null,null,""]
[null,null,null,null,null,null,""]
[null,null,null,null,null,null,""]
[null,null,null,null,null,null,""]
[null,null,null,null,null,null,""]
[null,null,null,null,null,null,""]
[null,null,null,null,null,null,""]
[null,null,null,null,null,null,""]
[null,null,null,null,null,null,""]
[null,null,null,null,null,null,""]
[null,null,null,null,null,null,""]
[null,null,null,null,null,null,""]
[null,null,null,null,null,null,""]
[null,null,null,null,null,null,""]
[null,null,null,null,null,null,""]
[null,null,null,null,null,null,""]
[null,null,null,null,null,null,""]
[null,null,null,null,null,null,""]
[null,null,null,null,null,null,""]
[null,null,null,null,null,null,""]
[null,null,null,null,null,null,""]
[null,null,null,null,null,null,""]
[null,null,null,null,null,null,""]
[null,null,null,null,null,null,""]
[null,null,null,null,null,null,""]
[null,null,null,null,null,null,""]
[null,null,null,null,null,null,""]
[null,null,null,null,null,null,""]
[null,null,null,null,null,null,""]
[null,null,null,null,null,null,""]
[null,null,null,null,null,null,""]
[null,null,null,null,null,null,""]
[null,null,null,null,null,null,""]
[null,null,null,null,null,null,""]
[null,null,null,null,null,null,""]
[null,null,null,null,null,null,""]
[null,null,null,null,null,null,""]
[null,null,null,null,null,null,""]
[null,null,null,null,null,null,""]
[null,null,null,null,null,null,""]
[null,null,null,null,null,null,""]
[null,null,null,null,null,null,""]
[null,null,null,null,null,null,""]
[null,null,null,null,null,null,""]
[null,null,null,null,null,null,""]
[null,null,null,null,null,null,""]
[null,null,null,null,null,null,""]
[null,null,null,null,null,null,""]
[null,null,null,null,null,null,""]
[null,null,null,null,null,null,""]
[null,null,null,null,null,null,""]
[null,null,null,null,null,null,""]
[null,null,null,null,null,null,""]
[null,null,null,null,null,null,""]
[null,null,null,null,null,null,""]
[null,null,null,null,null,null,""]
[null,null,null,null,null,null,""]
[null,null,null,null,null,null,""]
[null,null,null,null,null,null,""]
[null,null,null,null,null,null,""]
[null,null,null,null,null,null,""]
[null,null,null,null,null,null,""]
[null,null,null,null,null,null,""]
[null,null,null,null,null,null,""]
[null,null,null,null,null,null,""]
[null,null,null,null,null,null,""]
[null,null,null,null,null,null,""]
[null,null,null,null,null,null,""]
[null,null,null,null,null,null,""]
[null,null,null,null,null,null,""]
[null,null,null,null,null,null,""]
[null,null,null,null,null,null,""]
[null,null,null,null,null,null,""]
[null,null,null,null,null,null,""]
[null,null,null,null,null,null,""]
[null,null,null,null,null,null,""]
[null,null,null,null,null,null,""]
[null,null,null,null,null,null,""]
[null,null,null,null,null,null,""]
[null,null,null,null,null,null,""]
[null,null,null,null,null,null,""]
[null,null,null,null,null,null,""]
[null,null,null,null,null,null,""]
[null,null,null,null,null,null,""]
[null,null,null,null,null,null,""]
[null,null,null,null,null,null,""]
[null,null,null,null,null,null,""]
[null,null,null,null,null,null,""]
[null,null,null,null,null,null,""]
[null,null,null,null,null,null,""]
[null,null,null,null,null,null,""]
[null,null,null,null,null,null,""]
[null,null,null,null,null,null,""]
[null,null,null,null,null,null,""]
[null,null,null,null,null,null,""]
[null,null,null,null,null,null,""]
[null,null,null,null,null,null,""]
[null,null,null,null,null,null,""]
[null,null,null,null,null,null,""]
[null,null,null,null,null,null,""]
[null,null,null,null,null,null,""]
[null,null,null,null,null,null,""]
[null,null,null,null,null,null,""]
[null,null,null,null,null,null,""]
[null,null,null,null,null,null,""]
[null,null,null,null,null,null,""]
[null,null,null,null,null,null,""]
[null,null,null,null,null,null,""]
[null,null,null,null,null,null,""]
[null,null,null,null,null,null,""]
[null,null,null,null,null,null,""]
[null,null,null,null,null,null,""]
[null,null,null,null,null,null,""]
[null,null,null,null,null,null,""]
[null,null,null,null,null,null,""]
[null,null,null,null,null,null,""]
[null,null,null,null,null,null,""]
[null,null,null,null,null,null,""]
[null,null,null,null,null,null,""]
[null,null,null,null,null,null,""]
[null,null,null,null,null,null,""]
[null,null,null,null,null,null,""]
[null,null,null,null,null,null,""]
[null,null,null,null,null,null,""]
[null,null,null,null,null,null,""]
[null,null,null,null,null,null,""]
[null,null,null,null,null,null,""]
[null,null,null,null,null,null,""]
[null,null,null,null,null,null,""]
[null,null,null,null,null,null,""]
[null,null,null,null,null,null,""]
[null,null,null,null,null,null,""]
[null,null,null,null,null,null,""]
[null,null,null,null,null,null,""]
[null,null,null,null,null,null,""]
[null,null,null,null,null,null,""]
[null,null,null,null,null,null,""]
[null,null,null,null,null,null,""]
[null,null,null,null,null,null,""]
[null,null,null,null,null,null,""]
[null,null,null,null,null,null,""]
[null,null,null,null,null,null,""]
[null,null,null,null,null,null,""]
[null,null,null,null,null,null,""]
[null,null,null,null,null,null,""]
[null,null,null,null,null,null,""]
[null,null,null,null,null,null,""]
[null,null,null,null,null,null,""]
[null,null,null,null,null,null,""]
[null,null,null,null,null,null,""]
[null,null,null,null,null,null,""]
[null,null,null,null,null,null,""]
[null,null,null,null,null,null,""]
[null,null,null,null,null,null,""]
[null,null,null,null,null,null,""]
[null,null,null,null,null,null,""]
[null,null,null,null,null,null,""]
[null,null,null,null,null,null,""]
[null,null,null,null,null,null,""]
[null,null,null,null,null,null,""]
[null,null,null,null,null,null,""]
[null,null,null,null,null,null,""]
[null,null,null,null,null,null,""]
[null,null,null,null,null,null,""]
[null,null,null,null,null,null,""]
[null,null,null,null,null,null,""]
[null,null,null,null,null,null,""]
[null,null,null,null,null,null,""]
[null,null,null,null,null,null,""]
[null,null,null,null,null,null,""]
[null,null,null,null,null,null,""]
[null,null,null,null,null,null,""]
[null,null,null,null,null,null,""]
[null,null,null,null,null,null,""]
[null,null,null,null,null,null,""]
[null,null,null,null,null,null,""]
[null,null,null,null,null,null,""]
[null,null,null,null,null,null,""]
[null,null,null,null,null,null,""]
[null,null,null,null,null,null,""]
[null,null,null,null,null,null,""]
[null,null,null,null,null,null,""]
[null,null,null,null,null,null,""]
[null,null,null,null,null,null,""]
[null,null,null,null,null,null,""]
[null,null,null,null,null,null,""]
[null,null,null,null,null,null,""]
[null,null,null,null,null,null,""]
[null,null,null,null,null,null,""]
[null,null,null,null,null,null,""]
[null,null,null,null,null,null,""]
[null,null,null,null,null,null,""]
[null,null,null,null,null,null,""]
[null,null,null,null,null,null,""]
[null,null,null,null,null,null,""]
[null,null,null,null,null,null,""]
[null,null,null,null,null,null,""]
[null,null,null,null,null,null,""]
[null,null,null,null,null,null,""]
[null,null,null,null,null,null,""]
[null,null,null,null,null,null,""]
[null,null,null,null,null,null,""]
[null,null,null,null,null,null,""]
[null,null,null,null,null,null,""]
[null,null,null,null,null,null,""]
[null,null,null,null,null,null,""]
[null,null,null,null,null,null,""]
[null,null,null,null,null,null,""]
[null,null,null,null,null,null,""]
[null,null,null,null,null,null,""]
[null,null,null,null,null,null,""]
[null,null,null,null,null,null,""]
[null,null,null,null,null,null,""]
[null,null,null,null,null,null,""]
[null,null,null,null,null,null,""]
[null,null,null,null,null,null,""]
[null,null,null,null,null,null,""]
[null,null,null,null,null,null,""]
[null,null,null,null,null,null,""]
[null,null,null,null,null,null,""]
[null,null,null,null,null,null,""]
[null,null,null,null,null,null,""]
[null,null,null,null,null,null,""]
[null,null,null,null,null,null,""]
[null,null,null,null,null,null,""]
[null,null,null,null,null,null,""]
[null,null,null,null,null,null,""]
[null,null,null,null,null,null,""]
[null,null,null,null,null,null,""]
[null,null,null,null,null,null,""]
[null,null,null,null,null,null,""]
[null,null,null,null,null,null,""]
[null,null,null,null,null,null,""]
[null,null,null,null,null,null,""]
[null,null,null,null,null,null,""]
[null,null,null,null,null,null,""]
[null,null,null,null,null,null,""]
[null,null,null,null,null,null,""]
[null,null,null,null,null,null,""]
[null,null,null,null,null,null,""]
[null,null,null,null,null,null,""]
[null,null,null,null,null,null,""]
[null,null,null,null,null,null,""]
[null,null,null,null,null,null,""]
[null,null,null,null,null,null,""]
[null,null,null,null,null,null,""]
[null,null,null,null,null,null,""]
[null,null,null,null,null,null,""]
[null,null,null,null,null,null,""]
[null,null,null,null,null,null,""]
[null,null,null,null,null,null,""]
[null,null,null,null,null,null,""]
[null,null,null,null,null,null,""]
[null,null,null,null,null,null,""]
[null,null,null,null,null,null,""]
[null,null,null,null,null,null,""]
[null,null,null,null,null,null,""]
[null,null,null,null,null,null,""]
[null,null,null,null,null,null,""]
[null,null,null,null,null,null,""]
[null,null,null,null,null,null,""]
[null,null,null,null,null,null,""]
[null,null,null,null,null,null,""]
[null,null,null,null,null,null,""]
[null,null,null,null,null,null,""]
[null,null,null,null,null,null,""]
[null,null,null,null,null,null,""]
[null,null,null,null,null,null,""]
[null,null,null,null,null,null,""]
[null,null,null,null,null,null,""]
[null,null,null,null,null,null,""]
[null,null,null,null,null,null,""]
[null,null,null,null,null,null,""]
[null,null,null,null,null,null,""]
[null,null,null,null,null,null,""]
[null,null,null,null,null,null,""]
[null,null,null,null,null,null,""]
[null,null,null,null,null,null,""]
[null,null,null,null,null,null,""]
[null,null,null,null,null,null,""]
[null,null,null,null,null,null,""]
[null,null,null,null,null,null,""]
[null,null,null,null,null,null,""]
[null,null,null,null,null,null,""]
[null,null,null,null,null,null,""]
[null,null,null,null,null,null,""]
[null,null,null,null,null,null,""]
[null,null,null,null,null,null,""]
[null,null,null,null,null,null,""]
[null,null,null,null,null,null,""]
[null,null,null,null,null,null,""]
[null,null,null,null,null,null,""]
[null,null,null,null,null,null,""]
[null,null,null,null,null,null,""]
[null,null,null,null,null,null,""]
[null,null,null,null,null,null,""]
[null,null,null,null,null,null,""]
[null,null,null,null,null,null,""]
[null,null,null,null,null,null,""]
[null,null,null,null,null,null,""]
[null,null,null,null,null,null,""]
[null,null,null,null,null,null,""]
[null,null,null,null,null,null,""]
[null,null,null,null,null,null,""]
[null,null,null,null,null,null,""]
[null,null,null,null,null,null,""]
[null,null,null,null,null,null,""]
[null,null,null,null,null,null,""]
[null,null,null,null,null,null,""]
[null,null,null,null,null,null,""]
[null,null,null,null,null,null,""]
[null,null,null,null,null,null,""]
[null,null,null,null,null,null,""]
[null,null,null,null,null,null,""]
[null,null,null,null,null,null,""]
[null,null,null,null,null,null,""]
[null,null,null,null,null,null,""]
[null,null,null,null,null,null,""]
[null,null,null,null,null,null,""]
[null,null,null,null,null,null,""]
[null,null,null,null,null,null,""]
[null,null,null,null,null,null,""]
[null,null,null,null,null,null,""]
[null,null,null,null,null,null,""]
[null,null,null,null,null,null,""]
[null,null,null,null,null,null,""]
[null,null,null,null,null,null,""]
[null,null,null,null,null,null,""]
[null,null,null,null,null,null,""]
[null,null,null,null,null,null,""]
[null,null,null,null,null,null,""]
[null,null,null,null,null,null,""]
[null,null,null,null,null,null,""]
[null,null,null,null,null,null,""]
[null,null,null,null,null,null,""]
[null,null,null,null,null,null,""]
[null,null,null,null,null,null,""]
[null,null,null,null,null,null,""]
[null,null,null,null,null,null,""]
[null,null,null,null,null,null,""]
[null,null,null,null,null,null,""]
[null,null,null,null,null,null,""]
[null,null,null,null,null,null,""]
[null,null,null,null,null,null,""]
[null,null,null,null,null,null,""]
[null,null,null,null,null,null,""]
[null,null,null,null,null,null,""]
[null,null,null,null,null,null,""]
[null,null,null,null,null,null,""]
[null,null,null,null,null,null,""]
[null,null,null,null,null,null,""]
[null,null,null,null,null,null,""]
[null,null,null,null,null,null,""]
[null,null,null,null,null,null,""]
[null,null,null,null,null,null,""]
[null,null,null,null,null,null,""]
[null,null,null,null,null,null,""]
[null,null,null,null,null,null,""]
[null,null,null,null,null,null,""]
[null,null,null,null,null,null,""]
[null,null,null,null,null,null,""]
[null,null,null,null,null,null,""]
[null,null,null,null,null,null,""]
[null,null,null,null,null,null,""]
[null,null,null,null,null,null,""]
[null,null,null,null,null,null,""]
[null,null,null,null,null,null,""]
[null,null,null,null,null,null,""]
[null,null,null,null,null,null,""]
[null,null,null,null,null,null,""]
[null,null,null,null,null,null,""]
[null,null,null,null,null,null,""]
[null,null,null,null,null,null,""]
[null,null,null,null,null,null,""]
[null,null,null,null,null,null,""]
[null,null,null,null,null,null,""]
[null,null,null,null,null,null,""]
[null,null,null,null,null,null,""]
[null,null,null,null,null,null,""]
[null,null,null,null,null,null,""]
[null,null,null,null,null,null,""]
[null,null,null,null,null,null,""]
[null,null,null,null,null,null,""]
[null,null,null,null,null,null,""]
[null,null,null,null,null,null,""]
[null,null,null,null,null,null,""]
[null,null,null,null,null,null,""]
[null,null,null,null,null,null,""]
[null,null,null,null,null,null,""]
[null,null,null,null,null,null,""]
[null,null,null,null,null,null,""]
[null,null,null,null,null,null,""]
[null,null,null,null,null,null,""]
[null,null,null,null,null,null,""]
[null,null,null,null,null,null,""]
[null,null,null,null,null,null,""]
[null,null,null,null,null,null,""]
[null,null,null,null,null,null,""]
[null,null,null,null,null,null,""]
[null,null,null,null,null,null,""]
[null,null,null,null,null,null,""]
[null,null,null,null,null,null,""]
[null,null,null,null,null,null,""]
[null,null,null,null,null,null,""]
[null,null,null,null,null,null,""]
[null,null,null,null,null,null,""]
[null,null,null,null,null,null,""]
[null,null,null,null,null,null,""]
[null,null,null,null,null,null,""]
[null,null,null,null,null,null,""]
[null,null,null,null,null,null,""]
[null,null,null,null,null,null,""]
[null,null,null,null,null,null,""]
[null,null,null,null,null,null,""]
[null,null,null,null,null,null,""]
[null,null,null,null,null,null,""]
[null,null,null,null,null,null,""]
[null,null,null,null,null,null,""]
[null,null,null,null,null,null,""]
[null,null,null,null,null,null,""]
[null,null,null,null,null,null,""]
[null,null,null,null,null,null,""]
[null,null,null,null,null,null,""]
[null,null,null,null,null,null,""]
[null,null,null,null,null,null,""]
[null,null,null,null,null,null,""]
[null,null,null,null,null,null,""]
[null,null,null,null,null,null,""]
[null,null,null,null,null,null,""]
[null,null,null,null,null,null,""]
[null,null,null,null,null,null,""]
[null,null,null,null,null,null,""]
[null,null,null,null,null,null,""]
[null,null,null,null,null,null,""]
[null,null,null,null,null,null,""]
[null,null,null,null,null,null,""]
[null,null,null,null,null,null,""]
[null,null,null,null,null,null,""]
[null,null,null,null,null,null,""]
[null,null,null,null,null,null,""]
[null,null,null,null,null,null,""]
[null,null,null,null,null,null,""]
[null,null,null,null,null,null,""]
[null,null,null,null,null,null,""]
[null,null,null,null,null,null,""]
[null,null,null,null,null,null,""]
[null,null,null,null,null,null,""]
[null,null,null,null,null,null,""]
[null,null,null,null,null,null,""]
[null,null,null,null,null,null,""]
[null,null,null,null,null,null,""]
[null,null,null,null,null,null,""]
[null,null,null,null,null,null,""]
[null,null,null,null,null,null,""]
[null,null,null,null,null,null,""]
[null,null,null,null,null,null,""]
[null,null,null,null,null,null,""]
[null,null,null,null,null,null,""]
[null,null,null,null,null,null,""]
[null,null,null,null,null,null,""]
[null,null,null,null,null,null,""]
[null,null,null,null,null,null,""]
[null,null,null,null,null,null,""]
[null,null,null,null,null,null,""]
[null,null,null,null,null,null,""]
[null,null,null,null,null,null,""]
[null,null,null,null,null,null,""]
[null,null,null,null,null,null,""]
[null,null,null,null,null,null,""]
[null,null,null,null,null,null,""]
[null,null,null,null,null,null,""]
[null,null,null,null,null,null,""]
[null,null,null,null,null,null,""]
[null,null,null,null,null,null,""]
[null,null,null,null,null,null,""]
[null,null,null,null,null,null,""]
[null,null,null,null,null,null,""]
[null,null,null,null,null,null,""]
[null,null,null,null,null,null,""]
[null,null,null,null,null,null,""]
[null,null,null,null,null,null,""]
[null,null,null,null,null,null,""]
[null,null,null,null,null,null,""]
[null,null,null,null,null,null,""]
[null,null,null,null,null,null,""]
[null,null,null,null,null,null,""]
[null,null,null,null,null,null,""]
[null,null,null,null,null,null,""]
[null,null,null,null,null,null,""]
[null,null,null,null,null,null,""]
[null,null,null,null,null,null,""]
[null,null,null,null,null,null,""]
[null,null,null,null,null,null,""]
[null,null,null,null,null,null,""]
[null,null,null,null,null,null,""]
[null,null,null,null,null,null,""]
[null,null,null,null,null,null,""]
[null,null,null,null,null,null,""]
[null,null,null,null,null,null,""]
[null,null,null,null,null,null,""]
[null,null,null,null,null,null,""]
[null,null,null,null,null,null,""]
[null,null,null,null,null,null,""]
[null,null,null,null,null,null,""]
[null,null,null,null,null,null,""]
[null,null,null,null,null,null,""]
[null,null,null,null,null,null,""]
[null,null,null,null,null,null,""]
[null,null,null,null,null,null,""]
[null,null,null,null,null,null,""]
[null,null,null,null,null,null,""]
[null,null,null,null,null,null,""]
[null,null,null,null,null,null,""]
[null,null,null,null,null,null,""]
[null,null,null,null,null,null,""]
[null,null,null,null,null,null,""]
[null,null,null,null,null,null,""]
[null,null,null,null,null,null,""]
[null,null,null,null,null,null,""]
[null,null,null,null,null,null,""]
[null,null,null,null,null,null,""]
[null,null,null,null,null,null,""]
[null,null,null,null,null,null,""]
[null,null,null,null,null,null,""]
[null,null,null,null,null,null,""]
[null,null,null,null,null,null,""]
[null,null,null,null,null,null,""]
[null,null,null,null,null,null,""]
[null,null,null,null,null,null,""]
[null,null,null,null,null,null,""]
[null,null,null,null,null,null,""]
[null,null,null,null,null,null,""]
[null,null,null,null,null,null,""]
[null,null,null,null,null,null,""]
[null,null,null,null,null,null,""]
[null,null,null,null,null,null,""]
[null,null,null,null,null,null,""]
[null,null,null,null,null,null,""]
[null,null,null,null,null,null,""]
[null,null,null,null,null,null,""]
[null,null,null,null,null,null,""]
[null,null,null,null,null,null,""]
[null,null,null,null,null,null,""]
[null,null,null,null,null,null,""]
[null,null,null,null,null,null,""]
[null,null,null,null,null,null,""]

{"sheet":"About","index":13,"n_rows":0,"n_cols":0,"rows_kept":0,"cut":false,"hidden":false,"merged":[]}